Workbook

Sheet QAP Reference (hidden)
A3: =+#REF! -> 
A5: QAP References
A6: II.B | B6: QAP is the governing document
A7: II.E | B7: LA Public Records Law applies
A9: II.A | B9: Discusses Qualified Non-Profit
A10: II.A | B10: Discusses CHDO
A11: II.A | B11: Discusses funding pools
A12: II.B | B12: Discusses LIHTC Per Project caps (by pool)
A13: IV.A.2.a | B13: Discusses required priority for certain public housing waiting list applicants
A14: NA | B14: Discusses National Housing Trust Fund
A15: Appendix C.N. | B15: Discusses HOME funds
A16: Appendix C.N. | B16: Discusses CDBG-DR funds
A17: II.B | B17: LIHTC Per-Developer Cap
A19: II.C | B19: Discusses Basis Boost
A20: II.C | B20: Discusses census tract median income data
A22: III | B22: Application Process requirements must be followed
A23: III.B | B23: Processing for 9% Housing Credit applications
A24: III.C | B24: Processing for 4% Housing Credit applications
A25: III.D | B25: LHC Fee schedule
A26: IV.D | B26: Requirements related to Pro Forma Cash Flows
A27: IV.D.1 | B27: Revenue and expense trending rates
A28: IV.D.2 | B28: Required debt service coverage ratios
A29: IV.D.3 | B29: Allowed Return on Taxpayer Capital
A30: IV.D.4 | B30: Cash flow note (for acquisition of existing project)
A31: IV.D.5 | B31: Minimum vacancy loss rate
A32: IV.D.6 | B32: Minimum annual Reserve deposit
A33: IV.D.9 | B33: Minimum operating expense level
A34: IV.D.12 | B34: Developer certification of sources and uses
A36: IV.A.3 | B36: Threshold Requirement: Site Control
A37: IV.A.4 | B37: Threshold Requirement: Zoning
A38: IV.A.5 | B38: Threshold Requirement: Infrastructure
A39: IV.A.6 | B39: Threshold Requirement: Environmental Review
A40: IV.A.7 | B40: Threshold Requirement: Negative Neighborhood Features
A41: IV.A.8 | B41: Threshold Requirement: Taxpayer Agreement re Tenant Referrals
A42: IV.A.9 | B42: Threshold Requirement: Minimum Internet / Cable Requirements
A43: IV.B.4 | B43: Threshold Requirement: Washers and Dryers in New Construction Projects
A44: IV.A.10 | B44: Threshold Requirement: Energy Efficiency
A45: IV.A.11 | B45: Threshold Requirement: Design Features
A46: IV.A.12 | B46: Threshold Requirements: Floodplain-related requirements
A47: V.A.12, V.F | B47: Threshold Requirement: Capital Needs Assessment
A48: IV.B | B48: Threshold Requirement: Historic Rehabilitation Projects
A49: IV.A.17 | B49: Threshold Requirement: Minimum Score
A50: IV.B.1 | B50: Audited Financials (acquisition of existing projects)
A51: IV.B.2 | B51: Requirements if seller and purchaser are Related Persons
A52: IV.B.3 | B52: Ten Year Title History
A53: IV.C.1 | B53: Eligibility criteria for Developers
A54: IV.C.1 .e | B54: Limitation for New Developers
A55: V.C.2 | B55: Eligibility criteria for Management Agents
A56: V.C.3 | B56: LHC has no liability for applicants' costs of submission
A57: V.C.3 | B57: Discussion of participants 'not in good standing' with LHC
A58: III.A | B58: Local Community Notification
A59: Appendix B | B59: Minimum Square Footage / Bathroom Requirements
A60: IV.D | B60: Maximum Development Cost Requirements
A61: IV.D | B61: Allows Extraordinary Site Costs to be excluded from the TDC limit computation
A62: IV.D | B62: Allows Community Facilities and Community Service Facilities to be excluded from the TDC limit computation
A63: IV.D | B63: SRO Project
A64: IV.D | B64: Anti-discrimination project
A65: Appendix B | B65: Construction and Design Standards
A66: Appendix B | B66: Project Amenities
A67: IV.D | B67: Fee and profit limits
A68: IV.D | B68: Development Services Agreement
A69: IV.D | B69: Discusses equipment owned by Developer, Builder or related party
A70: IV.D | B70: Discusses limits to buider compensation, when a small number of subcontractors are responsible for a large percentage of construction cost
A71: IV.A | B71: Discusses projects receiving federal financing / assistance
A72: V.H NA | B72: Financing commitments
A73: IV.B.6 | B73: Appraisal requirements for value of acquired real estate
A75: VI.A | B75: Tenant Selection Plan
A76: VI.C | B76: Applicant responsible to notify LHC of any material change
A77: VI.C | B77: No site change permitted
A78: VI.C | B78: Awarded projects are expected to be constructed as described
A80: Appendix A | B80: Disclaimer regarding Selection Criteria scoring
A81: Appendix A.I.A.ii | B81: Geographic Diversity
A82: Appendix A.I.B | B82: Redevelopment Project
A83: Appendix A.II.A.i | B83: Selection Criterion for Special Needs Households
A84: Appendix A.II.A.ii | B84: Selection Criterion for Elderly Households
A85: Appendix A.III.A | B85: Selection Criterion for Extended Affordability Agreement
A86: Appendix A.III.B | B86: Selection Criterion for Increased Unit Affordability
A87: Appendix A.III.B(i)(a) | B87: Selection Criterion for Non-PSH Units Affordable At or Below 30% AMI
A88: Appendix A.III.B(i)(b) | B88: Selection Criterion for PSH Units
A89: Appendix A.III.D | B89: Selection Criterion for Additional Financial Support
A90: Appendix A.IV.A | B90: Selection Criterion for Positive Neighborhood Features
A91: Appendix A.V.A | B91: Selection Criterion for Community Facilities
A92: Appendix A.V.B | B92: Selection Criterion for Optional Amenities
A93: Appendix A.V.B.iv | B93: Selection Criterion for Green Building
A94: Appendix A.V.C | B94: Selection Criterion for Project Amenities
A95: Appendix A.V.D | B95: Selection Criterion for Additional Accessibility
A96: Appendix A.V.E | B96: Selection Criterion for On-Site Security
A97: Appendix A.V.F | B97: Selection Criterion for HUD Defensible Space
A98: Appendix A.V.G | B98: Selection Criterion for Resiliency Standards
A99: Appendix A.V.H | B99: Selection Criterion for HUD Eviction Prevention and Low Barrier Tenant Screening
A100: Appendix A.V.I | B100: Selection Criterion for Diversity, Equity & Inclusion

Sheet 1. Instructions
A3: ='2. Project Description'!A3 -> HOMELESS & HOUSING STABILITY: AFFORDABLE HOUSING DEVELOPMENT PROGRAM
A4: Instructions: Complete the Application per the Instructions below, following the information requested on each tab. Please note
B5: that Tabs 8 & 9 are NOT for entry, but are auto-populated from prior worksheets. Applications will be submitted via a portal link that will be provided to each Applicant upon submittal of the Letter of Intent (LOI).
A6: ="Tab 1" -> Tab 1 | B6: General Instructions
A7: 1.01 | B7: In the event there is a conflict between this Application and the NOFA, the NOFA is the governing document.
A8: =A7+0.01 -> 1.02 | B8: Applicants are advised that if applicable, materials contained in applications for the LIHTC Program are subject to the requirements of the Louisiana Public Records Request law (La R.S. 44:1 et seq.), and the application materials may be viewed and copied by any member of the public.
A9: =A8+0.01 -> 1.03 | B9: Applicants are notified that any and all expenses incurred in the preparation of applications to be submitted during this application process are incurred at their own risk and are subject to forfeiture.
B11: Using This Application Tool
A12: =A9+0.01 -> 1.04 | B12: Please do not alter the format of this Application: do not add or delete rows, do not add or delete columns, do not add or delete worksheets, do not move any worksheets, and do not re-name any worksheets. Please do not use the 'cut and paste' method anywhere within this Application (you may use the 'copy and paste' method). LHC will be using electronic methods to extract data from this Application for use in LHC's underwriting; if you have modified this Application in any way that interferes with LHC's ability to extract data for underwriting, LHC may reject the Application or, at LHC's discretion, LHC may return the Application for correction.
A13: =A12+0.01 -> 1.05 | B13: When opening this Application, you are likely to receive a message 'This workbook contains links to one or more external sources …'. If you receive this message, select 'Don't Update'; the link is to a file that LHC used during development of the Application tool.
A14: =A13+0.01 -> 1.06 | B14: Worksheets that require user entries have tabs with medium blue background at the bottom of the screen. LHC suggests that you complete these worksheets first, moving from left (Project Description) to right (Revenues and Expenses).
A15: =A14+0.01 -> 1.07 | B15: Please limit your entries to cells with light blue background and dark blue bold font as shown below. If you make entries in any other cells, this may result in LHC's inability to extract data for underwriting, which may result in rejection of your Application.
B16: User entry cells look like this
A17: =A15+0.01 -> 1.08 | B17: Many user entry cells require you to select one of a fixed set of choices; this type of user entry cell will have a down arrow immediately to the right of the cell. Following is an example of this type of user entry cell:
B18: New Construction
A19: =A17+0.01 -> 1.09 | B19: Automated calcualtions with appear throughout this Application in dark green font as shown below.
B20: Automated data will look like this
A21: =A19+0.01 -> 1.1 | B21: Advisory messages appear throughout this Application in dark green font as shown below.
B22: Advisory messages look like this
A23: =A21+0.01 -> 1.11 | B23: Any messages that appear in red bold italic font indicate serious problems; any such problems must be corrected or must otherwise be addressed in the application (for example, by a letter requesting a waiver).
B24: Serious problem messages look like this
A25: =A23+0.01 -> 1.12 | B25: For narrative comment boxes (that look like the below), you can change the row height to accommodate additional explanation; see the examples below.
B26: Here is an example of a comment that fits in one row.
B28: Here is an example of a much longer comment that requires multiple rows in order to display properly. Additional information provided by applicant requires extra space. Using the mouse, grab the line underneath the row number and drag that line downward to increase the row height.
A30: =A25+0.01 -> 1.13 | B30: When there is a need to provide additional explanation beyond what the narrative comment boxes, you can upload a document separately with the details.
A32: ="Tab 2 & 3" -> Tab 2 & 3 | B32: Project Description & Funding Characteristics Worksheet
A33: 2.01 | B33: These worksheets contains most of the user entries to describe the Applicant and the project.
A35: ="Tab 4 " -> Tab 4 | B35: Unit Mix and Rents Worksheet
A36: 4.01 | B36: Please note that each unit must have square footage, and number of bathrooms, at or above the LHC limit (It is not acceptable to average the unit sizes). Accordingly, generally LHC expects you to include a row for each unique combination of: (1) number of bedrooms; (2) number of bathrooms; (3) square footage; and (4) % AMI Restriction. Please also include a separate row for each staff unit. However, if the general approach outlined above would be burdensome, please contact LHC to explore whether there may be an alternative approach that will be workable for you and for LHC.
A37: =A36+0.01 -> 4.02 | B37: The Unit Type column will auto populate after the following fields have been entered in each row: (1) number of bedrooms; (2) numer of bathrooms; and (3) number of units.
A40: ="Tab 5 " -> Tab 5 | B40: Development Costs Worksheet
A41: 5.01 | B41: The section that calculates Adjusted Construction Basis subtracts amounts that LHC understands are generally excluded from construction basis. If your advisors conclude that any of the formula deductions are inappropriate for your transaction, use one of the Adjustment rows to add back amounts as appropriate. Also use the Adjustment rows to exclude other amounts as appropriate for your transaction.
A43: ="Tab 6 " -> Tab 6 | B43: Basis Calculation Worksheet - ONLY COMPLETE IF PROJECT CONTAINS TAX CREDITS. If NO, leave BLANK.
A44: 6.01 | B44: The lines titled 'Per Building Residential Area', 'Sqft of LIHTC Units', and 'Sqft of Total Units' should reflect only the square footage of residential units themselves. Do not include square footage for staff units, common areas, or Community Service Facilities.
A45: =A44+0.01 -> 6.02 | B45: If any red bold italicized 'serious problem messages' appear at the bottom of this worksheet, you will need to correct the information in the worksheet.
A47: ="Tab 7 " -> Tab 7 | B47: Revenues and Expenses Worksheet
A48: 7.01 | B48: This worksheet distinguishes between 'must-pay' expenses (that must be paid from operations regardless of availability of cash) and 'contingent' expenses (for example, expenses that are paid after year-end from excess cash).
A50: Tab 8 | B50: PRO FORMA - DO NOT ENTER DATA ON THIS TAB
B51: All fields under the Pro Forma tab are auto calculated from entries in previous tabs.
A53: Tab 9 | B53: SUMMARY - DO NOT ENTER DATA ON THIS TAB
B54: All fields under the Summary tab are auto calculated from entries in previous tabs.
A56: Tab 10 | B56: CHECKLIST
B57: The checklist tab is a guide for all documents that are requird to be uploaded by the developer.

Sheet Parishes (hidden)
Y1: =COLUMN(Y1) -> 25 | Z1: 26 | AA1: 27 | AB1: 28 | AC1: 29 | AD1: 30
A3: =+#REF! -> 
E7: FY2023 FMR | J7: 2022 Low HOME Rent | O7: 2022 High HOME Rent | T7: FFIEC | Y7: 2019 QAP Demographic Data
A8: Parish | B8: 50% 2022 AMI | C8: FEMA 2017 | D8: HUD 2017 | E8: 0BR | F8: 1BR | G8: 2BR | H8: 3BR | I8: 4BR | J8: 0BR | K8: 1BR | L8: 2BR | M8: 3BR | N8: 4BR | O8: 0BR | P8: 1BR | Q8: 2BR | R8: 3BR | S8: 4BR | T8: 2022 | U8: MSA for AMI Purposes | V8: Cost Area for TDC Limit Purposes | W8: Previously Unfunded by LHC | X8: 4+ Housing Priorities | Y8: Percent Population Who are Elderly | Z8: Percent Population Who are Disabled | AA8: % ROHUs Experiencing >30% Housing Cost Burden | AB8: % of Total Population in Poverty | AC8: % Pop'n of Persons < 5 Years in Poverty | AD8: Median Household Income
A9: Select
A10: Acadia | B10: 31500 | C10: Yes | D10: Yes | E10: 510 | F10: 580 | G10: 763 | H10: 1007 | I10: 1098 | J10: 492 | K10: 529 | L10: 696 | M10: 819 | N10: 913 | O10: 492 | P10: 529 | Q10: 696 | R10: 980 | S10: 1049 | T10: 74900 | U10: Lafayette MSA | V10: Lafayette | Y10: 0.1462136822 | Z10: 0.1853826952 | AA10: 0.5192949907 | AB10: 0.215444898 | AC10: 0.2907559199 | AD10: 40492
A11: Allen | B11: 31850 | C11: Yes | D11: No | E11: 567 | F11: 587 | G11: 740 | H11: 962 | I11: 1120 | J11: 529 | K11: 532 | L11: 696 | M11: 828 | N11: 923 | O11: 529 | P11: 532 | Q11: 696 | R11: 947 | S11: 1061 | V11: Lake Charles | Y11: 0.1541278685 | Z11: 0.2056941176 | AA11: 0.4958333333 | AB11: 0.1662963838 | AC11: 0.2821934689 | AD11: 42176
A12: Ascension | B12: 44350 | C12: Yes | D12: Yes | E12: 859 | F12: 876 | G12: 1005 | H12: 1266 | I12: 1644 | J12: 744 | K12: 781 | L12: 917 | M12: 1153 | N12: 1286 | O12: 744 | P12: 781 | Q12: 917 | R12: 1161 | S12: 1447 | T12: 88100 | U12: Baton Rouge MSA | V12: Baton Rouge | Y12: 0.1160506678 | Z12: 0.1212195493 | AA12: 0.404246224 | AB12: 0.1169553042 | AC12: 0.1786679197 | AD12: 74748
A13: Assumption | B13: 33350 | C13: No | D13: No | E13: 707 | F13: 729 | G13: 823 | H13: 1141 | I13: 1345 | J13: 583 | K13: 625 | L13: 738 | M13: 867 | N13: 967 | O13: 601 | P13: 648 | Q13: 738 | R13: 1019 | S13: 1158 | V13: Lafayette | Y13: 0.1646344128 | Z13: 0.1951843359 | AA13: 0.6285468616 | AB13: 0.1570650489 | AC13: 0.2240343348 | AD13: 48656
A14: Avoyelles | B14: 28300 | C14: Yes | D14: No | E14: 583 | F14: 587 | G14: 773 | H14: 1011 | I14: 1097 | J14: 471 | K14: 531 | L14: 637 | M14: 736 | N14: 821 | O14: 471 | P14: 539 | Q14: 709 | R14: 918 | S14: 1010 | V14: Alexandria | Y14: 0.1643508943 | Z14: 0.1896758703 | AA14: 0.5349985478 | AB14: 0.2370927184 | AC14: 0.4092592593 | AD14: 36763
A15: Beauregard | B15: 36250 | C15: Yes | D15: No | E15: 677 | F15: 689 | G15: 782 | H15: 1060 | I15: 1332 | J15: 600 | K15: 611 | L15: 696 | M15: 942 | N15: 1051 | O15: 600 | P15: 611 | Q15: 696 | R15: 959 | S15: 1191 | V15: Lake Charles | W15: =+A15 -> Beauregard | Y15: 0.1577681841 | Z15: 0.2077849809 | AA15: 0.4829659319 | AB15: 0.1726606773 | AC15: 0.1951727008 | AD15: 47350
A16: Bienville | B16: 27050 | C16: Yes | D16: No | E16: 567 | F16: 655 | G16: 740 | H16: 1052 | I16: 1230 | J16: 473 | K16: 507 | L16: 608 | M16: 703 | N16: 785 | O16: 529 | P16: 611 | Q16: 696 | R16: 880 | S16: 963 | V16: Shreveport | X16: =+A16 -> Bienville | Y16: 0.1984644358 | Z16: 0.2111589257 | AA16: 0.472674976 | AB16: 0.2528931751 | AC16: 0.3924349882 | AD16: 34077
A17: Bossier | B17: 32750 | C17: Yes | D17: No | E17: 708 | F17: 857 | G17: 1009 | H17: 1258 | I17: 1389 | J17: 573 | K17: 614 | L17: 737 | M17: 851 | N17: 950 | O17: 632 | P17: 756 | Q17: 897 | R17: 1074 | S17: 1179 | T17: 65500 | U17: Shreveport-Bossier City MSA | V17: Shreveport | Y17: 0.1385065793 | Z17: 0.1220273198 | AA17: 0.5042095416 | AB17: 0.1638188651 | AC17: 0.2534959168 | AD17: 52145
A18: Caddo | B18: 32750 | C18: Yes | D18: No | E18: 708 | F18: 857 | G18: 1009 | H18: 1258 | I18: 1389 | J18: 573 | K18: 614 | L18: 737 | M18: 851 | N18: 950 | O18: 632 | P18: 756 | Q18: 897 | R18: 1074 | S18: 1179 | T18: 65500 | U18: Shreveport-Bossier City MSA | V18: Shreveport | Y18: 0.1592430766 | Z18: 0.1519665665 | AA18: 0.5717901382 | AB18: 0.2340178336 | AC18: 0.4100278235 | AD18: 40391
A19: Calcasieu | B19: 36150 | C19: Yes | D19: No | E19: 756 | F19: 767 | G19: 983 | H19: 1235 | I19: 1322 | J19: 633 | K19: 678 | L19: 813 | M19: 940 | N19: 1048 | O19: 660 | P19: 688 | Q19: 884 | R19: 1107 | S19: 1241 | T19: 75000 | U19: Lake Charles MSA | V19: Lake Charles | Y19: 0.1441990813 | Z19: 0.1548727293 | AA19: 0.5000449519 | AB19: 0.1680263603 | AC19: 0.2861726954 | AD19: 48219
A20: Caldwell | B20: 27050 | C20: Yes | D20: No | E20: 670 | F20: 675 | G20: 888 | H20: 1081 | I20: 1193 | J20: 473 | K20: 507 | L20: 608 | M20: 703 | N20: 785 | O20: 599 | P20: 635 | Q20: 774 | R20: 885 | S20: 969 | V20: Monroe | Y20: 0.1817 | Z20: 0.1469871863 | AA20: 0.4839181287 | AB20: 0.2621750663 | AC20: 0.4735915493 | AD20: 31933
A21: Cameron | B21: 36150 | C21: No | D21: No | E21: 756 | F21: 767 | G21: 983 | H21: 1235 | I21: 1322 | J21: 633 | K21: 678 | L21: 813 | M21: 940 | N21: 1048 | O21: 660 | P21: 688 | Q21: 884 | R21: 1107 | S21: 1241 | T21: 75000 | U21: Lake Charles MSA | V21: Lake Charles | Y21: 0.1670584778 | Z21: 0.1627083641 | AA21: 0.5033112583 | AB21: 0.08680300132 | AC21: 0.03611111111 | AD21: 60194
A22: Catahoula | B22: 33150 | C22: Yes | D22: No | E22: 567 | F22: 650 | G22: 740 | H22: 1052 | I22: 1076 | J22: 572 | K22: 611 | L22: 696 | M22: 862 | N22: 962 | O22: 572 | P22: 611 | Q22: 696 | R22: 989 | S22: 1020 | V22: Alexandria | W22: =+A22 -> Catahoula | Y22: 0.1680605337 | Z22: 0.1305312188 | AA22: 0.5591985428 | AB22: 0.2181252777 | AC22: 0.3623931624 | AD22: 34470 | AE22: Awarded in 2018
A23: Claiborne | B23: 27050 | C23: Yes | D23: No | E23: 564 | F23: 567 | G23: 747 | H23: 909 | I23: 1086 | J23: 473 | K23: 507 | L23: 608 | M23: 703 | N23: 785 | O23: 546 | P23: 557 | Q23: 696 | R23: 865 | S23: 944 | V23: Shreveport | W23: =+A23 -> Claiborne | X23: =+A23 -> Claiborne | Y23: 0.1810873834 | Z23: 0.1982812827 | AA23: 0.6094866797 | AB23: 0.2992208886 | AC23: 0.4923857868 | AD23: 26877
A24: Concordia | B24: 27050 | C24: No | D24: No | E24: 567 | F24: 655 | G24: 740 | H24: 990 | I24: 994 | J24: 473 | K24: 507 | L24: 608 | M24: 703 | N24: 785 | O24: 529 | P24: 611 | Q24: 696 | R24: 880 | S24: 961 | V24: Alexandria | Y24: 0.1722329425 | Z24: 0.1242567716 | AA24: 0.5967825636 | AB24: 0.312341318 | AC24: 0.4385113269 | AD24: 30028
A25: Desoto | B25: 32750 | C25: Yes | D25: No | E25: 708 | F25: 857 | G25: 1009 | H25: 1258 | I25: 1389 | J25: 573 | K25: 614 | L25: 737 | M25: 851 | N25: 950 | O25: 632 | P25: 756 | Q25: 897 | R25: 1074 | S25: 1179 | T25: 65500 | U25: Shreveport-Bossier City MSA | V25: Shreveport | Y25: 0.1799440436 | Z25: 0.1738969225 | AA25: 0.4797979798 | AB25: 0.2631344613 | AC25: 0.3787788975 | AD25: 41443
A26: East Baton Rouge | B26: 44350 | C26: Yes | D26: Yes | E26: 859 | F26: 876 | G26: 1005 | H26: 1266 | I26: 1644 | J26: 744 | K26: 781 | L26: 917 | M26: 1153 | N26: 1286 | O26: 744 | P26: 781 | Q26: 917 | R26: 1161 | S26: 1447 | T26: 88100 | U26: Baton Rouge MSA | V26: Baton Rouge | Y26: 0.1349270565 | Z26: 0.1382884397 | AA26: 0.5260838664 | AB26: 0.1911061462 | AC26: 0.29372926 | AD26: 51436
A27: East Carroll | B27: 27050 | C27: Yes | D27: No | E27: 558 | F27: 562 | G27: 740 | H27: 1006 | I27: 1090 | J27: 473 | K27: 507 | L27: 608 | M27: 703 | N27: 785 | O27: 529 | P27: 529 | Q27: 696 | R27: 880 | S27: 963 | V27: Monroe | X27: =+A27 -> East Carroll | Y27: 0.1294069418 | Z27: 0.1440593068 | AA27: 0.5867850099 | AB27: 0.4817195661 | AC27: 0.9047619048 | AD27: 20795
A28: East Feliciana | B28: 44350 | C28: Yes | D28: No | E28: 859 | F28: 876 | G28: 1005 | H28: 1266 | I28: 1644 | J28: 744 | K28: 781 | L28: 917 | M28: 1153 | N28: 1286 | O28: 744 | P28: 781 | Q28: 917 | R28: 1161 | S28: 1447 | T28: 88100 | U28: Baton Rouge MSA | V28: Baton Rouge | W28: =+A28 -> East Feliciana | Y28: 0.176954943 | Z28: 0.1602885438 | AA28: 0.4568380213 | AB28: 0.1793128789 | AC28: 0.2004175365 | AD28: 46964 | AE28: Awarded in 2011
A29: Evangeline | B29: 27050 | C29: Yes | D29: No | E29: 567 | F29: 592 | G29: 740 | H29: 933 | I29: 994 | J29: 473 | K29: 507 | L29: 608 | M29: 703 | N29: 785 | O29: 529 | P29: 574 | Q29: 696 | R29: 880 | S29: 963 | V29: Lafayette | X29: =+A29 -> Evangeline | Y29: 0.1556444444 | Z29: 0.2302124751 | AA29: 0.5137221269 | AB29: 0.2641627347 | AC29: 0.3537326389 | AD29: 31745
A30: Franklin | B30: 27050 | C30: Yes | D30: No | E30: 629 | F30: 633 | G30: 740 | H30: 946 | I30: 994 | J30: 473 | K30: 507 | L30: 608 | M30: 703 | N30: 785 | O30: 529 | P30: 532 | Q30: 696 | R30: 880 | S30: 944 | V30: Monroe | Y30: 0.1733863057 | Z30: 0.1777637861 | AA30: 0.6571428571 | AB30: 0.2880037833 | AC30: 0.5487719298 | AD30: 34722
A31: Grant | B31: 31900 | C31: Yes | D31: No | E31: 601 | F31: 683 | G31: 899 | H31: 1219 | I31: 1307 | J31: 543 | K31: 598 | L31: 718 | M31: 830 | N31: 926 | O31: 543 | P31: 637 | Q31: 818 | R31: 1044 | S31: 1145 | T31: 63800 | U31: Alexandria MSA | V31: Alexandria | W31: Grant | Y31: 0.1511768662 | Z31: 0.1698841699 | AA31: 0.4677966102 | AB31: 0.201895584 | AC31: 0.285935085 | AD31: 40577
A32: Iberia | B32: 30000 | C32: Yes | D32: No | E32: 700 | F32: 704 | G32: 927 | H32: 1180 | I32: 1448 | J32: 525 | K32: 562 | L32: 675 | M32: 780 | N32: 870 | O32: 614 | P32: 629 | Q32: 828 | R32: 980 | S32: 1074 | T32: 74900 | U32: Lafayette MSA | V32: Lafayette | Y32: 0.1444250539 | Z32: 0.1603192325 | AA32: 0.4814814815 | AB32: 0.2036503229 | AC32: 0.337848006 | AD32: 44504
A33: Iberville | B33: 31800 | C33: Yes | D33: No | E33: 687 | F33: 708 | G33: 800 | H33: 1137 | I33: 1308 | J33: 557 | K33: 596 | L33: 716 | M33: 826 | N33: 922 | O33: 604 | P33: 630 | Q33: 742 | R33: 1016 | S33: 1135 | T33: 88100 | U33: Baton Rouge MSA | V33: Baton Rouge | Y33: 0.1556367369 | Z33: 0.195318289 | AA33: 0.5143518519 | AB33: 0.1928508683 | AC33: 0.355635615 | AD33: 47128
A34: Jackson | B34: 28600 | C34: Yes | D34: No | E34: 567 | F34: 651 | G34: 740 | H34: 990 | I34: 994 | J34: 501 | K34: 536 | L34: 643 | M34: 743 | N34: 830 | O34: 529 | P34: 589 | Q34: 696 | R34: 919 | S34: 944 | V34: Monroe | Y34: 0.1934553661 | Z34: 0.2281655679 | AA34: 0.5623100304 | AB34: 0.2538492983 | AC34: 0.4598930481 | AD34: 36394
A35: Jefferson | B35: 39200 | C35: No | D35: No | E35: 848 | F35: 1002 | G35: 1182 | H35: 1524 | I35: 1770 | J35: 686 | K35: 735 | L35: 882 | M35: 1019 | N35: 1137 | O35: 786 | P35: 927 | Q35: 1089 | R35: 1291 | S35: 1421 | T35: 81800 | U35: New Orleans - Metairie MSA | V35: New Orleans | Y35: 0.1619698974 | Z35: 0.1364297654 | AA35: 0.5369556465 | AB35: 0.1631706366 | AC35: 0.3106768006 | AD35: 50868
A36: Jefferson Davis | B36: 31800 | C36: Yes | D36: No | E36: 605 | F36: 646 | G36: 740 | H36: 1052 | I36: 1076 | J36: 557 | K36: 596 | L36: 696 | M36: 826 | N36: 922 | O36: 577 | P36: 611 | Q36: 696 | R36: 940 | S36: 944 | V36: Lake Charles | Y36: 0.163795574 | Z36: 0.1908676095 | AA36: 0.5170325511 | AB36: 0.196043341 | AC36: 0.2428307123 | AD36: 40744
A37: Lafayette | B37: 38250 | C37: Yes | D37: Yes | E37: 558 | F37: 562 | G37: 740 | H37: 944 | I37: 1041 | J37: 608 | K37: 717 | L37: 861 | M37: 995 | N37: 1110 | O37: 608 | P37: 781 | Q37: 890 | R37: 1202 | S37: 1385 | T37: 74900 | U37: Lafayette MSA | V37: Lafayette | Y37: 0.123720774 | Z37: 0.1166857337 | AA37: 0.4870278312 | AB37: 0.1663740745 | AC37: 0.2220123103 | AD37: 53950
A38: Lafourche | B38: 34700 | C38: No | D38: No | E38: 658 | F38: 871 | G38: 984 | H38: 1291 | I38: 1670 | J38: 598 | K38: 651 | L38: 781 | M38: 902 | N38: 1007 | O38: 598 | P38: 700 | Q38: 890 | R38: 1139 | S38: 1251 | T38: 67600 | U38: Houma-Thibodeaux MSA | V38: Lafayette | Y38: 0.1473825832 | Z38: 0.1690623072 | AA38: 0.4669987547 | AB38: 0.1601285299 | AC38: 0.1852331606 | AD38: 52705
A39: Lasalle | B39: 28400 | C39: Yes | D39: No | E39: 656 | F39: 780 | G39: 981 | H39: 1266 | I39: 1428 | J39: 500 | K39: 535 | L39: 642 | M39: 742 | N39: 828 | O39: 529 | P39: 544 | Q39: 696 | R39: 894 | S39: 980 | V39: Alexandria | W39: =+A39 -> Lasalle | Y39: 0.1671801741 | Z39: 0.1557395225 | AA39: 0.3786764706 | AB39: 0.2483694041 | AC39: 0.4785407725 | AD39: 34712
A40: Lincoln | B40: 30500 | C40: Yes | D40: No | E40: 538 | F40: 663 | G40: 805 | H40: 1050 | I40: 1371 | J40: 533 | K40: 571 | L40: 686 | M40: 793 | N40: 885 | O40: 593 | P40: 653 | Q40: 780 | R40: 997 | S40: 1093 | V40: Shreveport | Y40: 0.1298174015 | Z40: 0.1360757469 | AA40: 0.6833682321 | AB40: 0.3117091831 | AC40: 0.3790801187 | AD40: 34424
A41: Livingston | B41: 44350 | C41: Yes | D41: Yes | E41: 859 | F41: 876 | G41: 1005 | H41: 1266 | I41: 1644 | J41: 744 | K41: 781 | L41: 917 | M41: 1153 | N41: 1286 | O41: 744 | P41: 781 | Q41: 917 | R41: 1161 | S41: 1447 | T41: 88100 | U41: Baton Rouge MSA | V41: Baton Rouge | Y41: 0.1313678007 | Z41: 0.1348979427 | AA41: 0.3947045845 | AB41: 0.1321165574 | AC41: 0.1427188643 | AD41: 60456
A42: Madison | B42: 27050 | C42: Yes | D42: No | E42: 563 | F42: 566 | G42: 740 | H42: 1026 | I42: 1247 | J42: 473 | K42: 507 | L42: 608 | M42: 703 | N42: 785 | O42: 549 | P42: 552 | Q42: 696 | R42: 880 | S42: 963 | V42: Monroe | Y42: 0.1363636364 | Z42: 0.1288835438 | AA42: 0.5288953914 | AB42: 0.3644205399 | AC42: 0.625 | AD42: 29424
A43: Morehouse | B43: 27050 | C43: Yes | D43: No | E43: 609 | F43: 613 | G43: 740 | H43: 941 | I43: 1260 | J43: 473 | K43: 507 | L43: 608 | M43: 703 | N43: 785 | O43: 584 | P43: 588 | Q43: 696 | R43: 880 | S43: 963 | V43: Monroe | Y43: 0.1813997718 | Z43: 0.1554048758 | AA43: 0.5972117558 | AB43: 0.2761414133 | AC43: 0.3511615343 | AD43: 31672
A44: Natchitoches | B44: 27600 | C44: Yes | D44: No | E44: 570 | F44: 648 | G44: 853 | H44: 1080 | I44: 1146 | J44: 483 | K44: 518 | L44: 621 | M44: 718 | N44: 801 | O44: 539 | P44: 616 | Q44: 787 | R44: 900 | S44: 984 | V44: Shreveport | Y44: 0.1590996389 | Z44: 0.1579894622 | AA44: 0.6596732588 | AB44: 0.3192900587 | AC44: 0.4224382341 | AD44: 29001
A45: Orleans | B45: 39200 | C45: No | D45: No | E45: 848 | F45: 1002 | G45: 1182 | H45: 1524 | I45: 1770 | J45: 686 | K45: 735 | L45: 882 | M45: 1019 | N45: 1137 | O45: 786 | P45: 927 | Q45: 1089 | R45: 1291 | S45: 1421 | T45: 81800 | U45: New Orleans - Metairie MSA | V45: New Orleans | Y45: 0.1382470078 | Z45: 0.1384482971 | AA45: 0.6109697294 | AB45: 0.2536060921 | AC45: 0.398063289 | AD45: 38721
A46: Ouachita | B46: 29250 | C46: Yes | D46: Yes | E46: 665 | F46: 669 | G46: 881 | H46: 1093 | I46: 1184 | J46: 512 | K46: 548 | L46: 658 | M46: 760 | N46: 848 | O46: 615 | P46: 619 | Q46: 815 | R46: 955 | S46: 1046 | T46: 55800 | U46: Monroe MSA | V46: Monroe | Y46: 0.1429813403 | Z46: 0.1295039892 | AA46: 0.5617539955 | AB46: 0.2452118105 | AC46: 0.4347201006 | AD46: 40081
A47: Plaquemines | B47: 39200 | C47: No | D47: No | E47: 848 | F47: 1002 | G47: 1182 | H47: 1524 | I47: 1770 | J47: 686 | K47: 735 | L47: 882 | M47: 1019 | N47: 1137 | O47: 786 | P47: 927 | Q47: 1089 | R47: 1291 | S47: 1421 | T47: 81800 | U47: New Orleans - Metairie MSA | V47: New Orleans | Y47: 0.1228092673 | Z47: 0.1045978546 | AA47: 0.4379593601 | AB47: 0.1926032035 | AC47: 0.245625 | AD47: 49635
A48: Pointe Coupee | B48: 44350 | C48: Yes | D48: No | E48: 859 | F48: 876 | G48: 1005 | H48: 1266 | I48: 1644 | J48: 744 | K48: 781 | L48: 917 | M48: 1153 | N48: 1286 | O48: 744 | P48: 781 | Q48: 917 | R48: 1161 | S48: 1447 | T48: 88100 | U48: Baton Rouge MSA | V48: Baton Rouge | Y48: 0.1957702842 | Z48: 0.2110278179 | AA48: 0.4225941423 | AB48: 0.1749601639 | AC48: 0.2093918399 | AD48: 43964
A49: Rapides | B49: 31900 | C49: Yes | D49: No | E49: 601 | F49: 683 | G49: 899 | H49: 1219 | I49: 1307 | J49: 543 | K49: 598 | L49: 718 | M49: 830 | N49: 926 | O49: 543 | P49: 637 | Q49: 818 | R49: 1044 | S49: 1145 | T49: 63800 | U49: Alexandria MSA | V49: Alexandria | Y49: 0.1581390067 | Z49: 0.17289409 | AA49: 0.5467238212 | AB49: 0.195471281 | AC49: 0.2475559052 | AD49: 42655
A50: Red River | B50: 28300 | C50: Yes | D50: No | E50: 566 | F50: 570 | G50: 750 | H50: 913 | I50: 1058 | J50: 496 | K50: 531 | L50: 637 | M50: 736 | N50: 821 | O50: 530 | P50: 545 | Q50: 697 | R50: 862 | S50: 963 | V50: Shreveport | Y50: 0.1763154878 | Z50: 0.1497787095 | AA50: 0.4432809773 | AB50: 0.2042087938 | AC50: 0.1542553191 | AD50: 41510
A51: Richland | B51: 27050 | C51: Yes | D51: No | E51: 560 | F51: 564 | G51: 742 | H51: 903 | I51: 1149 | J51: 473 | K51: 507 | L51: 608 | M51: 703 | N51: 785 | O51: 525 | P51: 529 | Q51: 696 | R51: 860 | S51: 963 | V51: Monroe | Y51: 0.1648479558 | Z51: 0.1366139544 | AA51: 0.484029484 | AB51: 0.282116252 | AC51: 0.5351223362 | AD51: 34745
A52: Sabine | B52: 29000 | C52: Yes | D52: No | E52: 540 | F52: 614 | G52: 808 | H52: 983 | I52: 1085 | J52: 496 | K52: 543 | L52: 652 | M52: 754 | N52: 841 | O52: 496 | P52: 567 | Q52: 746 | R52: 941 | S52: 1036 | V52: Shreveport | Y52: 0.1998343342 | Z52: 0.1471739405 | AA52: 0.5173053152 | AB52: 0.1956888551 | AC52: 0.3553162853 | AD52: 40695
A53: St. Bernard | B53: 39200 | C53: No | D53: No | E53: 848 | F53: 1002 | G53: 1182 | H53: 1524 | I53: 1770 | J53: 686 | K53: 735 | L53: 882 | M53: 1019 | N53: 1137 | O53: 786 | P53: 927 | Q53: 1089 | R53: 1291 | S53: 1421 | T53: 81800 | U53: New Orleans - Metairie MSA | V53: New Orleans | Y53: 0.1112565735 | Z53: 0.1332663092 | AA53: 0.5660466211 | AB53: 0.1970137894 | AC53: 0.2802697156 | AD53: 45265
A54: St. Charles | B54: 39200 | C54: No | D54: No | E54: 848 | F54: 1002 | G54: 1182 | H54: 1524 | I54: 1770 | J54: 686 | K54: 735 | L54: 882 | M54: 1019 | N54: 1137 | O54: 786 | P54: 927 | Q54: 1089 | R54: 1291 | S54: 1421 | T54: 81800 | U54: New Orleans - Metairie MSA | V54: New Orleans | W54: St. Charles | Y54: 0.1273137612 | Z54: 0.1148548706 | AA54: 0.4905381431 | AB54: 0.1220390556 | AC54: 0.2394630034 | AD54: 64707
A55: St. Helena | B55: 44350 | C55: Yes | D55: No | E55: 859 | F55: 876 | G55: 1005 | H55: 1266 | I55: 1644 | J55: 744 | K55: 781 | L55: 917 | M55: 1153 | N55: 1286 | O55: 744 | P55: 781 | Q55: 917 | R55: 1161 | S55: 1447 | T55: 88100 | U55: Baton Rouge MSA | V55: Baton Rouge | W55: =+A55 -> St. Helena | Y55: 0.1757541155 | Z55: 0.2244622359 | AA55: 0.4428969359 | AB55: 0.2644941634 | AC55: 0.3529411765 | AD55: 35254
A56: St. James | B56: 36350 | C56: Yes | D56: No | E56: 609 | F56: 644 | G56: 848 | H56: 1205 | I56: 1271 | J56: 590 | K56: 621 | L56: 817 | M56: 945 | N56: 1055 | O56: 590 | P56: 621 | Q56: 817 | R56: 1124 | S56: 1220 | V56: New Orleans | Y56: 0.1738887596 | Z56: 0.1564747356 | AA56: 0.46328125 | AB56: 0.1558636898 | AC56: 0.2256838906 | AD56: 52055
A57: St. John | B57: 39200 | C57: No | D57: No | E57: 848 | F57: 1002 | G57: 1182 | H57: 1524 | I57: 1770 | J57: 686 | K57: 735 | L57: 882 | M57: 1019 | N57: 1137 | O57: 786 | P57: 927 | Q57: 1089 | R57: 1291 | S57: 1421 | T57: 81800 | U57: New Orleans - Metairie MSA | V57: New Orleans | W57: =+A57 -> St. John | Y57: 0.1352232297 | Z57: 0.1371941272 | AA57: 0.5201454105 | AB57: 0.1785580787 | AC57: 0.3053679346 | AD57: 53628
A58: St. Landry | B58: 27050 | C58: Yes | D58: No | E58: 558 | F58: 562 | G58: 740 | H58: 958 | I58: 1143 | J58: 473 | K58: 507 | L58: 608 | M58: 703 | N58: 785 | O58: 533 | P58: 537 | Q58: 706 | R58: 880 | S58: 963 | V58: Lafayette | X58: =+A58 -> St. Landry | Y58: 0.1554917444 | Z58: 0.1283021155 | AA58: 0.5976470588 | AB58: 0.2792356378 | AC58: 0.4926506219 | AD58: 32163
A59: St. Martin | B59: 38250 | C59: Yes | D59: No | E59: 658 | F59: 871 | G59: 984 | H59: 1291 | I59: 1670 | J59: 608 | K59: 717 | L59: 861 | M59: 995 | N59: 1110 | O59: 608 | P59: 781 | Q59: 890 | R59: 1202 | S59: 1385 | T59: 74900 | U59: Lafayette MSA | V59: Lafayette | Y59: 0.1432595273 | Z59: 0.1509098064 | AA59: 0.4584811923 | AB59: 0.1765592898 | AC59: 0.2944206009 | AD59: 47279
A60: St. Mary | B60: 28300 | C60: No | D60: No | E60: 612 | F60: 680 | G60: 865 | H60: 1109 | I60: 1327 | J60: 496 | K60: 531 | L60: 637 | M60: 736 | N60: 821 | O60: 568 | P60: 671 | Q60: 807 | R60: 923 | S60: 1010 | V60: Lafayette | W60: =+A60 -> St. Mary | Y60: 0.1597816577 | Z60: 0.1721080287 | AA60: 0.4091639871 | AB60: 0.195079325 | AC60: 0.2603012219 | AD60: 41345 | AE60: Awarded in 2020
A61: St. Tammany | B61: 39200 | C61: Yes | D61: Yes | E61: 848 | F61: 1002 | G61: 1182 | H61: 1524 | I61: 1770 | J61: 686 | K61: 735 | L61: 882 | M61: 1019 | N61: 1137 | O61: 786 | P61: 927 | Q61: 1089 | R61: 1291 | S61: 1421 | T61: 81800 | U61: New Orleans - Metairie MSA | V61: New Orleans | Y61: 0.1652401074 | Z61: 0.1416298229 | AA61: 0.5243740306 | AB61: 0.1077311306 | AC61: 0.1640204429 | AD61: 66539
A62: Tangipahoa | B62: 33800 | C62: Yes | D62: Yes | E62: 775 | F62: 780 | G62: 996 | H62: 1212 | I62: 1338 | J62: 592 | K62: 634 | L62: 761 | M62: 879 | N62: 981 | O62: 709 | P62: 714 | Q62: 913 | R62: 1109 | S62: 1218 | T62: 69700 | U62: Only Parish in Hammond LA MSA | V62: Baton Rouge | Y62: 0.1428249903 | Z62: 0.2019383205 | AA62: 0.5684463759 | AB62: 0.2191590956 | AC62: 0.3385672228 | AD62: 45901
A63: Tensas | B63: 27050 | C63: No | D63: No | E63: 558 | F63: 562 | G63: 740 | H63: 1052 | I63: 1076 | J63: 473 | K63: 507 | L63: 608 | M63: 703 | N63: 785 | O63: 529 | P63: 611 | Q63: 696 | R63: 880 | S63: 963 | V63: Monroe | W63: Tensas | Y63: 0.2184028506 | Z63: 0.1228697665 | AA63: 0.6496815287 | AB63: 0.3803913318 | AC63: 0.6111111111 | AD63: 21906
A64: Terrebonne | B64: 34700 | C64: No | D64: No | E64: 656 | F64: 780 | G64: 981 | H64: 1266 | I64: 1428 | J64: 598 | K64: 651 | L64: 781 | M64: 902 | N64: 1007 | O64: 598 | P64: 700 | Q64: 890 | R64: 1139 | S64: 1251 | T64: 67600 | U64: Houma-Thibodeaux MSA | V64: Lafayette | Y64: 0.1331157632 | Z64: 0.1529636027 | AA64: 0.4642004773 | AB64: 0.200525804 | AC64: 0.2915734526 | AD64: 47650
A65: Union | B65: 29250 | C65: Yes | D65: No | E65: 665 | F65: 669 | G65: 881 | H65: 1093 | I65: 1184 | J65: 512 | K65: 548 | L65: 658 | M65: 760 | N65: 848 | O65: 615 | P65: 619 | Q65: 815 | R65: 955 | S65: 1046 | T65: 55800 | U65: Monroe MSA | V65: Monroe | X65: =+A65 -> Union | Y65: 0.2000709944 | Z65: 0.1586228794 | AA65: 0.5636550308 | AB65: 0.2199871701 | AC65: 0.3723916533 | AD65: 38916
A66: Vermilion | B66: 35250 | C66: Yes | D66: Yes | E66: 581 | F66: 722 | G66: 815 | H66: 1040 | I66: 1095 | J66: 542 | K66: 641 | L66: 730 | M66: 916 | N66: 990 | O66: 542 | P66: 641 | Q66: 730 | R66: 955 | S66: 990 | T66: 74900 | U66: Lafayette MSA | V66: Lafayette | Y66: 0.1457529119 | Z66: 0.1602134608 | AA66: 0.4216054014 | AB66: 0.178569003 | AC66: 0.2654690619 | AD66: 49266
A67: Vernon | B67: 33000 | C67: Yes | D67: No | E67: 725 | F67: 730 | G67: 961 | H67: 1209 | I67: 1369 | J67: 577 | K67: 618 | L67: 742 | M67: 858 | N67: 957 | O67: 663 | P67: 705 | Q67: 928 | R67: 1082 | S67: 1188 | V67: Alexandria | W67: =+A67 -> Vernon | Y67: 0.115400917 | Z67: 0.1722633072 | AA67: 0.4667853719 | AB67: 0.1686903643 | AC67: 0.2247851651 | AD67: 46620 | AE67: Awarded in 2020
A68: Washington | B68: 27050 | C68: Yes | D68: Yes | E68: 627 | F68: 655 | G68: 740 | H68: 1052 | I68: 1141 | J68: 473 | K68: 507 | L68: 608 | M68: 703 | N68: 785 | O68: 590 | P68: 611 | Q68: 696 | R68: 880 | S68: 963 | V68: Baton Rouge | X68: =+A68 -> Washington | Y68: 0.1795948244 | Z68: 0.2321112232 | AA68: 0.5774841729 | AB68: 0.2625969646 | AC68: 0.4079186342 | AD68: 32962
A69: Webster | B69: 27050 | C69: Yes | D69: No | E69: 558 | F69: 562 | G69: 740 | H69: 999 | I69: 1002 | J69: 473 | K69: 507 | L69: 608 | M69: 703 | N69: 785 | O69: 529 | P69: 537 | Q69: 696 | R69: 880 | S69: 963 | T69: 65500 | U69: Shreveport-Bossier City MSA | V69: Shreveport | Y69: 0.1912194391 | Z69: 0.1692417886 | AA69: 0.584412082 | AB69: 0.2485390609 | AC69: 0.4786729858 | AD69: 30891
A70: West Baton Rouge | B70: 44350 | C70: Yes | D70: No | E70: 859 | F70: 876 | G70: 1005 | H70: 1266 | I70: 1644 | J70: 744 | K70: 781 | L70: 917 | M70: 1153 | N70: 1286 | O70: 744 | P70: 781 | Q70: 917 | R70: 1161 | S70: 1447 | T70: 88100 | U70: Baton Rouge MSA | V70: Baton Rouge | Y70: 0.1400971863 | Z70: 0.149214554 | AA70: 0.4770916335 | AB70: 0.1788041938 | AC70: 0.2996594779 | AD70: 60902
A71: West Carroll | B71: 27950 | C71: Yes | D71: No | E71: 558 | F71: 562 | G71: 740 | H71: 981 | I71: 1076 | J71: 490 | K71: 525 | L71: 630 | M71: 726 | N71: 811 | O71: 529 | P71: 529 | Q71: 696 | R71: 912 | S71: 998 | V71: Monroe | Y71: 0.1863579918 | Z71: 0.1316109707 | AA71: 0.449197861 | AB71: 0.2196813496 | AC71: 0.3181102362 | AD71: 37304
A72: West Feliciana | B72: 44350 | C72: Yes | D72: No | E72: 859 | F72: 876 | G72: 1005 | H72: 1266 | I72: 1644 | J72: 744 | K72: 781 | L72: 917 | M72: 1153 | N72: 1286 | O72: 744 | P72: 781 | Q72: 917 | R72: 1161 | S72: 1447 | T72: 88100 | U72: Baton Rouge MSA | V72: Baton Rouge | Y72: 0.1409989594 | Z72: 0.1150405831 | AA72: 0.3634146341 | AB72: 0.1245651814 | AC72: 0.2215088283 | AD72: 55647
A73: Winn | B73: 27050 | C73: Yes | D73: No | E73: 567 | F73: 579 | G73: 740 | H73: 1023 | I73: 1055 | J73: 473 | K73: 507 | L73: 608 | M73: 703 | N73: 785 | O73: 529 | P73: 529 | Q73: 696 | R73: 880 | S73: 963 | V73: Alexandria | X73: =+A73 -> Winn | Y73: 0.1800287062 | Z73: 0.2107067716 | AA73: 0.5952755906 | AB73: 0.2731105559 | AC73: 0.3268983269 | AD73: 29472
A75: Count | B75: =COUNT(B9:B74) -> 64 | C75: =COUNTIF(C9:C74,"Yes") -> 51 | D75: =COUNTIF(D9:D74,"Yes") -> 10

Sheet Controls (hidden)
A3: =+#REF! -> 
A4: Controls
A6: General
A7: Yes
A8: No
A9: Missing
A11: Drop-Downs for Taxpayer
A13: Limited Liability Company
A14: Limited Partnership
A15: 'S' Corporation
A16: Other
A17: Missing
A19: Controlled by For-Profit
A20: Controlled by Non-Profit
A21: Missing
A23: Managing Member
A24: Manager
A25: General Partner
A26: Managing General Partner
A27: President
A28: Other
A29: Missing
A31: Drop-Downs for Funding Pools | B31: Advisory Message | C31: Per Project Cap | D31: NHTF | E31: HOME | F31: CDBG-DR | G31: Short Name | H31: Is Rural?
A32: Qualified Non‐Profit/CHDO Set-Aside | B32: Requires the material participation of a qualified non-profit organization; see the QAP for documentation requirements. | C32: =IF($H$32="No",1500000,1000000) ->  | D32: 0 | E32: 0 | F32: 0 | G32: QNP/CHDO | H32: ='2. Project Description'!#REF! -> 
A33: Urban Area Pool | B33: The project must be located in EBR, Orleans, Caddo, Ouachita, Calcasieu, Lafayette, St. Tammany, or Jefferson parishes. | C33: 1500000 | D33: 0 | E33: 0 | F33: 0 | G33: Urban
A34: Rural Area Rehabilitation Pool | B34: The Rural project must be 50% or less new construction (by number of units). | C34: 1000000 | D34: 0 | E34: 0 | F34: 0 | G34: RuralRehab
A35: Rural Area New Construction Pool | B35: The Rural project must be more than 50% new construction (by number of units). | C35: 1000000 | D35: 0 | E35: 0 | F35: 0 | G35: RuralNew
A36: Choice Neighborhood Initiative CNI Set-Aside | B36: The project must be located in a CNI. | C36: 1500000 | D36: 0 | E36: 0 | F36: 0 | G36: CNI
A37: Reprocessing | B37: LIHTC will be allocated to projects that have previously received and allocation. | D37: 0 | E37: 0 | F37: 0 | G37: Reprocess
A38: Missing
A39: Urban Area Rehabilitation Pool | B39: The Urban project must be 50% or less new construction (by number of units). | C39: 1500000 | D39: 0 | E39: 0 | F39: 0 | G39: UrbanRehab
A40: Urban Area New Construction Pool | B40: The Urban project must be more than 50% new construction (by number of units). | C40: 1500000 | D40: 0 | E40: 0 | F40: 0 | G40: UrbanNew
A42: Drop-Downs for Project Type | B42: Related Lookup Category for HUD TDC Limits
A44: New Construction
A45: Acquisition
A46: Rehab
A47: Reconstruction
A48: Missing
A50: Detached | B50: Detached / Semi-Detached
A51: Detached / Semi-Detached | B51: Detached / Semi-Detached
A52: Elevator | B52: Elevator
A53: Missing | B53: Walkup
A54: Other | B54: Walkup
A55: Row House | B55: Row House
A56: Semi-Detached | B56: Detached / Semi-Detached
A57: Walkup | B57: Walkup
A59: 20/50
A60: 40/60
A61: Income Averaging
A62: Missing
A64: Drop-Downs for Sources of Funds
A66: Fixed Rate
A67: Floating Rate
A68: Missing
A70: Interest Only
A71: P+I
A72: P+I+MIP
A73: Missing
A75: Missing
A76: Must Pay
A77: All Pmts Deferred
A78: Pay if Cash Available
A79: Other (Explain)
A81: Third Party
A82: Identity of Interest
A83: Missing
A85: Amortizing
A86: Deferred; due at maturity
A87: Forgiven at maturity
A88: Missing
A90: Permanent Hard Debt
A91: Permanent Soft Debt
A92: Grant
A93: Permanent Equity
A94: Other (Explain)
A95: Missing
A97: Donated / Volunteer Labor
A98: Donated Materials
A99: Donated Land Value
A100: NPV of Reduced RE Taxes
A101: Other (Explain)
A102: Missing
A104: Drop-Downs for HUD TDC Table
A106: Alexandria | B106: 7
A107: Baton Rouge | B107: 11
A108: Lafayette | B108: 15
A109: Lake Charles | B109: 19
A110: Monroe | B110: 23
A111: New Orleans | B111: 27
A112: Shreveport | B112: 31
A113: Missing | B113: 35
A115: Detached / Semi-Detached
A116: Row House
A117: Walkup
A118: Elevator
A120: Drop-Downs for Utilities
A122: Natural Gas
A123: Electric
A124: Propane
A125: Oil
A126: Other
A127: Missing
A129: Natural Gas
A130: Electric
A131: Other
A132: Missing
A134: Forced Air
A135: Hot Water
A136: Other
A137: Missing
A139: Owner
A140: Tenant
A141: Missing
A143: Drop-Downs for AMIs
A145: 120% AMI
A146: 20% AMI
A147: 30% AMI
A148: 40% AMI
A149: 50% AMI
A150: 60% AMI
A151: 70% AMI
A152: 80% AMI
A153: Not AMI Restricted
A155: Drop-Downs for Extended Affordability
A157: Until after the 35th year
A158: Until after the 40th year
A159: Until after the 45th year
A160: Missing
A162: Drop-Downs for Neighborhood Features
A164: =IF(G164="Rural",E164,C164) ->  | C164: Within 1 Mile Radius | E164: Within 5 Mile Radius | G164: =IF('2. Project Description'!#REF!="Yes","Rural","Not Rural") -> 
A165: Yes | C165: Within 2 Mile Radius | E165: Over 5 Mile Radius
A166: No
A167: Missing
A169: Adjacent
A170: No | C170: Within 1/4 Mile Radius | E170: Within 1/2 Mile Radius | G170: =+'2. Project Description'!#REF! -> 
A171: Missing
A172: Within 1/2 Mile Radius
A174: Drop-Downs for Appendix 1
A176: Requested
A177: Started Construction
A178: Finished Construction
A179: 8609s
A180: Missing
A182: Drop-Downs for Appendix 2
A184: Purchase (please complete Section B below)
A185: Option to Purchase (please complete Section C below)
A186: Lease (please complete Section D below)
A187: Missing
A189: Loans from LHC
A191: LHC Home Loan
A192: CDBG-DR Loan from LHC or OCD
A193: Missing
A195: LHC Application Fee
A197: 1-4 units | B197: 100 | C197: 4
A198: 5-32 units | B198: 1000 | C198: 32
A199: 33-60 units | B199: 1500 | C199: 60
A200: 61-100 units | B200: 2500 | C200: 100
A201: Over 100 units | B201: 5000 | C201: =+C200 -> 100
A203: LHC Analysis Fee
A205: 1-4 units | B205: 100 | C205: 4
A206: 5-32 units | B206: 1000 | C206: 32
A207: 33-60 units | B207: 1500 | C207: 60
A208: 61-100 units | B208: 2500 | C208: 100
A209: Over 100 units | B209: 5000 | C209: =+C208 -> 100
A211: Drop-Downs for Appendix 36
A213: YES
A216: NO
A219: Drop-Downs for Import Tool
A221: 2018 AMEC
A222: 2017 AMEC
A223: Early 2017 AMEC
A224: Other
A226: Drop-Downs for CDBG Interest Rate
A228: 0
A229: 0.01
A230: AFR
A232: Drop-Downs for 'Other Worksheets'
A234: Not Started
A235: In Process
A236: Completed
A237: Missing
A239: LHC Asset Management Fee
A241: 1-4 units | B241: 250 | C241: 4
A242: 5-10 units | B242: 500 | C242: 10
A243: 11-20 units | B243: 1000 | C243: 20
A244: 21-50 units | B244: 2000 | C244: 50
A245: 51-100 units | B245: 2500 | C245: 100
A246: 101 units and over | B246: 3000 | C246: =+C245 -> 100
A249: Parish Drop Down
A250: Select
A251: Acadia
A252: Allen
A253: Ascension
A254: Assumption
A255: Avoyelles
A256: Beauregard
A257: Bienville
A258: Bossier
A259: Caddo
A260: Calcasieu
... 56 more rows

Sheet 2. Project Description
A3: HOMELESS & HOUSING STABILITY: AFFORDABLE HOUSING DEVELOPMENT PROGRAM
A4: Description of the Proposed Project
A6: 1 | B6: Characteristics of the Applicant
B7: Applicants must separately upload: 1. Resumes for members of the development team, 2. Organizational profiles including details on relevant, recently completed projects (within the last five years), 3. Other documentation demonstrating partnerships, experience, and capacity to serve the Qualified Population, and 4. Property Management experience. (See Checklist tab).
A10: 1.01 | B10: Applicant Name and type: (non-profit, for-profit) | H10: Missing
A11: 1.02 | B11: Address:
A12: 1.03 | B12: City, State & Zip:
A13: 1.04 | B13: Point of Contact* (first, last):
A14: 1.05 | B14: Phone:
A15: 1.06 | B15: Email:
A16: 1.07 | B16: SAMs Number:
A17: 1.08 | B17: Applicant Tax Structure: (Select one) | E17: Missing
B19: * This person will be LHC's single point of contact for the taxpayer / applicant. Please be sure that this person will be a good choice to respond to any questions from LHC during underwriting.
A21: 1.09 | B21: Developer / Sponsor
A22: =SUM(A21+0.01) -> 1.1 | B22: Address:
A23: =SUM(A22+0.01) -> 1.11 | B23: City, State & Zip:
A24: 1.12 | B24: Is the Developer a New Developer as defined in the QAP? | H24: Missing
A25: 1.13 | B25: =IF(H24="Yes","Note that, as a New Developer, you are only eligible to receive an award of tax credits for one project in this funding cycle.","") -> 
A26: 1.14 | B26: Are you requesting credits for any other projects in this QAP funding cycle? | H26: Missing
A27: 1.15 | B27: =IF(H26="Yes","No single developer will be awarded credits in excess of $3,000,000","") -> 
A28: 1.16 | B28: Is there an Identity of Interest between the Developer and the Builder? | H28: Missing
A29: 1.17 | B29: Management Agent (if applicable)
A30: 1.18 | B30: Street Address:
A31: 1.19 | B31: City, State, Zip:
A32: 1.2 | B32: Does the management agent have an Identity of Interest with the applicant or with the developer? | H32: Missing
A34: =A6+1 -> 2 | B34: Project Narrative:
B35: Describe the Project - Include all relevant project information including financing, unit count and bedroom mix, development timeline, marketing, etc.
A41: =A34+1 -> 3 | B41: Please describe how you will identify and serve the Qualifying Population.
B42: Developers should provide details on: a) The types of services and programs to be offered, b) what entities will provide them; c) demonstrate a commitment from the service providers to provide services to Qualified Population household for the proposed development; and d) state how the developer will work with Continuum of Care (COC) entities to outreach and intake tenants any time there is vacancy in a unit dedicated to a Qualified Population household.
A50: =A41+1 -> 4 | B50: Characteristics of the Project | E50: Note the Documents required to be uploaded related to the Project: 1. Site Map, 2. Ownership Evidence, 3. Site Control, 4. Zoning evidence.
A51: =A50+0.01 -> 4.01 | B51: Project Name:
A52: =A51+0.01 -> 4.02 | B52: Street Address:
A53: 4.03 | B53: City:
A54: 4.04 | B54: Parish: | G54: Region: | H54: =IF(OR(ISERROR(M54),M54="",M54=0),"Not found - please select Parish",M54) -> Not found - please select Parish | M54: =IFERROR(VLOOKUP($E$54,Parishes!$A$10:$V$73,22,FALSE),"") -> 
A55: 4.05 | B55: Zip Code:
A56: 4.06 | B56: MSA: | E56: =IF(OR(ISERROR(M56),M56=0),"Not located in an MSA",IF(M56="","Not found - Please select a Parish above",M56)) -> Not found - Please select a Parish above | M56: =IFERROR(VLOOKUP(E54,Parishes!A10:U73,21,FALSE),"") -> 
A57: 4.07 | B57: Coordinates: | D57: X: | G57: Y:
A59: =A57+0.01 -> 4.08 | B59: Is the entire project located on a single site? | H59: Missing
A61: =A59+0.01 -> 4.09 | B61: What is the primary development type? | H61: Missing
A62: 4.1 | B62: What is the primary building type for this project? | H62: Missing
A64: =A62+0.01 -> 4.11 | B64: Is any part of the project located in:
A65: 4.12 | B65: … a Difficult Development Area? | H65: Missing
A66: 4.13 | B66: … a Qualified Census Tract? | H66: Missing
A67: 4.14 | B67: … a Federally recognized or State recognized Tribal Organization? | H67: Missing
A68: 4.15 | B68: … a Choice Neighborhood Initiative census tract? | H68: Missing
A69: 4.16 | B69: … an area part of a Concerted Community Revitalization Plan? | H69: Missing
A70: =A69+0.01 -> 4.17 | B70: Is this a Rural Area Project? | H70: Missing
A71: =A70+0.01 -> 4.18 | B71: Is this an Existing LIHTC Project? | H71: Missing
A72: 4.19 | B72: Is this a rehabilitation of existing USDA, or Federally Funded project? This would include (for example) any project receiving Section 8, RD Rental Assistance, HOME, CDBG, or public housing funding; or that has a mortgage loan with a federally subsidized interest rate. | H72: Missing
A74: =A50 +1 -> 5 | B74: Project Schedule
A75: 5.01 | B75: A. SITE | H75: Estimated Date
A76: 5.02 | C76: Option/Contract
A77: 5.03 | C77: Site Acquisition
A78: 5.04 | C78: Zoning Approval
A79: 5.05 | C79: Site Analysis
A80: 5.06 | C80: Environmental Clearance
A81: 5.07 | B81: B. FINANCING
A82: 5.08 | B82: 1. Construction Loan / Interim Financing
A83: 5.09 | C83: Loan Application
A84: 5.1 | C84: Conditional Commitment
A85: 5.11 | C85: Firm Commitment
A86: 5.12 | B86: 2. Permanent Loan
A87: 5.13 | C87: Loan Application
A88: 5.14 | C88: Conditional Commitment
A89: 5.15 | C89: Firm Commitment
A90: 5.16 | B90: 3. Other Loans and Grants #1
A91: 5.17 | C91: Type and Source
A92: 5.18 | C92: Application
A93: 5.19 | C93: Award
A94: 5.2 | B94: 4. Other Loans and Grants #2
A95: 5.21 | C95: Type and Source
A96: 5.22 | C96: Application
A97: 5.23 | C97: Award
A98: 5.24 | B98: 5. Other Loans and Grants #3
A99: 5.25 | C99: Type and Source
A100: 5.26 | C100: Application
A101: 5.27 | C101: Award
A102: 5.28 | B102: C. PLANS AND SPECS, WORKING DRAWINGS
A103: 5.29 | B103: D. INITIAL CLOSING AND TRANSFER OF PROPERTY
A104: 5.3 | B104: E. CONSTRUCTION START
A105: 5.31 | C105: 10% Construction Complete
A106: 5.32 | C106: 50% Construction Complete
A107: 5.33 | C107: 90% Construction Complete
A108: 5.34 | B108: F. COMPLETION DATE
A109: 5.35 | B109: G. CERTIFICATE OF OCCUPANCY
A110: 5.36 | B110: H. PLACED IN SERVICE DATE (FIRST BUILDING)
A111: 5.37 | B111: I. PLACED IN SERVICE DATE (FINAL BUILDING)
A112: 5.38 | B112: J. 10% OF UNIT OCCUPANCY ACHIEVED
A113: 5.39 | B113: K. FINAL CLOSING (ALL PERMANENT FINANCING)
A114: 5.4 | B114: Applicant comment regarding Project Schedule:
A115: 5.41 | B115: Comment
A117: =A74+1 -> 6 | B117: Targeted Population Type
A118: =A117+0.01 -> 6.01 | B118: Will the project serve Qualifying Populations? | H118: Missing
B119: =IF(H118="Yes","There will be a question on the Checklist worksheet","") -> 
A120: =A118+0.01 -> 6.02 | B120: Will the project also serve: | F120: Yes/No | H120: Number of Units
A121: =A120+0.01 -> 6.03 | B121: Disabled Households | F121: Missing | H121: Missing
A122: =A121+0.01 -> 6.04 | B122: Single Parent Households | F122: Missing | H122: Missing
A123: 6.05 | B123: Elderly | F123: Missing | H123: Missing
A124: 6.06 | B124: Formerly Incarcerated | F124: Missing | H124: Missing
A125: 6.07 | B125: Persons Living with HIV/AIDS | F125: Missing | H125: Missing
A126: 6.08 | B126: LGBTQ Community | F126: Missing | H126: Missing
A127: 6.09 | B127: Veterans | F127: Missing | H127: Missing
A129: =A117+1 -> 7 | B129: Priority Development Areas and Other Preferences
A130: =A129+0.01 -> 7.01 | B130: Additional Financial Support? | H130: Missing
A131: =A130+0.01 -> 7.02 | B131: =IF(H130="Yes","Complete Section "&A132,"If No Skip to Section "&(A134)) -> If No Skip to Section 8
A132: 7.03 | B132: What is the amount of Additional Financial Support? | H132: 0
A134: =A129+1 -> 8 | B134: Location Characteristics
A135: 8.01 | B135: Positive Neighborhood Features: | M135: =SUM(M136:M145) -> 0
A136: 8.02 | B136: Grocery Store | H136: Missing | M136: =IF('2. Project Description'!H136=Controls!$C$164,1,IF('2. Project Description'!H136=Controls!$C$165,0.5,IF('2. Project Description'!H136=Controls!$C$164,1,0))) -> 0
A137: 8.03 | B137: Fresh produce market or fruit stand (must be located in a fixed structure) | H137: Missing | M137: =IF('2. Project Description'!H137=Controls!$C$164,1,IF('2. Project Description'!H137=Controls!$C$165,0.5,IF('2. Project Description'!H137=Controls!$C$164,1,0))) -> 0
A138: 8.04 | B138: Hospital / Doctor Office or Clinic | H138: Missing | M138: =IF('2. Project Description'!H138=Controls!$C$164,1,IF('2. Project Description'!H138=Controls!$C$165,0.5,IF('2. Project Description'!H138=Controls!$C$164,1,0))) -> 0
A139: 8.05 | B139: Bank / Credit Unit with Live Tellers | H139: Missing | M139: =IF('2. Project Description'!H139=Controls!$C$164,1,IF('2. Project Description'!H139=Controls!$C$165,0.5,IF('2. Project Description'!H139=Controls!$C$164,1,0))) -> 0
A140: 8.06 | B140: Elementary, Secondary or Post Secondary School | H140: Missing | M140: =IF('2. Project Description'!H140=Controls!$C$164,1,IF('2. Project Description'!H140=Controls!$C$165,0.5,IF('2. Project Description'!H140=Controls!$C$164,1,0))) -> 0
A141: 8.07 | B141: 4-Year College; University; or Voc/Tech/Comm College | H141: Missing | M141: =IF('2. Project Description'!H141=Controls!$C$164,1,IF('2. Project Description'!H141=Controls!$C$165,0.5,IF('2. Project Description'!H141=Controls!$C$164,1,0))) -> 0
A142: 8.08 | B142: Pharmacy / Drug Store (not including pharmacies with hospitals) | H142: Missing | M142: =IF('2. Project Description'!H142=Controls!$C$164,1,IF('2. Project Description'!H142=Controls!$C$165,0.5,IF('2. Project Description'!H142=Controls!$C$164,1,0))) -> 0
A143: 8.09 | B143: Public Transportation (shuttle services excluded) | H143: Missing | M143: =IF('2. Project Description'!H143=Controls!$C$164,1,IF('2. Project Description'!H143=Controls!$C$165,0.5,IF('2. Project Description'!H143=Controls!$C$164,1,0))) -> 0
A144: 8.1 | B144: LA Licensed (current) Adult/Child Day Care / After School Care | H144: Missing | M144: =IF('2. Project Description'!H144=Controls!$C$164,1,IF('2. Project Description'!H144=Controls!$C$165,0.5,IF('2. Project Description'!H144=Controls!$C$164,1,0))) -> 0
A145: 8.11 | B145: Public Park | H145: Missing | M145: =IF('2. Project Description'!H145=Controls!$C$164,1,IF('2. Project Description'!H145=Controls!$C$165,0.5,IF('2. Project Description'!H145=Controls!$C$164,1,0))) -> 0
H146: Within 1 Mile Radius
A147: =A134+1 -> 9 | B147: Project Characteristics
A148: 9.01 | B148: Does the project meet Enterprise Green Communities (EGC) certification as explained in NOFA? | H148: Missing
A149: 9.02 | B149: Will washers and dryers be installed and maintained in each unit? | H149: Missing | M149: =IF(H149="Yes","W/D","") -> 
A150: 9.03 | B150: Will a be dishwashers installed and maintained in each unit? | H150: Missing | M150: =IF(H150<>"Yes",M149,IF(M149="","DW",M149&", DW")) -> 
A151: 9.04 | B151: Free Development Tenant Wi-Fi | H151: Missing | GS151: =IF(#REF!="Yes",IF(H151<>"Yes","Required for Smart thermostat","")) -> 
A152: =SUM(A151+0.01) -> 9.05 | B152: Does the project have Universal Design, as explained in NOFA? | H152: Missing
A154: =A151+0.01 -> 9.05 | B154: Amenities included in Units:
A155: =A154+0.01 -> 9.06 | B155: Oven / Range | H155: Missing
A156: 9.07 | B156: Refrigerator | H156: Missing
A157: 9.08 | B157: Microwave | H157: Missing
A158: 9.09 | B158: Dishwasher | H158: Missing
A159: 9.1 | B159: Garbage Disposal | H159: Missing
A160: 9.11 | B160: Washer / Dryer | H160: Missing
A161: 9.12 | B161: Washer / Dryer Hookup | H161: Missing
A162: 9.13 | B162: Heating System:
A163: 9.14 | B163: Heating Fuel | H163: Missing
A164: 9.15 | B164: System Type | H164: Missing
A165: 9.16 | B165: Comment
A167: =SUM(A165+0.01) -> 9.17 | B167: Which of the following are located on the project site?
A168: =SUM(A167+0.01) -> 9.18 | B168: Playground | H168: Missing
A169: 9.19 | B169: ="Computer Center (at least 5 computers)" -> Computer Center (at least 5 computers) | H169: Missing
A170: 9.2 | B170: Exercise Room (must have equipment) | H170: Missing
A171: 9.21 | B171: Picnic Area With Permanent Grill | H171: Missing
A172: 9.22 | B172: Courtyard with Seating | H172: Missing
A174: =SUM(A172+0.01) -> 9.23 | B174: Accessible Units Required Under Section 504. | H174: Missing
A175: =SUM(A174+0.01) -> 9.24 | B175: How many total units in the project are accessible to people with mobility, hearing, or vision impairments (as defined under Section 504 of the Rehabilitation Act of 1973)?
A177: =SUM(A175+0.01) -> 9.25 | B177: Does the project have any of the following Resiliency Standards, as explained in NOFA?
A178: 9.26 | B178: FORTIFIED Roof - REQUIRED for new construction only | H178: Missing
A179: 9.27 | B179: FORTFIED GOLD: | H179: Missing
A180: 9.28 | B180: FORTFIED SILVER: | H180: Missing

Sheet 3. Funding Characteristics
A3: ='2. Project Description'!A3 -> HOMELESS & HOUSING STABILITY: AFFORDABLE HOUSING DEVELOPMENT PROGRAM
A4: Funding Characteristics of the Proposed Project
A6: ='2. Project Description'!A147+1 -> 10 | B6: Project Funding Characteristics
B7: HHSD Funds (HOME-ARP and CDBG-DR)
A8: 10.01 | B8: Amount of HHSD Funds Requested | H8: 0
B9: Tax-Exempt Bond Financing
A10: =A8+0.01 -> 10.02 | B10: Does the financing plan include tax-exempt bond financing? | H10: Missing
A11: =SUM(A10+0.01) -> 10.03 | B11: =IF(H10="Yes","Explain below","If No Skip to Question "&A22) -> If No Skip to Question 10.12
A12: =SUM(A11+0.01) -> 10.04 | B12: Comment
A13: 10.05 | B13: Does your transaction include 4% ("30% PV") LIHTCs? | H13: Missing | M13: =IF(H13="Yes","4% LIHTC + Bonds","") ->  | P13: =IF(M13="","",IF(AND(M22="",#REF!=""),M13&" only",IF(#REF!="",M13,M13&", "))) -> 
A14: 10.06 | B14: Indicate below the appropriate housing credit rate (typically more than 3.0% and less than 4.0%). This is published monthly by the Internal Revenue Service.
A15: 10.07 | B15: The housing credit rate is estimated to be: | H15: 0
A16: 10.08 | B16: Comment
A18: =SUM(A16+0.01) -> 10.09 | B18: What are the estimated costs of issuance? | H18: 0
A19: 10.1 | B19: Please explain below the role of tax-exempt bond financing in the financing plan, what governmental entity is planned to be the issuer, and the current state of your discussions with the issuer.
A20: 10.11 | B20: Comment
A22: =SUM(A20+0.01) -> 10.12 | B22: Does your transaction include 9% ("70% PV") LIHTCs? | H22: Missing | M22: =IF(H22="Yes","9% LIHTC","") ->  | P22: =IF(M22="","",IF(AND(M13="",#REF!=""),M22&" only",M22&", ")) -> 
A23: 10.13 | B23: If yes, credits requested? | H23: 0
A24: 10.14 | B24: If yes, What is new construction / rehabilitation housing cedit rating | H24: 0
A25: 10.15 | B25: If yes, What is the acquisition housing credit rate estimated to be: | H25: 0
A26: =SUM(A25+0.01) -> 10.16 | B26: LIHTC Set-Aside Election | H26: Missing
A27: 10.17 | B27: Does your transaction include other Funds such as HOME, NHTF, CDBG-DR Loan from LHC or OCD? | H27: Missing
A29: 11 | B29: Permanent Sources of Funds
B30: Applicant must separately upload their funding Commitment Letters.
A31: =A29+0.01 -> 11.01 | B31: ="Any sources of funds with 'must-pay' debt service should be entered in "&A34&", "&A50&", or "&A75&"." -> Any sources of funds with 'must-pay' debt service should be entered in 11.03, 11.04, or 11.05.
A32: =A31+0.01 -> 11.02 | B32: ="Soft debt / equity / grants should be entered in the remaining portions of Section "&A29&"." -> Soft debt / equity / grants should be entered in the remaining portions of Section 11.
A34: =A32+0.01 -> 11.03 | B34: New LHC Risk Sharing First Mortgage Loan | F34: if applicable
B35: Description: | E35: New LHC Risk Sharing First Mortgage Loan
B36: Loan Amount: | E36: 0
B37: Lender: | E37: Louisiana Housing Corporation
B38: Lender is: | E38: Third Party
B39: Interest Rate: | E39: 0 | F39: per year | M39: =+E36*E39 -> 0 | N39: annual interest
B40: Fixed or Floating Rate? | E40: Missing | G40: =" "&IF(E40=Controls!A67,"Provide explanation below","") -> 
B41: Amortization Term: | E41: 0 | F41: months | G41: =+E41/12 -> 0 | H41: years | M41: =IF(E41=0,0,-PMT(E39/12,E41,E36)*12) -> 0 | N41: annual P+I
B42: Maturity Term: | E42: 0 | F42: months | G42: =+E42/12 -> 0 | H42: years
B43: Mtg. Ins. Premium: | E43: 0 | F43: per year | M43: =+E36*E43 -> 0 | N43: first year MIP
B44: Type of Payment: | E44: Missing | M44: =MATCH(E44,Controls!$A$70:$A$73,0) -> 4
B45: Annual Payment: | E45: =+M45 -> 0 | G45: =IF(E36=0,""," "&"LHC calculates "&TEXT(M45,"#,##0.00")&" ("&N45&")") ->  | M45: =CHOOSE(M44,M39,M41,M41+M43,0) -> 0
B46: Payment Requirement: | E46: Missing | G46: =" "&IF(E46=Controls!$A$76,"",IF(E46=Controls!$A$75,"","Provide explanation below")) -> 
B47: ="Applicant comments regarding "&E35&":" -> Applicant comments regarding New LHC Risk Sharing First Mortgage Loan:
B48: Comment
A50: =A34+0.01 -> 11.04 | B50: Existing or New First Mortgage Loan
B51: Description:
B52: Original Loan Amount: | G52: At time loan is/was originated | M52: =+E63-G64*365.25 -> 00:00:00 | N52: Calculated orgination date
B53: Origination Date: | G53: (If loan is existing) | M53: ='2. Project Description'!H103 -> 00:00:00 | N53: Initial closing
B54: Est'd Balance: | G54: ="As of "&TEXT('2. Project Description'!H103,"mmm-d-yyyy")&" initial closing" -> As of Jan-0-1900 initial closing
B55: Lender:
B56: Loan Type:
B57: Loan Servicer:
B58: Prepayment Penalty?
B59: Lock Out Date?
B60: Lender is: | E60: Missing
B61: Interest Rate: | E61: 0 | F61: per year | M61: =+E54*E61 -> 0 | N61: annual interest
B62: Fixed or Floating Rate? | E62: Missing | G62: =" "&IF(E62=Controls!A67,"Provide explanation below","") -> 
B63: Amortization End Date: | G63: =IF(E53=0,G64,M64) -> 0 | H63: years from origination | M63: =+(E63-E53)/365.25 -> 0 | N63: years (from user's orgination date)
B64: Amortization Term: | F64: months | G64: =+E64/12 -> 0 | H64: years from origination | M64: =IF(OR(E52=0,E64=0),0,-PMT(E61/12,E64,E52)*12) -> 0 | N64: annual P+I
B65: Remaining: | E65: =IFERROR(+G65*12,"") -> 0 | F65: months | G65: =IF(M68<G64,ROUND(M68,1),G64) -> 0 | H65: years from initial closing | M65: =+(E63-M53)/365.25 -> 0
B66: Maturity Date: | G66: =ROUND(M69,1) -> 4 | H66: years from origination | M66: =+(E66-E53)/365.25 -> 0 | N66: years | O66: =+(E63-E66)/365.25 -> 0 | P66: years before amortization end date
B67: Remaining: | E67: =IFERROR(+E65-O66*12,"") -> 0 | F67: months | G67: =+E67/12 -> 0 | H67: years from initial closing | M67: =+(E66-M53)/365.25 -> 0
B68: Mtg. Ins. Premium: | E68: 0 | F68: per year | M68: =+E54*E68 -> 0 | N68: first year MIP
B69: Type of Payment: | E69: Missing | M69: =MATCH(E69,Controls!$A$70:$A$73,0) -> 4
B70: Annual Payment: | E70: =M70 -> 0 | G70: =IF(E52=0,""," "&"LHC calculates "&TEXT(#REF!,"#,##0.00")&" ("&#REF!&")") ->  | M70: =CHOOSE(M69,M61,M64,M64+M68,0) -> 0
B71: Payment Requirement: | E71: Missing | G71: =" "&IF(E71=Controls!$A$76,"",IF(E71=Controls!$A$75,"","Provide explanation below")) -> 
B72: ="Applicant comments regarding "&E51&":" -> Applicant comments regarding :
B73: Comment
A75: =A50+0.01 -> 11.05 | B75: Existing or New Second Mortgage Loan | F75: if applicable
B76: Description: | E76: Non-LHC loan #2 (identify lender):
B77: Original Loan Amount: | E77: 0 | G77: At time loan is/was originated
B78: Origination Date: | M78: ='2. Project Description'!H103 -> 00:00:00 | N78: Initial closing
B79: Est'd Balance: | E79: 0 | G79: ="As of "&TEXT('2. Project Description'!H103,"mmm-d-yyyy")&" initial closing" -> As of Jan-0-1900 initial closing
B80: Lender: | E80: Missing
B81: Loan Type: | E81: Missing
B82: Loan Servicer: | E82: Missing
B83: Prepayment Penalty? | E83: Missing
B84: Lock Out Date? | E84: Missing
B85: Lender is: | E85: Missing
B86: Interest Rate: | E86: 0 | F86: per year | M86: =+E79*E86 -> 0 | N86: annual interest
B87: Fixed or Floating Rate? | E87: Missing | G87: =" "&IF(E87=Controls!A67,"Provide explanation below","") -> 
B88: Amortization End Date: | G88: =IF(E78=0,G89,M88) -> 0 | H88: years from origination | M88: =+(E88-E78)/365.25 -> 0 | N88: years (from user's orgination date)
B89: Amortization Term: | E89: 0 | F89: months | G89: =+E89/12 -> 0 | H89: years from origination | M89: =IF(OR(E77=0,E89=0),0,-PMT(E86/12,E89,E77)*12) -> 0 | N89: annual P+I
B90: Remaining: | E90: =+G90*12 -> 0 | F90: months | G90: =IF(M90<G89,ROUND(M90,1),G89) -> 0 | H90: years from initial closing | M90: =+(E88-M78)/365.25 -> 0
B91: Maturity Date: | G91: =ROUND(M91,1) -> 0 | H91: years from origination | M91: =+(E91-E78)/365.25 -> 0 | N91: years | O91: =+(E88-E91)/365.25 -> 0 | P91: years before amortization end date
B92: Remaining: | E92: =+E90-O91*12 -> 0 | F92: months | G92: =+E92/12 -> 0 | H92: years from initial closing | M92: =+(E91-M78)/365.25 -> 0
B93: Mtg. Ins. Premium: | E93: 0 | F93: per year | M93: =+E79*E93 -> 0 | N93: first year MIP
B94: Type of Payment: | E94: Missing | M94: =MATCH(E94,Controls!$A$70:$A$73,0) -> 4
B95: Annual Payment: | E95: =+M95 -> 0 | G95: =IF(E79=0,""," "&"LHC calculates "&TEXT(M95,"#,##0.00")&" ("&N95&")") ->  | M95: =CHOOSE(M94,M86,M89,M89+M93,0) -> 0
B96: Payment Requirement: | E96: Missing | G96: =" "&IF(E96=Controls!$A$76,"",IF(E96=Controls!$A$75,"","Provide explanation below")) -> 
B97: ="Applicant comments regarding "&E76&":" -> Applicant comments regarding Non-LHC loan #2 (identify lender)::
B98: Comment
A100: =A75+0.01 -> 11.06 | B100: Deferred Developer Fee
B101: Description: | E101: =+B100 -> Deferred Developer Fee | N101: Cumulative Surplus Cash through year 15
B102: Amount: | M102: 0.5 | N102: Maximum allowable for deferred developer fee
B103: Comment | M103: ="You proposed "&TEXT(E102,"#,##0")&" of Deferred Developer Fee (DDF), which exceeds 50% of Surplus Cash from the Proforma page ("&TEXT(#REF!,"#,##0")&"). Please reduce the DDF amount so it falls within this limitation. Note that you will need to reduce the DDF further, if you plan on charging interest, or if DDF is not first in your transaction's cash flow waterfall." -> 
A105: =A100+0.01 -> 11.07 | B105: Federal Historic Tax Credits and Equity | F105: if applicable
B106: Description: | E106: =+B105 -> Federal Historic Tax Credits and Equity
B107: Amount of Equity: | E107: 0
B108: Amount of Credits: | E108: 0
B109: Comment
A111: =A105+0.01 -> 11.08 | B111: State Historic Tax Credits and Equity | F111: if applicable
B112: Description: | E112: =+B111 -> State Historic Tax Credits and Equity
B113: Amount of Equity: | E113: 0
B114: Amount of Credits: | E114: 0
B115: =IF(OR(E113>0,E114>0),"Explain who will receive the credits, and how the proceeds of the credit sale will be provided to the applicant / taxpayer.","") -> 
B116: Comment
A118: =A111+0.01 -> 11.09 | B118: Estimated LIHTC Equity Proceeds | E118: if applicable
B119: Description: | E119: =+B118 -> Estimated LIHTC Equity Proceeds
B120: Amount: | E120: 0
B121: Comment
A123: =A118+0.01 -> 11.1 | B123: Donated Amount #1 | E123: if applicable
B124: Donation Type: | E124: Missing
B125: Description: | E125: Missing
B126: Amount: | E126: 0
B127: Comment
A130: =A123+0.01 -> 11.11 | B130: Other Permanent Source #1 | E130: if applicable
B131: Description: | E131: Other Permanent Debt
B132: Type of Funding: | E132: Missing
B133: Federal Grant?: | E133: Missing
B134: Funding Amount:
B135: Lender: | E135: Missing
B136: Lender is: | E136: Missing
B137: Interest Rate: | E137: 0 | F137: per year | M137: =+E134*E137 -> 0 | N137: annual interest
B138: Fixed or Floating Rate? | E138: Missing | G138: =" "&IF(E138=Controls!A67,"Provide explanation below","") -> 
B139: Amortization Term: | E139: 0 | F139: months | G139: =+E139/12 -> 0 | H139: years | M139: =IF(E139=0,0,-PMT(E137/12,E139,E134)*12) -> 0 | N139: annual P+I
B140: Maturity Term: | E140: 0 | F140: months | G140: =+E140/12 -> 0 | H140: years
B141: Mtg. Ins. Premium: | E141: 0 | F141: per year | M141: =+E134*E141 -> 0 | N141: first year MIP
B142: Type of Payment: | E142: Missing | M142: =MATCH(E142,Controls!$A$70:$A$73,0) -> 4
B143: Annual Payment: | E143: =+M143 -> 0 | G143: =IF(E134=0,""," "&"LHC calculates "&TEXT(M143,"#,##0.00")&" ("&N143&")") ->  | M143: =CHOOSE(M142,M137,M139,M139+M141,0) -> 0
B144: Payment Requirement: | E144: Missing | G144: =" "&IF(E144=Controls!$A$76,"",IF(E144=Controls!$A$75,"","Provide explanation below")) -> 
B145: ="Applicant comments regarding "&E131&":" -> Applicant comments regarding Other Permanent Debt:
B146: Comment
A148: =A130+0.01 -> 11.12 | B148: Other Permanent Source #1 | E148: if applicable
B149: Description: | E149: Other Permanent Debt
B150: Type of Funding: | E150: Missing
B151: Federal Grant?: | E151: Missing
B152: Funding Amount:
B153: Lender: | E153: Missing
B154: Lender is: | E154: Missing
B155: Interest Rate: | E155: 0 | F155: per year
B156: Fixed or Floating Rate? | E156: Missing | G156: =" "&IF(E156=Controls!A85,"Provide explanation below","") -> 
B157: Amortization Term: | E157: 0 | F157: months | G157: =+E157/12 -> 0 | H157: years
B158: Maturity Term: | E158: 0 | F158: months | G158: =+E158/12 -> 0 | H158: years
B159: Mtg. Ins. Premium: | E159: 0 | F159: per year
B160: Type of Payment: | E160: Missing
B161: Annual Payment: | E161: =+M161 -> 0 | G161: =IF(E152=0,""," "&"LHC calculates "&TEXT(M161,"#,##0.00")&" ("&N161&")") -> 
B162: Payment Requirement: | E162: Missing | G162: =" "&IF(E162=Controls!$A$76,"",IF(E162=Controls!$A$75,"","Provide explanation below")) -> 
B163: ="Applicant comments regarding "&E149&":" -> Applicant comments regarding Other Permanent Debt:
B164: Comment
A166: =A148+0.01 -> 11.13 | B166: Other Permanent Source #1 | E166: if applicable
B167: Description: | E167: Other Permanent Debt
B168: Type of Funding: | E168: Missing
B169: Federal Grant?: | E169: Missing
B170: Funding Amount:
B171: Lender: | E171: Missing
B172: Lender is: | E172: Missing
B173: Interest Rate: | E173: 0 | F173: per year
B174: Fixed or Floating Rate? | E174: Missing | G174: =" "&IF(E174=Controls!A103,"Provide explanation below","") -> 
B175: Amortization Term: | E175: 0 | F175: months | G175: =+E175/12 -> 0 | H175: years
B176: Maturity Term: | E176: 0 | F176: months | G176: =+E176/12 -> 0 | H176: years
B177: Mtg. Ins. Premium: | E177: 0 | F177: per year
B178: Type of Payment: | E178: Missing
B179: Annual Payment: | E179: =+M179 -> 0 | G179: =IF(E170=0,""," "&"LHC calculates "&TEXT(M179,"#,##0.00")&" ("&N179&")") -> 
B180: Payment Requirement: | E180: Missing | G180: =" "&IF(E180=Controls!$A$76,"",IF(E180=Controls!$A$75,"","Provide explanation below")) -> 
B181: ="Applicant comments regarding "&E167&":" -> Applicant comments regarding Other Permanent Debt:
B182: Comment
A184: 12 | B184: Permanent Sources of Funds (Summary)
A185: 12.01 | B185: =+E35 -> New LHC Risk Sharing First Mortgage Loan | H185: =+E36 -> 0
A186: =A185+0.01 -> 12.02 | B186: =IF(E51=0,"Other Loan With Must-Pay Debt Service",E51) -> Other Loan With Must-Pay Debt Service | H186: =+E52 -> 0
A187: =A186+0.01 -> 12.03 | B187: =IF(E76=0,"Other Loan With Must-Pay Debt Service",E76) -> Non-LHC loan #2 (identify lender): | H187: =+E77 -> 0
A188: 12.04 | B188: =B8 -> Amount of HHSD Funds Requested | H188: =H8 -> 0
A189: 12.05 | B189: =+E101 -> Deferred Developer Fee | H189: =+E102 -> 0
A190: 12.06 | B190: =+E106 -> Federal Historic Tax Credits and Equity | H190: =+E107 -> 0 | I190: *
A191: 12.07 | B191: =+E112 -> State Historic Tax Credits and Equity | H191: =+E113 -> 0
A192: 12.08 | B192: =+E119 -> Estimated LIHTC Equity Proceeds | H192: =+E120 -> 0
A193: 12.09 | B193: =+E125 -> Missing | H193: =+E126 -> 0
A194: 12.1 | B194: =IF(E131=0,"Other Source of Funds",E131) -> Other Permanent Debt | H194: =+E134 -> 0
A195: 12.11 | B195: =IF(E149=0,"Other Source of Funds",E149) -> Other Permanent Debt | H195: =+E152 -> 0
A196: 12.12 | B196: =IF(E167=0,"Other Source of Funds",E167) -> Other Permanent Debt | H196: =+E170 -> 0 | I196: =IF(E133="Yes","*","") -> 
A198: =A196+0.01 -> 12.13 | B198: Total Permanent Sources | H198: =SUM(H185:H197) -> 0
A199: =A198+0.01 -> 12.14 | B199: * Federal grants, subtract from basis | H199: =+H190+IF(I196="*",H196,0) -> 0 | I199: *
A200: =A199+0.01 -> 12.15 | B200: =IF(AND(H185>0,OR(H186>0,H187>0)),"Potential error: New LHC Risk Share loan generally doesn't permit existing first or second mortgage loan to remain in place; please explain.","") -> 
A201: 12.16 | B201: Comment
A203: 13 | B203: Construction / Development of the Project
A204: =A203+0.01 -> 13.01 | B204: Do the estimated development costs for the project include costs for equipment owned by the Developer or Builder or any related party? | H204: Missing
A205: 13.02 | B205: =IF(H204="Yes","Complete the remainder of Section "&A203,"Skip to Question "&(A211)) -> Skip to Question 13.07
A206: 13.03 | B206: Left blank intentionally.
A207: 13.04 | B207: Estimated cost to the project, to lease this equipment. | H207: 0
A208: 13.05 | B208: Estimated cost to the project, to operate this equipment. | H208: 0
A209: 13.06 | B209: Comment
A211: =A209+0.01 -> 13.07 | B211: Profit and Overhead Limitations: LHC will not allow overhead and builder profit when more than fifty percent (50%) of the contract sum in the construction contract is subcontracted to one subcontractor, material supplier or equipment lesser, or seventy-five percent (75%) or more with three or fewer subcontractors, material suppliers or equipment lessors. Please list below the three subcontractors / material suppliers / equipment lessors to whom you expect to pay the largest amounts, and the estimated amount you expect to pay to each.
A212: =A211+0.01 -> 13.08
A213: =A212+0.01 -> 13.09
A214: =A213+0.01 -> 13.1
A215: =A214+0.01 -> 13.11 | B215: If a non-LHC funder requires a third party construction manager, LHC is willing to consider allowing a Construction Manager's Fee. If you propose a non-zero fee, the Checklist will include an information request.
A216: =A215+0.01 -> 13.12 | B216: Construction Manager's Fee | H216: 0
A218: =A216+0.01 -> 13.13 | B218: Other than the developer fee, and the hard costs under the general construction contract, are there any estimated project costs that will be paid to the Developer, to related persons, or to persons with an identity of interest to the Developer? If the general contractor and the Developer are related parties, be sure to list the General Requirements, General Overhead and Builder Fee/Profit below; it is not necessary to list the hard costs under the construction contract. | H218: Missing
A219: =A218+0.01 -> 13.14 | B219: =IF(H218="Yes","Detail each such payment below","Skip to Question "&(A229)) -> Skip to Question 13.23
A220: 13.15 | B220: Payment 1 | H220: 0
A221: 13.16 | B221: Payment 2 | H221: 0
A222: 13.17 | B222: Payment 3 | H222: 0
A223: 13.18 | B223: Payment 4 | H223: 0
... 192 more rows

Sheet 4. Unit Mix and Rents
A3: ='2. Project Description'!A3 -> HOMELESS & HOUSING STABILITY: AFFORDABLE HOUSING DEVELOPMENT PROGRAM
A4: =TRIM('2. Project Description'!E51)&" ("&TRIM('2. Project Description'!E53)&" LA), "&'2. Project Description'!E21 -> ( LA),
O5: LIHTC Count | P5: Staff Unit Count | Q5: AMI Code | R5: Units Below 60 AMI | S5: Units Below 50 AMI | T5: PSH Units | U5: Non-PSH Units Below 30 AMI | V5: Units Below 20 AMI | W5: Units Below 80 AMI | X5: Units Not AMI Restr. | Y5: LIHTC Income Average Calc | Z5: LIHTC Units at 70 or 80 AMI | AB5: LIHTC Sqft | AC5: Staff Unit Sqft | AD5: Rental Subsidy Count | AE5: AMI Contract Rent Lookup | AF5: Column # | AG5: AMI Limit | AH5: FMR | AI5: Market Rent | AJ5: Min. Sqft | AK5: Min. Baths | AM5: AMI Flag | AN5: Market Flag | AO5: Sqft Flag | AP5: Baths Flag | AQ5: PSH Flag | AR5: FMR Flag | AS5: Staff Unit Flag | AU5: 0 BR Count | AV5: 1 BR Count | AW5: 2 BR Count | AX5: 3 BR Count | AY5: 4 BR Count
A6: Unit Mix, Square Footage and Rents
I7: # Rental Subsidy
A8: # | B8: Unit Type | C8: # BRs | D8: # Baths | E8: Sqft | F8: # Units | G8: # LIHTC | H8: # Staff Unit | J8: # PSH | K8: % AMI Restriction | L8: $ Rent* | M8: Notes**
A10: 1 | B10: =IF(F10=0,"",TEXT(C10,"0")&" BR "&TEXT(D10,"0.0")&" Bath") ->  | O10: =IF(G10="Yes",F10,0) -> 0 | P10: =IF(AND(H10="Yes",G10<>"Yes"),F10,0) -> 0 | Q10: =IF(K10="","",MATCH(K10,Controls!A145:A153,0)) ->  | R10: =IF(OR(Q10<2,Q10>6),0,F10) -> 0 | S10: =IF(OR(Q10<2,Q10>5),0,F10) -> 0 | T10: =IF(AND(J10="Yes",OR(C10=0,C10=1),K10=Controls!A146),F10,0) -> 0 | U10: =IF(AND(T10=0,OR(K10=Controls!A146,K10=Controls!A147)),F10,0) -> 0 | V10: =IF(Q10=2,F10,0) -> 0 | W10: =IF(OR(Q10<2,Q10>7),0,F10) -> 0 | X10: =IF(Q10=9,F10,0) -> 0 | Y10: =IF(OR(O10=0,Q10<2,Q10>8),0,O10*Q10/10) -> 0 | Z10: =IF(OR(O10=0,Q10<7,Q10>8),0,O10) -> 0 | AB10: =IF(G10="Yes",F10*E10,0) -> 0 | AC10: =IF(P10=0,0,F10*E10) -> 0 | AD10: =IF(I10="Yes",F10,0) -> 0 | AE10: =IF(K10="","",VLOOKUP(K10,'3. Funding Characteristics'!B352:G359,'4. Unit Mix and Rents'!AF10,FALSE)) ->  | AF10: =+C10+2 -> 2 | AG10: =IF(ISNA(AE10),9999,AE10) ->  | AH10: =IF(F10=0,0,INDEX('3. Funding Characteristics'!$C$376:$G$377,2,C10+1)) -> 0 | AI10: =IF(F10=0,0,INDEX('3. Funding Characteristics'!$C$368:$G$368,1,'4. Unit Mix and Rents'!C10+1)) -> 0 | AJ10: =IF(F10=0,0,INDEX($AE$44:$AI$44,1,'4. Unit Mix and Rents'!C10+1)) -> 0 | AK10: =IF(F10=0,0,INDEX($AE$44:$AI$45,2,'4. Unit Mix and Rents'!C10+1)) -> 0 | AM10: =IF(L10>AG10,1,"") ->  | AN10: =IF(L10>AI10,2,"") ->  | AO10: =IF(E10<AJ10,3,"") ->  | AP10: =IF(C10<AK10,4,"") ->  | AQ10: =IF(J10<>"Yes","",IF(AND(OR(#REF!=0,#REF!=1),K10=Controls!A146),"",5)) ->  | AR10: =IF(L10>AH10,6,"") ->  | AS10: =IF(H10<>"Yes","",IF(AND(G10<>"Yes",J10<>"Yes",K10="Not AMI Restricted",L10=0),"",7)) ->  | AU10: =IF(C10=0,F10,0) -> 0 | AV10: =IF(C10=1,F10,0) -> 0 | AW10: =IF(C10=2,F10,0) -> 0 | AX10: =IF(C10=3,F10,0) -> 0 | AY10: =IF(C10=4,F10,0) -> 0
A11: =+A10+1 -> 2 | B11: =IF(F11=0,"",TEXT(C11,"0")&" BR "&TEXT(D11,"0.0")&" Bath") ->  | O11: 0 | P11: 0 | Q11: =IF(K11="","",MATCH(K11,Controls!A145:A153,0)) ->  | R11: =IF(OR(Q11<2,Q11>6),0,F11) -> 0 | S11: =IF(OR(Q11<2,Q11>5),0,F11) -> 0 | T11: =IF(J11="Yes",F11,0) -> 0 | U11: =IF(AND(T11=0,OR(K11=Controls!A146,K11=Controls!A147)),F11,0) -> 0 | V11: =IF(Q11=2,F11,0) -> 0 | W11: 0 | X11: 0 | Y11: 0 | Z11: 0 | AB11: 0 | AC11: 0 | AD11: 0 | AE11: =IF(K11="","",VLOOKUP(K11,'3. Funding Characteristics'!B352:G359,'4. Unit Mix and Rents'!AF11,FALSE)) ->  | AF11: =+C11+2 -> 2 | AH11: =IF(F11=0,0,INDEX('3. Funding Characteristics'!$C$376:$G$377,2,C11+1)) -> 0 | AI11: =IF(F11=0,0,INDEX('3. Funding Characteristics'!$C$368:$G$368,1,'4. Unit Mix and Rents'!C11+1)) -> 0 | AJ11: =IF(F11=0,0,INDEX($AE$44:$AI$44,1,'4. Unit Mix and Rents'!C11+1)) -> 0 | AK11: =IF(F11=0,0,INDEX($AE$44:$AI$45,2,'4. Unit Mix and Rents'!C11+1)) -> 0 | AQ11: =IF(J11<>"Yes","",IF(AND(OR(#REF!=0,#REF!=1),K11=Controls!A146),"",5)) ->  | AU11: =IF(C11=0,F11,0) -> 0 | AV11: =IF(C11=1,F11,0) -> 0 | AW11: =IF(C11=2,F11,0) -> 0 | AX11: =IF(C11=3,F11,0) -> 0 | AY11: =IF(C11=4,F11,0) -> 0
A12: 3 | O12: 0 | P12: 0 | Q12: =IF(K12="","",MATCH(K12,Controls!A145:A153,0)) ->  | R12: 0 | S12: 0 | T12: 0 | U12: =IF(AND(T12=0,OR(K12=Controls!A146,K12=Controls!A147)),F12,0) -> 0 | V12: 0 | W12: 0 | X12: 0 | Y12: 0 | Z12: 0 | AB12: 0 | AC12: 0 | AD12: 0 | AE12: =IF(K12="","",VLOOKUP(K12,'3. Funding Characteristics'!B352:G359,'4. Unit Mix and Rents'!AF12,FALSE)) ->  | AF12: 2 | AH12: =IF(F12=0,0,INDEX('3. Funding Characteristics'!$C$376:$G$377,2,C12+1)) -> 0 | AI12: =IF(F12=0,0,INDEX('3. Funding Characteristics'!$C$368:$G$368,1,'4. Unit Mix and Rents'!C12+1)) -> 0 | AJ12: =IF(F12=0,0,INDEX($AE$44:$AI$44,1,'4. Unit Mix and Rents'!C12+1)) -> 0 | AK12: =IF(F12=0,0,INDEX($AE$44:$AI$45,2,'4. Unit Mix and Rents'!C12+1)) -> 0 | AQ12: =IF(J12<>"Yes","",IF(AND(OR(#REF!=0,#REF!=1),K12=Controls!A146),"",5)) ->  | AU12: 0 | AV12: 0 | AW12: 0 | AX12: 0 | AY12: 0
A13: 4 | B13: =IF(F13=0,"",TEXT(C13,"0")&" BR "&TEXT(D13,"0.0")&" Bath") ->  | O13: 0 | P13: 0 | Q13: =IF(K13="","",MATCH(K13,Controls!A145:A153,0)) ->  | R13: 0 | S13: 0 | T13: 0 | U13: =IF(AND(T13=0,OR(K13=Controls!A146,K13=Controls!A147)),F13,0) -> 0 | V13: 0 | W13: 0 | X13: 0 | Y13: 0 | Z13: 0 | AB13: 0 | AC13: 0 | AD13: 0 | AE13: =IF(K13="","",VLOOKUP(K13,'3. Funding Characteristics'!B352:G359,'4. Unit Mix and Rents'!AF13,FALSE)) ->  | AF13: 2 | AH13: =IF(F13=0,0,INDEX('3. Funding Characteristics'!$C$376:$G$377,2,C13+1)) -> 0 | AI13: =IF(F13=0,0,INDEX('3. Funding Characteristics'!$C$368:$G$368,1,'4. Unit Mix and Rents'!C13+1)) -> 0 | AJ13: =IF(F13=0,0,INDEX($AE$44:$AI$44,1,'4. Unit Mix and Rents'!C13+1)) -> 0 | AK13: =IF(F13=0,0,INDEX($AE$44:$AI$45,2,'4. Unit Mix and Rents'!C13+1)) -> 0 | AQ13: =IF(J13<>"Yes","",IF(AND(OR(#REF!=0,#REF!=1),K13=Controls!A146),"",5)) ->  | AU13: 0 | AV13: 0 | AW13: 0 | AX13: 0 | AY13: 0
A14: 5 | O14: 0 | P14: 0 | Q14: =IF(K14="","",MATCH(K14,Controls!A145:A153,0)) ->  | R14: 0 | S14: 0 | T14: 0 | U14: =IF(AND(T14=0,OR(K14=Controls!A146,K14=Controls!A147)),F14,0) -> 0 | V14: 0 | W14: 0 | X14: 0 | Y14: 0 | Z14: 0 | AB14: 0 | AC14: 0 | AD14: 0 | AE14: =IF(K14="","",VLOOKUP(K14,'3. Funding Characteristics'!B352:G359,'4. Unit Mix and Rents'!AF14,FALSE)) ->  | AF14: 2 | AH14: =IF(F14=0,0,INDEX('3. Funding Characteristics'!$C$376:$G$377,2,C14+1)) -> 0 | AI14: =IF(F14=0,0,INDEX('3. Funding Characteristics'!$C$368:$G$368,1,'4. Unit Mix and Rents'!C14+1)) -> 0 | AJ14: =IF(F14=0,0,INDEX($AE$44:$AI$44,1,'4. Unit Mix and Rents'!C14+1)) -> 0 | AK14: =IF(F14=0,0,INDEX($AE$44:$AI$45,2,'4. Unit Mix and Rents'!C14+1)) -> 0 | AQ14: =IF(J14<>"Yes","",IF(AND(OR(#REF!=0,#REF!=1),K14=Controls!A146),"",5)) ->  | AU14: 0 | AV14: 0 | AW14: 0 | AX14: 0 | AY14: 0
A15: 6 | O15: 0 | P15: 0 | Q15: =IF(K15="","",MATCH(K15,Controls!A145:A153,0)) ->  | R15: 0 | S15: 0 | T15: 0 | U15: =IF(AND(T15=0,OR(K15=Controls!A146,K15=Controls!A147)),F15,0) -> 0 | V15: 0 | W15: 0 | X15: 0 | Y15: 0 | Z15: 0 | AB15: 0 | AC15: 0 | AD15: 0 | AE15: =IF(K15="","",VLOOKUP(K15,'3. Funding Characteristics'!B352:G359,'4. Unit Mix and Rents'!AF15,FALSE)) ->  | AF15: 2 | AH15: =IF(F15=0,0,INDEX('3. Funding Characteristics'!$C$376:$G$377,2,C15+1)) -> 0 | AI15: =IF(F15=0,0,INDEX('3. Funding Characteristics'!$C$368:$G$368,1,'4. Unit Mix and Rents'!C15+1)) -> 0 | AJ15: =IF(F15=0,0,INDEX($AE$44:$AI$44,1,'4. Unit Mix and Rents'!C15+1)) -> 0 | AK15: =IF(F15=0,0,INDEX($AE$44:$AI$45,2,'4. Unit Mix and Rents'!C15+1)) -> 0 | AQ15: =IF(J15<>"Yes","",IF(AND(OR(#REF!=0,#REF!=1),K15=Controls!A146),"",5)) ->  | AU15: 0 | AV15: 0 | AW15: 0 | AX15: 0 | AY15: 0
A16: 7 | O16: 0 | P16: 0 | Q16: =IF(K16="","",MATCH(K16,Controls!A145:A153,0)) ->  | R16: 0 | S16: 0 | T16: 0 | U16: =IF(AND(T16=0,OR(K16=Controls!A146,K16=Controls!A147)),F16,0) -> 0 | V16: 0 | W16: 0 | X16: 0 | Y16: 0 | Z16: 0 | AB16: 0 | AC16: 0 | AD16: 0 | AE16: =IF(K16="","",VLOOKUP(K16,'3. Funding Characteristics'!B352:G359,'4. Unit Mix and Rents'!AF16,FALSE)) ->  | AF16: 2 | AH16: =IF(F16=0,0,INDEX('3. Funding Characteristics'!$C$376:$G$377,2,C16+1)) -> 0 | AI16: =IF(F16=0,0,INDEX('3. Funding Characteristics'!$C$368:$G$368,1,'4. Unit Mix and Rents'!C16+1)) -> 0 | AJ16: =IF(F16=0,0,INDEX($AE$44:$AI$44,1,'4. Unit Mix and Rents'!C16+1)) -> 0 | AK16: =IF(F16=0,0,INDEX($AE$44:$AI$45,2,'4. Unit Mix and Rents'!C16+1)) -> 0 | AQ16: =IF(J16<>"Yes","",IF(AND(OR(#REF!=0,#REF!=1),K16=Controls!A146),"",5)) ->  | AU16: 0 | AV16: 0 | AW16: 0 | AX16: 0 | AY16: 0
A17: 8 | O17: 0 | P17: 0 | Q17: =IF(K17="","",MATCH(K17,Controls!A145:A153,0)) ->  | R17: 0 | S17: 0 | T17: 0 | U17: =IF(AND(T17=0,OR(K17=Controls!A146,K17=Controls!A147)),F17,0) -> 0 | V17: 0 | W17: 0 | X17: 0 | Y17: 0 | Z17: 0 | AB17: 0 | AC17: 0 | AD17: 0 | AE17: =IF(K17="","",VLOOKUP(K17,'3. Funding Characteristics'!B352:G359,'4. Unit Mix and Rents'!AF17,FALSE)) ->  | AF17: 2 | AH17: =IF(F17=0,0,INDEX('3. Funding Characteristics'!$C$376:$G$377,2,C17+1)) -> 0 | AI17: =IF(F17=0,0,INDEX('3. Funding Characteristics'!$C$368:$G$368,1,'4. Unit Mix and Rents'!C17+1)) -> 0 | AJ17: =IF(F17=0,0,INDEX($AE$44:$AI$44,1,'4. Unit Mix and Rents'!C17+1)) -> 0 | AK17: =IF(F17=0,0,INDEX($AE$44:$AI$45,2,'4. Unit Mix and Rents'!C17+1)) -> 0 | AQ17: =IF(J17<>"Yes","",IF(AND(OR(#REF!=0,#REF!=1),K17=Controls!A146),"",5)) ->  | AU17: 0 | AV17: 0 | AW17: 0 | AX17: 0 | AY17: 0
A18: 9 | O18: 0 | P18: 0 | Q18: =IF(K18="","",MATCH(K18,Controls!A145:A153,0)) ->  | R18: 0 | S18: 0 | T18: 0 | U18: =IF(AND(T18=0,OR(K18=Controls!A146,K18=Controls!A147)),F18,0) -> 0 | V18: 0 | W18: 0 | X18: 0 | Y18: 0 | Z18: 0 | AB18: 0 | AC18: 0 | AD18: 0 | AE18: =IF(K18="","",VLOOKUP(K18,'3. Funding Characteristics'!B352:G359,'4. Unit Mix and Rents'!AF18,FALSE)) ->  | AF18: 2 | AH18: =IF(F18=0,0,INDEX('3. Funding Characteristics'!$C$376:$G$377,2,C18+1)) -> 0 | AI18: =IF(F18=0,0,INDEX('3. Funding Characteristics'!$C$368:$G$368,1,'4. Unit Mix and Rents'!C18+1)) -> 0 | AJ18: =IF(F18=0,0,INDEX($AE$44:$AI$44,1,'4. Unit Mix and Rents'!C18+1)) -> 0 | AK18: =IF(F18=0,0,INDEX($AE$44:$AI$45,2,'4. Unit Mix and Rents'!C18+1)) -> 0 | AQ18: =IF(J18<>"Yes","",IF(AND(OR(#REF!=0,#REF!=1),K18=Controls!A146),"",5)) ->  | AU18: 0 | AV18: 0 | AW18: 0 | AX18: 0 | AY18: 0
A19: 10 | O19: 0 | P19: 0 | Q19: =IF(K19="","",MATCH(K19,Controls!A145:A153,0)) ->  | R19: 0 | S19: 0 | T19: 0 | U19: =IF(AND(T19=0,OR(K19=Controls!A146,K19=Controls!A147)),F19,0) -> 0 | V19: 0 | W19: 0 | X19: 0 | Y19: 0 | Z19: 0 | AB19: 0 | AC19: 0 | AD19: 0 | AE19: =IF(K19="","",VLOOKUP(K19,'3. Funding Characteristics'!B352:G359,'4. Unit Mix and Rents'!AF19,FALSE)) ->  | AF19: 2 | AH19: =IF(F19=0,0,INDEX('3. Funding Characteristics'!$C$376:$G$377,2,C19+1)) -> 0 | AI19: =IF(F19=0,0,INDEX('3. Funding Characteristics'!$C$368:$G$368,1,'4. Unit Mix and Rents'!C19+1)) -> 0 | AJ19: =IF(F19=0,0,INDEX($AE$44:$AI$44,1,'4. Unit Mix and Rents'!C19+1)) -> 0 | AK19: =IF(F19=0,0,INDEX($AE$44:$AI$45,2,'4. Unit Mix and Rents'!C19+1)) -> 0 | AQ19: =IF(J19<>"Yes","",IF(AND(OR(#REF!=0,#REF!=1),K19=Controls!A146),"",5)) ->  | AU19: 0 | AV19: 0 | AW19: 0 | AX19: 0 | AY19: 0
A20: 11 | O20: 0 | P20: 0 | Q20: =IF(K20="","",MATCH(K20,Controls!A145:A153,0)) ->  | R20: 0 | S20: 0 | T20: 0 | U20: =IF(AND(T20=0,OR(K20=Controls!A146,K20=Controls!A147)),F20,0) -> 0 | V20: 0 | W20: 0 | X20: 0 | Y20: 0 | Z20: 0 | AB20: 0 | AC20: 0 | AD20: 0 | AE20: =IF(K20="","",VLOOKUP(K20,'3. Funding Characteristics'!B352:G359,'4. Unit Mix and Rents'!AF20,FALSE)) ->  | AF20: 2 | AH20: =IF(F20=0,0,INDEX('3. Funding Characteristics'!$C$376:$G$377,2,C20+1)) -> 0 | AI20: =IF(F20=0,0,INDEX('3. Funding Characteristics'!$C$368:$G$368,1,'4. Unit Mix and Rents'!C20+1)) -> 0 | AJ20: =IF(F20=0,0,INDEX($AE$44:$AI$44,1,'4. Unit Mix and Rents'!C20+1)) -> 0 | AK20: =IF(F20=0,0,INDEX($AE$44:$AI$45,2,'4. Unit Mix and Rents'!C20+1)) -> 0 | AQ20: =IF(J20<>"Yes","",IF(AND(OR(#REF!=0,#REF!=1),K20=Controls!A146),"",5)) ->  | AU20: 0 | AV20: 0 | AW20: 0 | AX20: 0 | AY20: 0
A21: 12 | O21: 0 | P21: 0 | Q21: =IF(K21="","",MATCH(K21,Controls!A145:A153,0)) ->  | R21: 0 | S21: 0 | T21: 0 | U21: =IF(AND(T21=0,OR(K21=Controls!A146,K21=Controls!A147)),F21,0) -> 0 | V21: 0 | W21: 0 | X21: 0 | Y21: 0 | Z21: 0 | AB21: 0 | AC21: 0 | AD21: 0 | AE21: =IF(K21="","",VLOOKUP(K21,'3. Funding Characteristics'!B352:G359,'4. Unit Mix and Rents'!AF21,FALSE)) ->  | AF21: 2 | AH21: =IF(F21=0,0,INDEX('3. Funding Characteristics'!$C$376:$G$377,2,C21+1)) -> 0 | AI21: =IF(F21=0,0,INDEX('3. Funding Characteristics'!$C$368:$G$368,1,'4. Unit Mix and Rents'!C21+1)) -> 0 | AJ21: =IF(F21=0,0,INDEX($AE$44:$AI$44,1,'4. Unit Mix and Rents'!C21+1)) -> 0 | AK21: =IF(F21=0,0,INDEX($AE$44:$AI$45,2,'4. Unit Mix and Rents'!C21+1)) -> 0 | AQ21: =IF(J21<>"Yes","",IF(AND(OR(#REF!=0,#REF!=1),K21=Controls!A146),"",5)) ->  | AU21: 0 | AV21: 0 | AW21: 0 | AX21: 0 | AY21: 0
A22: 13 | O22: 0 | P22: 0 | Q22: =IF(K22="","",MATCH(K22,Controls!A145:A153,0)) ->  | R22: 0 | S22: 0 | T22: 0 | U22: =IF(AND(T22=0,OR(K22=Controls!A146,K22=Controls!A147)),F22,0) -> 0 | V22: 0 | W22: 0 | X22: 0 | Y22: 0 | Z22: 0 | AB22: 0 | AC22: 0 | AD22: 0 | AE22: =IF(K22="","",VLOOKUP(K22,'3. Funding Characteristics'!B352:G359,'4. Unit Mix and Rents'!AF22,FALSE)) ->  | AF22: 2 | AH22: =IF(F22=0,0,INDEX('3. Funding Characteristics'!$C$376:$G$377,2,C22+1)) -> 0 | AI22: =IF(F22=0,0,INDEX('3. Funding Characteristics'!$C$368:$G$368,1,'4. Unit Mix and Rents'!C22+1)) -> 0 | AJ22: =IF(F22=0,0,INDEX($AE$44:$AI$44,1,'4. Unit Mix and Rents'!C22+1)) -> 0 | AK22: =IF(F22=0,0,INDEX($AE$44:$AI$45,2,'4. Unit Mix and Rents'!C22+1)) -> 0 | AQ22: =IF(J22<>"Yes","",IF(AND(OR(#REF!=0,#REF!=1),K22=Controls!A146),"",5)) ->  | AU22: 0 | AV22: 0 | AW22: 0 | AX22: 0 | AY22: 0
A23: 14 | O23: 0 | P23: 0 | Q23: =IF(K23="","",MATCH(K23,Controls!A145:A153,0)) ->  | R23: 0 | S23: 0 | T23: 0 | U23: =IF(AND(T23=0,OR(K23=Controls!A146,K23=Controls!A147)),F23,0) -> 0 | V23: 0 | W23: 0 | X23: 0 | Y23: 0 | Z23: 0 | AB23: 0 | AC23: 0 | AD23: 0 | AE23: =IF(K23="","",VLOOKUP(K23,'3. Funding Characteristics'!B352:G359,'4. Unit Mix and Rents'!AF23,FALSE)) ->  | AF23: 2 | AH23: =IF(F23=0,0,INDEX('3. Funding Characteristics'!$C$376:$G$377,2,C23+1)) -> 0 | AI23: =IF(F23=0,0,INDEX('3. Funding Characteristics'!$C$368:$G$368,1,'4. Unit Mix and Rents'!C23+1)) -> 0 | AJ23: =IF(F23=0,0,INDEX($AE$44:$AI$44,1,'4. Unit Mix and Rents'!C23+1)) -> 0 | AK23: =IF(F23=0,0,INDEX($AE$44:$AI$45,2,'4. Unit Mix and Rents'!C23+1)) -> 0 | AQ23: =IF(J23<>"Yes","",IF(AND(OR(#REF!=0,#REF!=1),K23=Controls!A146),"",5)) ->  | AU23: 0 | AV23: 0 | AW23: 0 | AX23: 0 | AY23: 0
A24: 15 | O24: 0 | P24: 0 | Q24: =IF(K24="","",MATCH(K24,Controls!A145:A153,0)) ->  | R24: 0 | S24: 0 | T24: 0 | U24: =IF(AND(T24=0,OR(K24=Controls!A146,K24=Controls!A147)),F24,0) -> 0 | V24: 0 | W24: 0 | X24: 0 | Y24: 0 | Z24: 0 | AB24: 0 | AC24: 0 | AD24: 0 | AE24: =IF(K24="","",VLOOKUP(K24,'3. Funding Characteristics'!B352:G359,'4. Unit Mix and Rents'!AF24,FALSE)) ->  | AF24: 2 | AH24: =IF(F24=0,0,INDEX('3. Funding Characteristics'!$C$376:$G$377,2,C24+1)) -> 0 | AI24: =IF(F24=0,0,INDEX('3. Funding Characteristics'!$C$368:$G$368,1,'4. Unit Mix and Rents'!C24+1)) -> 0 | AJ24: =IF(F24=0,0,INDEX($AE$44:$AI$44,1,'4. Unit Mix and Rents'!C24+1)) -> 0 | AK24: =IF(F24=0,0,INDEX($AE$44:$AI$45,2,'4. Unit Mix and Rents'!C24+1)) -> 0 | AQ24: =IF(J24<>"Yes","",IF(AND(OR(#REF!=0,#REF!=1),K24=Controls!A146),"",5)) ->  | AU24: 0 | AV24: 0 | AW24: 0 | AX24: 0 | AY24: 0
A25: 16 | O25: 0 | P25: 0 | Q25: =IF(K25="","",MATCH(K25,Controls!A145:A153,0)) ->  | R25: 0 | S25: 0 | T25: 0 | U25: =IF(AND(T25=0,OR(K25=Controls!A146,K25=Controls!A147)),F25,0) -> 0 | V25: 0 | W25: 0 | X25: 0 | Y25: 0 | Z25: 0 | AB25: 0 | AC25: 0 | AD25: 0 | AE25: =IF(K25="","",VLOOKUP(K25,'3. Funding Characteristics'!B352:G359,'4. Unit Mix and Rents'!AF25,FALSE)) ->  | AF25: 2 | AH25: =IF(F25=0,0,INDEX('3. Funding Characteristics'!$C$376:$G$377,2,C25+1)) -> 0 | AI25: =IF(F25=0,0,INDEX('3. Funding Characteristics'!$C$368:$G$368,1,'4. Unit Mix and Rents'!C25+1)) -> 0 | AJ25: =IF(F25=0,0,INDEX($AE$44:$AI$44,1,'4. Unit Mix and Rents'!C25+1)) -> 0 | AK25: =IF(F25=0,0,INDEX($AE$44:$AI$45,2,'4. Unit Mix and Rents'!C25+1)) -> 0 | AQ25: =IF(J25<>"Yes","",IF(AND(OR(#REF!=0,#REF!=1),K25=Controls!A146),"",5)) ->  | AU25: 0 | AV25: 0 | AW25: 0 | AX25: 0 | AY25: 0
A26: 17 | O26: 0 | P26: 0 | Q26: =IF(K26="","",MATCH(K26,Controls!A145:A153,0)) ->  | R26: 0 | S26: 0 | T26: 0 | U26: =IF(AND(T26=0,OR(K26=Controls!A146,K26=Controls!A147)),F26,0) -> 0 | V26: 0 | W26: 0 | X26: 0 | Y26: 0 | Z26: 0 | AB26: 0 | AC26: 0 | AD26: 0 | AE26: =IF(K26="","",VLOOKUP(K26,'3. Funding Characteristics'!B352:G359,'4. Unit Mix and Rents'!AF26,FALSE)) ->  | AF26: =+C26+2 -> 2 | AH26: =IF(F26=0,0,INDEX('3. Funding Characteristics'!$C$376:$G$377,2,C26+1)) -> 0 | AI26: =IF(F26=0,0,INDEX('3. Funding Characteristics'!$C$368:$G$368,1,'4. Unit Mix and Rents'!C26+1)) -> 0 | AJ26: =IF(F26=0,0,INDEX($AE$44:$AI$44,1,'4. Unit Mix and Rents'!C26+1)) -> 0 | AK26: =IF(F26=0,0,INDEX($AE$44:$AI$45,2,'4. Unit Mix and Rents'!C26+1)) -> 0 | AQ26: =IF(J26<>"Yes","",IF(AND(OR(#REF!=0,#REF!=1),K26=Controls!A146),"",5)) ->  | AU26: 0 | AV26: 0 | AW26: 0 | AX26: 0 | AY26: 0
A27: 18 | O27: 0 | P27: 0 | Q27: =IF(K27="","",MATCH(K27,Controls!A145:A153,0)) ->  | R27: 0 | S27: 0 | T27: 0 | U27: =IF(AND(T27=0,OR(K27=Controls!A146,K27=Controls!A147)),F27,0) -> 0 | V27: 0 | W27: 0 | X27: 0 | Y27: 0 | Z27: 0 | AB27: 0 | AC27: 0 | AD27: 0 | AE27: =IF(K27="","",VLOOKUP(K27,'3. Funding Characteristics'!B352:G359,'4. Unit Mix and Rents'!AF27,FALSE)) ->  | AF27: 2 | AH27: =IF(F27=0,0,INDEX('3. Funding Characteristics'!$C$376:$G$377,2,C27+1)) -> 0 | AI27: =IF(F27=0,0,INDEX('3. Funding Characteristics'!$C$368:$G$368,1,'4. Unit Mix and Rents'!C27+1)) -> 0 | AJ27: =IF(F27=0,0,INDEX($AE$44:$AI$44,1,'4. Unit Mix and Rents'!C27+1)) -> 0 | AK27: =IF(F27=0,0,INDEX($AE$44:$AI$45,2,'4. Unit Mix and Rents'!C27+1)) -> 0 | AQ27: =IF(J27<>"Yes","",IF(AND(OR(#REF!=0,#REF!=1),K27=Controls!A146),"",5)) ->  | AU27: 0 | AV27: 0 | AW27: 0 | AX27: 0 | AY27: 0
A28: 19 | O28: 0 | P28: 0 | Q28: =IF(K28="","",MATCH(K28,Controls!A145:A153,0)) ->  | R28: 0 | S28: 0 | T28: 0 | U28: =IF(AND(T28=0,OR(K28=Controls!A146,K28=Controls!A147)),F28,0) -> 0 | V28: 0 | W28: 0 | X28: 0 | Y28: 0 | Z28: 0 | AB28: 0 | AC28: 0 | AD28: 0 | AE28: =IF(K28="","",VLOOKUP(K28,'3. Funding Characteristics'!B352:G359,'4. Unit Mix and Rents'!AF28,FALSE)) ->  | AF28: 2 | AH28: =IF(F28=0,0,INDEX('3. Funding Characteristics'!$C$376:$G$377,2,C28+1)) -> 0 | AI28: =IF(F28=0,0,INDEX('3. Funding Characteristics'!$C$368:$G$368,1,'4. Unit Mix and Rents'!C28+1)) -> 0 | AJ28: =IF(F28=0,0,INDEX($AE$44:$AI$44,1,'4. Unit Mix and Rents'!C28+1)) -> 0 | AK28: =IF(F28=0,0,INDEX($AE$44:$AI$45,2,'4. Unit Mix and Rents'!C28+1)) -> 0 | AQ28: =IF(J28<>"Yes","",IF(AND(OR(#REF!=0,#REF!=1),K28=Controls!A146),"",5)) ->  | AU28: 0 | AV28: 0 | AW28: 0 | AX28: 0 | AY28: 0
A29: 20 | O29: 0 | P29: 0 | Q29: =IF(K29="","",MATCH(K29,Controls!A145:A153,0)) ->  | R29: 0 | S29: 0 | T29: 0 | U29: =IF(AND(T29=0,OR(K29=Controls!A146,K29=Controls!A147)),F29,0) -> 0 | V29: 0 | W29: 0 | X29: 0 | Y29: 0 | Z29: 0 | AB29: 0 | AC29: 0 | AD29: 0 | AE29: =IF(K29="","",VLOOKUP(K29,'3. Funding Characteristics'!B352:G359,'4. Unit Mix and Rents'!AF29,FALSE)) ->  | AF29: 2 | AH29: =IF(F29=0,0,INDEX('3. Funding Characteristics'!$C$376:$G$377,2,C29+1)) -> 0 | AI29: =IF(F29=0,0,INDEX('3. Funding Characteristics'!$C$368:$G$368,1,'4. Unit Mix and Rents'!C29+1)) -> 0 | AJ29: =IF(F29=0,0,INDEX($AE$44:$AI$44,1,'4. Unit Mix and Rents'!C29+1)) -> 0 | AK29: =IF(F29=0,0,INDEX($AE$44:$AI$45,2,'4. Unit Mix and Rents'!C29+1)) -> 0 | AQ29: =IF(J29<>"Yes","",IF(AND(OR(#REF!=0,#REF!=1),K29=Controls!A146),"",5)) ->  | AU29: 0 | AV29: 0 | AW29: 0 | AX29: 0 | AY29: 0
A30: 21 | O30: 0 | P30: 0 | Q30: =IF(K30="","",MATCH(K30,Controls!A145:A153,0)) ->  | R30: 0 | S30: 0 | T30: 0 | U30: =IF(AND(T30=0,OR(K30=Controls!A146,K30=Controls!A147)),F30,0) -> 0 | V30: 0 | W30: 0 | X30: 0 | Y30: 0 | Z30: 0 | AB30: 0 | AC30: 0 | AD30: 0 | AE30: =IF(K30="","",VLOOKUP(K30,'3. Funding Characteristics'!B352:G359,'4. Unit Mix and Rents'!AF30,FALSE)) ->  | AF30: 2 | AH30: =IF(F30=0,0,INDEX('3. Funding Characteristics'!$C$376:$G$377,2,C30+1)) -> 0 | AI30: =IF(F30=0,0,INDEX('3. Funding Characteristics'!$C$368:$G$368,1,'4. Unit Mix and Rents'!C30+1)) -> 0 | AJ30: =IF(F30=0,0,INDEX($AE$44:$AI$44,1,'4. Unit Mix and Rents'!C30+1)) -> 0 | AK30: =IF(F30=0,0,INDEX($AE$44:$AI$45,2,'4. Unit Mix and Rents'!C30+1)) -> 0 | AQ30: =IF(J30<>"Yes","",IF(AND(OR(#REF!=0,#REF!=1),K30=Controls!A146),"",5)) ->  | AU30: 0 | AV30: 0 | AW30: 0 | AX30: 0 | AY30: 0
A31: 22 | O31: 0 | P31: 0 | Q31: =IF(K31="","",MATCH(K31,Controls!A145:A153,0)) ->  | R31: 0 | S31: 0 | T31: 0 | U31: =IF(AND(T31=0,OR(K31=Controls!A146,K31=Controls!A147)),F31,0) -> 0 | V31: 0 | W31: 0 | X31: 0 | Y31: 0 | Z31: 0 | AB31: 0 | AC31: 0 | AD31: 0 | AE31: =IF(K31="","",VLOOKUP(K31,'3. Funding Characteristics'!B352:G359,'4. Unit Mix and Rents'!AF31,FALSE)) ->  | AF31: 2 | AH31: =IF(F31=0,0,INDEX('3. Funding Characteristics'!$C$376:$G$377,2,C31+1)) -> 0 | AI31: =IF(F31=0,0,INDEX('3. Funding Characteristics'!$C$368:$G$368,1,'4. Unit Mix and Rents'!C31+1)) -> 0 | AJ31: =IF(F31=0,0,INDEX($AE$44:$AI$44,1,'4. Unit Mix and Rents'!C31+1)) -> 0 | AK31: =IF(F31=0,0,INDEX($AE$44:$AI$45,2,'4. Unit Mix and Rents'!C31+1)) -> 0 | AQ31: =IF(J31<>"Yes","",IF(AND(OR(#REF!=0,#REF!=1),K31=Controls!A146),"",5)) ->  | AU31: 0 | AV31: 0 | AW31: 0 | AX31: 0 | AY31: 0
A32: 23 | O32: 0 | P32: 0 | Q32: =IF(K32="","",MATCH(K32,Controls!A145:A153,0)) ->  | R32: 0 | S32: 0 | T32: 0 | U32: =IF(AND(T32=0,OR(K32=Controls!A146,K32=Controls!A147)),F32,0) -> 0 | V32: 0 | W32: 0 | X32: 0 | Y32: 0 | Z32: 0 | AB32: 0 | AC32: 0 | AD32: 0 | AE32: =IF(K32="","",VLOOKUP(K32,'3. Funding Characteristics'!B352:G359,'4. Unit Mix and Rents'!AF32,FALSE)) ->  | AF32: 2 | AH32: =IF(F32=0,0,INDEX('3. Funding Characteristics'!$C$376:$G$377,2,C32+1)) -> 0 | AI32: =IF(F32=0,0,INDEX('3. Funding Characteristics'!$C$368:$G$368,1,'4. Unit Mix and Rents'!C32+1)) -> 0 | AJ32: =IF(F32=0,0,INDEX($AE$44:$AI$44,1,'4. Unit Mix and Rents'!C32+1)) -> 0 | AK32: =IF(F32=0,0,INDEX($AE$44:$AI$45,2,'4. Unit Mix and Rents'!C32+1)) -> 0 | AQ32: =IF(J32<>"Yes","",IF(AND(OR(#REF!=0,#REF!=1),K32=Controls!A146),"",5)) ->  | AU32: 0 | AV32: 0 | AW32: 0 | AX32: 0 | AY32: 0
A33: 24 | O33: 0 | P33: 0 | Q33: =IF(K33="","",MATCH(K33,Controls!A145:A153,0)) ->  | R33: 0 | S33: 0 | T33: 0 | U33: =IF(AND(T33=0,OR(K33=Controls!A146,K33=Controls!A147)),F33,0) -> 0 | V33: 0 | W33: 0 | X33: 0 | Y33: 0 | Z33: 0 | AB33: 0 | AC33: 0 | AD33: 0 | AE33: =IF(K33="","",VLOOKUP(K33,'3. Funding Characteristics'!B352:G359,'4. Unit Mix and Rents'!AF33,FALSE)) ->  | AF33: 2 | AH33: =IF(F33=0,0,INDEX('3. Funding Characteristics'!$C$376:$G$377,2,C33+1)) -> 0 | AI33: =IF(F33=0,0,INDEX('3. Funding Characteristics'!$C$368:$G$368,1,'4. Unit Mix and Rents'!C33+1)) -> 0 | AJ33: =IF(F33=0,0,INDEX($AE$44:$AI$44,1,'4. Unit Mix and Rents'!C33+1)) -> 0 | AK33: =IF(F33=0,0,INDEX($AE$44:$AI$45,2,'4. Unit Mix and Rents'!C33+1)) -> 0 | AQ33: =IF(J33<>"Yes","",IF(AND(OR(#REF!=0,#REF!=1),K33=Controls!A146),"",5)) ->  | AU33: 0 | AV33: 0 | AW33: 0 | AX33: 0 | AY33: 0
A34: 25 | O34: 0 | P34: 0 | Q34: =IF(K34="","",MATCH(K34,Controls!A145:A153,0)) ->  | R34: 0 | S34: 0 | T34: 0 | U34: =IF(AND(T34=0,OR(K34=Controls!A146,K34=Controls!A147)),F34,0) -> 0 | V34: 0 | W34: 0 | X34: 0 | Y34: 0 | Z34: 0 | AB34: 0 | AC34: 0 | AD34: 0 | AE34: =IF(K34="","",VLOOKUP(K34,'3. Funding Characteristics'!B352:G359,'4. Unit Mix and Rents'!AF34,FALSE)) ->  | AF34: 2 | AH34: =IF(F34=0,0,INDEX('3. Funding Characteristics'!$C$376:$G$377,2,C34+1)) -> 0 | AI34: =IF(F34=0,0,INDEX('3. Funding Characteristics'!$C$368:$G$368,1,'4. Unit Mix and Rents'!C34+1)) -> 0 | AJ34: =IF(F34=0,0,INDEX($AE$44:$AI$44,1,'4. Unit Mix and Rents'!C34+1)) -> 0 | AK34: =IF(F34=0,0,INDEX($AE$44:$AI$45,2,'4. Unit Mix and Rents'!C34+1)) -> 0 | AQ34: =IF(J34<>"Yes","",IF(AND(OR(#REF!=0,#REF!=1),K34=Controls!A146),"",5)) ->  | AU34: 0 | AV34: 0 | AW34: 0 | AX34: 0 | AY34: 0
A35: 26 | O35: 0 | P35: 0 | Q35: =IF(K35="","",MATCH(K35,Controls!A145:A153,0)) ->  | R35: 0 | S35: 0 | T35: 0 | U35: =IF(AND(T35=0,OR(K35=Controls!A146,K35=Controls!A147)),F35,0) -> 0 | V35: 0 | W35: 0 | X35: 0 | Y35: 0 | Z35: 0 | AB35: 0 | AC35: 0 | AD35: 0 | AE35: =IF(K35="","",VLOOKUP(K35,'3. Funding Characteristics'!B352:G359,'4. Unit Mix and Rents'!AF35,FALSE)) ->  | AF35: 2 | AH35: =IF(F35=0,0,INDEX('3. Funding Characteristics'!$C$376:$G$377,2,C35+1)) -> 0 | AI35: =IF(F35=0,0,INDEX('3. Funding Characteristics'!$C$368:$G$368,1,'4. Unit Mix and Rents'!C35+1)) -> 0 | AJ35: =IF(F35=0,0,INDEX($AE$44:$AI$44,1,'4. Unit Mix and Rents'!C35+1)) -> 0 | AK35: =IF(F35=0,0,INDEX($AE$44:$AI$45,2,'4. Unit Mix and Rents'!C35+1)) -> 0 | AQ35: =IF(J35<>"Yes","",IF(AND(OR(#REF!=0,#REF!=1),K35=Controls!A146),"",5)) ->  | AU35: 0 | AV35: 0 | AW35: 0 | AX35: 0 | AY35: 0
A36: 27 | O36: 0 | P36: 0 | Q36: =IF(K36="","",MATCH(K36,Controls!A145:A153,0)) ->  | R36: 0 | S36: 0 | T36: 0 | U36: =IF(AND(T36=0,OR(K36=Controls!A146,K36=Controls!A147)),F36,0) -> 0 | V36: 0 | W36: 0 | X36: 0 | Y36: 0 | Z36: 0 | AB36: 0 | AC36: 0 | AD36: 0 | AE36: =IF(K36="","",VLOOKUP(K36,'3. Funding Characteristics'!B352:G359,'4. Unit Mix and Rents'!AF36,FALSE)) ->  | AF36: 2 | AH36: =IF(F36=0,0,INDEX('3. Funding Characteristics'!$C$376:$G$377,2,C36+1)) -> 0 | AI36: =IF(F36=0,0,INDEX('3. Funding Characteristics'!$C$368:$G$368,1,'4. Unit Mix and Rents'!C36+1)) -> 0 | AJ36: =IF(F36=0,0,INDEX($AE$44:$AI$44,1,'4. Unit Mix and Rents'!C36+1)) -> 0 | AK36: =IF(F36=0,0,INDEX($AE$44:$AI$45,2,'4. Unit Mix and Rents'!C36+1)) -> 0 | AQ36: =IF(J36<>"Yes","",IF(AND(OR(#REF!=0,#REF!=1),K36=Controls!A146),"",5)) ->  | AU36: 0 | AV36: 0 | AW36: 0 | AX36: 0 | AY36: 0
A37: 28 | O37: 0 | P37: 0 | Q37: =IF(K37="","",MATCH(K37,Controls!A145:A153,0)) ->  | R37: 0 | S37: 0 | T37: 0 | U37: =IF(AND(T37=0,OR(K37=Controls!A146,K37=Controls!A147)),F37,0) -> 0 | V37: 0 | W37: 0 | X37: 0 | Y37: 0 | Z37: 0 | AB37: 0 | AC37: 0 | AD37: 0 | AE37: =IF(K37="","",VLOOKUP(K37,'3. Funding Characteristics'!B352:G359,'4. Unit Mix and Rents'!AF37,FALSE)) ->  | AF37: 2 | AH37: =IF(F37=0,0,INDEX('3. Funding Characteristics'!$C$376:$G$377,2,C37+1)) -> 0 | AI37: =IF(F37=0,0,INDEX('3. Funding Characteristics'!$C$368:$G$368,1,'4. Unit Mix and Rents'!C37+1)) -> 0 | AJ37: =IF(F37=0,0,INDEX($AE$44:$AI$44,1,'4. Unit Mix and Rents'!C37+1)) -> 0 | AK37: =IF(F37=0,0,INDEX($AE$44:$AI$45,2,'4. Unit Mix and Rents'!C37+1)) -> 0 | AQ37: =IF(J37<>"Yes","",IF(AND(OR(#REF!=0,#REF!=1),K37=Controls!A146),"",5)) ->  | AU37: 0 | AV37: 0 | AW37: 0 | AX37: 0 | AY37: 0
A38: 29 | O38: 0 | P38: 0 | Q38: =IF(K38="","",MATCH(K38,Controls!A145:A153,0)) ->  | R38: 0 | S38: 0 | T38: 0 | U38: =IF(AND(T38=0,OR(K38=Controls!A146,K38=Controls!A147)),F38,0) -> 0 | V38: 0 | W38: 0 | X38: 0 | Y38: 0 | Z38: 0 | AB38: 0 | AC38: 0 | AD38: 0 | AE38: =IF(K38="","",VLOOKUP(K38,'3. Funding Characteristics'!B352:G359,'4. Unit Mix and Rents'!AF38,FALSE)) ->  | AF38: 2 | AH38: =IF(F38=0,0,INDEX('3. Funding Characteristics'!$C$376:$G$377,2,C38+1)) -> 0 | AI38: =IF(F38=0,0,INDEX('3. Funding Characteristics'!$C$368:$G$368,1,'4. Unit Mix and Rents'!C38+1)) -> 0 | AJ38: =IF(F38=0,0,INDEX($AE$44:$AI$44,1,'4. Unit Mix and Rents'!C38+1)) -> 0 | AK38: =IF(F38=0,0,INDEX($AE$44:$AI$45,2,'4. Unit Mix and Rents'!C38+1)) -> 0 | AQ38: =IF(J38<>"Yes","",IF(AND(OR(#REF!=0,#REF!=1),K38=Controls!A146),"",5)) ->  | AU38: 0 | AV38: 0 | AW38: 0 | AX38: 0 | AY38: 0
A39: 30 | O39: 0 | P39: 0 | Q39: =IF(K39="","",MATCH(K39,Controls!A145:A153,0)) ->  | R39: 0 | S39: 0 | T39: 0 | U39: =IF(AND(T39=0,OR(K39=Controls!A146,K39=Controls!A147)),F39,0) -> 0 | V39: 0 | W39: 0 | X39: 0 | Y39: 0 | Z39: 0 | AB39: 0 | AC39: 0 | AD39: 0 | AE39: =IF(K39="","",VLOOKUP(K39,'3. Funding Characteristics'!B352:G359,'4. Unit Mix and Rents'!AF39,FALSE)) ->  | AF39: 2 | AH39: =IF(F39=0,0,INDEX('3. Funding Characteristics'!$C$376:$G$377,2,C39+1)) -> 0 | AI39: =IF(F39=0,0,INDEX('3. Funding Characteristics'!$C$368:$G$368,1,'4. Unit Mix and Rents'!C39+1)) -> 0 | AJ39: =IF(F39=0,0,INDEX($AE$44:$AI$44,1,'4. Unit Mix and Rents'!C39+1)) -> 0 | AK39: =IF(F39=0,0,INDEX($AE$44:$AI$45,2,'4. Unit Mix and Rents'!C39+1)) -> 0 | AQ39: =IF(J39<>"Yes","",IF(AND(OR(#REF!=0,#REF!=1),K39=Controls!A146),"",5)) ->  | AU39: 0 | AV39: 0 | AW39: 0 | AX39: 0 | AY39: 0
B41: Totals | E41: =SUMPRODUCT(F9:F40,E9:E40) -> 0 | F41: =SUM(F9:F40) -> 0 | G41: =SUM(O9:O40) -> 0 | H41: =SUM(P9:P40) -> 0 | I41: =SUM(AD9:AD40) -> 0 | L41: =SUMPRODUCT(F9:F40,L9:L40) -> 0 | O41: =SUM(O9:O40) -> 0 | P41: =SUM(P9:P40) -> 0 | R41: =SUM(R9:R40) -> 0 | S41: 0 | T41: 0 | U41: 0 | V41: 0 | W41: 0 | X41: 0 | Y41: 0 | Z41: 0 | AB41: =SUM(AB9:AB40) -> 0 | AC41: =SUM(AC9:AC40) -> 0 | AM41: =COUNTIF(AM9:AM40,">0") -> 0 | AN41: 0 | AO41: 0 | AP41: 0 | AQ41: 0 | AR41: 0 | AS41: 0 | AU41: =SUM(AU9:AU40) -> 0 | AV41: =SUM(AV9:AV40) -> 0 | AW41: =SUM(AW9:AW40) -> 0 | AX41: =SUM(AX9:AX40) -> 0 | AY41: =SUM(AY9:AY40) -> 0
Y42: =IF(O41=0,0,+Y41/O41) -> 0
B43: % of Rental Subsidy Units in the project: | G43: =IF(F41=0,0,+I41/F41) -> 0 | AE43: 0BR | AF43: 1BR | AG43: 2BR | AH43: 3BR | AI43: 4BR | AM43: =SUM(AM41:AT41) -> 0 | AN43: total flags | AU43: =SUM(AU41:AY41) -> 0 | AV43: total units
B44: % of Low-Income Units in the project: | F44: =+R41 -> 0 | G44: =IF(F41=0,0,+R41/F41) -> 0 | I44: =IF(G44>=40%,"Meets 40/60 Setaside","Does not Meet 40/60 Setaside") -> Does not Meet 40/60 Setaside | O44: Minimum Sqft | AE44: 450 | AF44: 650 | AG44: 800 | AH44: 1100 | AI44: 1400
B45: Total square feet for LIHTC units: | E45: =+AB41 -> 0 | O45: Minimum # Baths | AE45: 1 | AF45: 1 | AG45: 1 | AH45: 2 | AI45: 2.5
B46: PSH Units: | F46: =+T41 -> 0 | G46: =IF(F41=0,0,+F46/F41) -> 0
B47: Non-PSH Units Under 30% AMI: | F47: =+U41 -> 0 | G47: =IF(F41=0,0,+F47/F41) -> 0 | O47: =+'3. Funding Characteristics'!H27 -> Missing | Q47: is user's Set-Aside Election
B48: Units under 30% AMI: | F48: =+F46+F47 -> 0 | G48: =IF(F41=0,0,+F48/F41) -> 0
B49: Units under 20% AMI: | F49: =+V41 -> 0 | G49: =IF(F41=0,0,+F49/F41) -> 0 | O49: =IF(O47="40/60",IF(G44>=40%,"","Error: Applicant's 40/60 Set-Aside Is Not Met"),IF(O47="20/50",IF(G50>=20%,"","Error: Applicant's 20/50 Set-Aside is not Met"),"")) -> 
B50: Units under 50% AMI: | F50: =+S41 -> 0 | G50: =IF(F41=0,0,+F50/F41) -> 0 | I50: =IF(G50>=20%,"Meets 20/50 Setaside","Does not Meet 20/50 Setaside") -> Does not Meet 20/50 Setaside
B51: Units between 31% and 50% AMI: | F51: =+F50-F48 -> 0 | G51: =IF(F41=0,0,+F51/F41) -> 0
B52: Units under 80% AMI: | F52: =+W41 -> 0 | G52: =IF(F41=0,0,+F52/F41) -> 0
B53: Units Not AMI Restricted | F53: =+X41 -> 0 | G53: =IF(F41=0,0,+F53/F41) -> 0
B54: LIHTC 'Income Average' | G54: =+Y42 -> 0 | I54: (weighted average of income limits for LIHTC units)
B55: Staff Units | E55: =+AC41 -> 0 | F55: =+H41 -> 0 | G55: =IF(F41=0,0,+F55/F41) -> 0
B56: Residential Units | E56: =+E41-E55 -> 0 | F56: =+F41-F55 -> 0 | G56: =IF(F41=0,0,+F56/F41) -> 0
A59: ="The applicant selected the following set-aside option: "&'3. Funding Characteristics'!H26 -> The applicant selected the following set-aside option: Missing
A61: * Rent is after subtracting the utility allowance; that is, this is the rent the project will collect.
C63: 1 | E63: 2 | F63: 3 | G63: 4
B64: Unit Mix Summary | C64: 0 BR | D64: 1 BR | E64: 2 BR | F64: 3 BR | G64: 4 BR | I64: Total
B65: =+Controls!A146 -> 20% AMI | C65: =SUMIFS($F$9:$F$40,$K$9:$K$40,B65,$C$9:$C$40,$C$63) -> 0 | D65: =SUMIFS($F$9:$F$40,$K$9:$K$40,B65,$C$9:$C$40,$D$63) -> 0 | E65: =SUMIFS($F$9:$F$40,$K$9:$K$40,B65,$C$9:$C$40,$E$63) -> 0 | F65: =SUMIFS($F$9:$F$40,$K$9:$K$40,B65,$C$9:$C$40,$F$63) -> 0 | G65: =SUMIFS($F$9:$F$40,$K$9:$K$40,B65,$C$9:$C$40,$G$63) -> 0 | I65: =SUM(C65:G65) -> 0
B66: =+Controls!A147 -> 30% AMI | C66: 0 | D66: 0 | E66: 0 | F66: 0 | G66: 0 | I66: 0
B67: =+Controls!A148 -> 40% AMI | C67: 0 | D67: 0 | E67: 0 | F67: 0 | G67: 0 | I67: 0
B68: =+Controls!A149 -> 50% AMI | C68: 0 | D68: 0 | E68: 0 | F68: 0 | G68: 0 | I68: 0
B69: =+Controls!A150 -> 60% AMI | C69: 0 | D69: 0 | E69: 0 | F69: 0 | G69: 0 | I69: 0
B70: =+Controls!A151 -> 70% AMI | C70: 0 | D70: 0 | E70: 0 | F70: 0 | G70: 0 | I70: 0
B71: =+Controls!A152 -> 80% AMI | C71: 0 | D71: 0 | E71: 0 | F71: 0 | G71: 0 | I71: 0
B72: =+Controls!A145 -> 120% AMI | C72: 0 | D72: 0 | E72: 0 | F72: 0 | G72: 0 | I72: 0
B73: =+Controls!A153 -> Not AMI Restricted | C73: 0 | D73: 0 | E73: 0 | F73: 0 | G73: 0 | I73: 0
B74: Total Units | C74: =+AU41 -> 0 | D74: =+AV41 -> 0 | E74: =+AW41 -> 0 | F74: =+AX41 -> 0 | G74: =+AY41 -> 0 | I74: =+AU43 -> 0
B76: PSH Units | C76: =SUMIFS(F9:F40,J9:J40,"Yes",C9:C40,C63) -> 0 | D76: =SUMIFS(F9:F40,J9:J40,"Yes",C9:C40,D63) -> 0 | E76: =SUMIFS(F9:F40,J9:J40,"Yes",C9:C40,E63) -> 0 | F76: =SUMIFS(F9:F40,J9:J40,"Yes",C9:C40,F63) -> 0 | G76: =SUMIFS(F9:F40,J9:J40,"Yes",C9:C40,G63) -> 0 | I76: =SUM(C76:G76) -> 0

Sheet 5. Development Costs
A3: ='2. Project Description'!A3 -> HOMELESS & HOUSING STABILITY: AFFORDABLE HOUSING DEVELOPMENT PROGRAM
A4: =TRIM('2. Project Description'!E51)&" ("&TRIM('2. Project Description'!E53)&" LA), "&'2. Project Description'!E21 -> ( LA),
A6: Development Costs
A8: ='3. Funding Characteristics'!A419+1 -> 20 | B8: Detail of Development Costs
B9: ="Note -- see Section "&A148&" for calculation of acquisition (4%) basis and construction (9%) basis." -> Note -- see Section 22 for calculation of acquisition (4%) basis and construction (9%) basis.
A10: =A8+0.01 -> 20.01 | B10: Acquisition | D10: =SUM(C11:C15) -> 0
A11: =A10+0.01 -> 20.02 | B11: Building Acquisition | C11: 0
A12: =A11+0.01 -> 20.03 | B12: Land Acquisition (value of donated land) | C12: 0
A13: =A12+0.01 -> 20.04 | B13: Land Acquisition (other) | C13: 0
A14: =A13+0.01 -> 20.05 | B14: Acquisition Fee | C14: 0
A16: =A14+0.01 -> 20.06 | B16: Construction Contract: Building Costs | D16: =SUM(C17:C24) -> 0
A17: =A16+0.01 -> 20.07 | B17: Appliances | C17: 0
A18: =A17+0.01 -> 20.08 | B18: Community Facilities | C18: =+'3. Funding Characteristics'!H232 -> 0 | D18: ="See Section "&'3. Funding Characteristics'!A231 -> See Section 13.25
A19: 20.09 | B19: Community Service Facilities | C19: =+'3. Funding Characteristics'!H240 -> 0 | D19: ="See Section "&'3. Funding Characteristics'!A238 -> See Section 13.31
A20: =A19+0.01 -> 20.1 | B20: Residential Buildings - New Construction | C20: 0
A21: 20.11 | B21: Residential Buildings - Rehabilitation | C21: 0
A22: 20.12 | B22: Lead-based paint controls or abatement | C22: 0
A23: 20.13 | B23: Costs to Operate Self-Owned Equipment | C23: =+'3. Funding Characteristics'!H208 -> 0 | D23: ="See Section "&'3. Funding Characteristics'!A204 -> See Section 13.01
A25: =A23+0.01 -> 20.14 | B25: Construction Contract: Site Work | D25: =SUM(C26:C34) -> 0
A26: =A25+0.01 -> 20.15 | B26: Demolition Cost | C26: 0
A27: 20.16 | B27: Earth Work | C27: 0
A28: 20.17 | B28: Lawn/Plantings | C28: 0
A29: 20.18 | B29: Off Site Work | C29: 0
A30: 20.19 | B30: Roads/Walks | C30: 0
A31: 20.2 | B31: Site Utilities | C31: 0
A32: 20.21 | B32: Unusual Site Conditions
A33: 20.22 | B33: Extraordinary Site Costs | C33: =+'3. Funding Characteristics'!H230 -> 0 | D33: ="See Section "&'3. Funding Characteristics'!A229 -> See Section 13.23
A35: =A33+0.01 -> 20.23 | B35: Construction Contract: Other Costs | D35: =SUM(C36:C48) -> 0
A36: =A35+0.01 -> 20.24 | B36: Bond Premium Paid by Contractor | C36: 0
A37: 20.25 | B37: General Requirements | C37: 0 | E37: =IF(K336>0,"GR is "&TEXT(K336,"#,##0")&" above the limit","") -> 
A38: 20.26 | B38: Costs to Lease Self-Owned Equipment | C38: =+'3. Funding Characteristics'!H207 -> 0 | D38: ="See Section "&'3. Funding Characteristics'!A204 -> See Section 13.01
A39: 20.27 | B39: Builder's Overhead | C39: 0 | E39: =IF(K337>0,"BO is "&TEXT(K337,"#,##0")&" above the limit","") -> 
A40: 20.28 | B40: Builder's Profit | C40: 0 | E40: =IF(K338>0,"BP is "&TEXT(K338,"#,##0")&" above the limit","") -> 
A41: 20.29 | B41: Construction Manager's Fee | C41: =+'3. Funding Characteristics'!H216 -> 0 | D41: ="See Section "&'3. Funding Characteristics'!A215 -> See Section 13.11
A42: 20.3 | B42: Builder's Risk Insurance | C42: 0
A43: 20.31 | B43: Builder's Liability Insurance | C43: 0
A44: 20.32 | B44: Worker's Compensation Insurance | C44: 0
A45: 20.33 | B45: Other: | C45: 0
A46: 20.34 | B46: Other: | C46: 0
A47: 20.35 | B47: Other: | C47: 0
A48: 20.36 | B48: =IF(K341>0,B341,"") -> 
A49: 20.37 | B49: Hard Costs Outside Construction Contract | D49: =SUM(C52:C55) -> 0
A50: 20.38 | B50: Bond Premium Paid by Taxpayer
A51: 20.39
A52: 20.4 | B52: Other Hard Cost (describe):
A53: 20.41 | B53: Other Hard Cost (describe):
A54: 20.42 | B54: Other Hard Cost (describe):
A56: =A54+0.01 -> 20.43 | B56: Construction Contingency | D56: =+C57 -> 0
A57: =A56+0.01 -> 20.44 | B57: Construction Hard Cost Contingency | C57: 0 | E57: =IF(ROUND(C58,4)>10%,"Contingency is above the 10% limit","") -> 
A58: =A57+0.01 -> 20.45 | B58: Construction Hard Cost Contingency % | C58: =IF(C248=0,0,+C57/C248) -> 0
A60: =A58+0.01 -> 20.46 | B60: Construction Interim Costs | D60: =SUM(C61:C73) -> 0
A61: =A60+0.01 -> 20.47 | B61: Bridge Loan Fees | C61: 0
A62: 20.48 | B62: Bridge Loan Legal Fees | C62: 0
A63: 20.49 | B63: Building Permits/Fees | C63: 0
A64: 20.5 | B64: Construction Credit Enhancement | C64: 0
A65: 20.51 | B65: Construction Financing Fees | C65: 0
A66: 20.52 | B66: Construction Hazard Insurance | C66: 0
A67: 20.53 | B67: Construction Interest | C67: 0
A68: 20.54 | B68: Construction Legal Fees | C68: 0
A69: 20.55 | B69: Construction Liability Insurance | C69: 0
A70: 20.56 | B70: Construction Loan Points | C70: 0
A71: 20.57 | B71: Construction Title and Recording | C71: 0
A72: 20.58 | B72: Other Construction Finance Fees | C72: 0
A74: =A72+0.01 -> 20.59 | B74: Permanent Financing Costs | D74: =SUM(C75:C82) -> 0
A75: =A74+0.01 -> 20.6 | B75: Permanent Credit Enhancement | C75: 0
A76: 20.61 | B76: Permanent Financing Fees | C76: 0
A77: 20.62 | B77: Permanent Legal Fee | C77: 0
A78: 20.63 | B78: Permanent Loan Points | C78: 0
A79: 20.64 | B79: Permanent Title and Recording | C79: 0
A80: 20.65 | B80: Other (describe): | C80: 0
A81: 20.66 | B81: Other (describe): | C81: 0
A83: =A81+0.01 -> 20.67 | B83: LHC Risk-Sharing Fees (if applicable) | D83: =SUM(C84:C88) -> 0
A84: =A83+0.01 -> 20.68 | B84: Application Fee (3,000) | C84: 0
A85: =A84+0.01 -> 20.69 | B85: Commitment Fee (3% of loan amount) | C85: 0
A86: =A85+0.01 -> 20.7 | B86: Upfront MIP (.5% of loan amount) | C86: 0
A87: =A86+0.01 -> 20.71 | B87: Closing Fee (5,000) | C87: 0
A89: =A87+0.01 -> 20.72 | B89: Professional Fees | D89: =SUM(C90:C93) -> 0
A90: =A89+0.01 -> 20.73 | B90: Accounting Fees | C90: 0
A91: =A90+0.01 -> 20.74 | B91: Architect Fees | C91: 0 | E91: =IF(K339>0,"Arch. Is "&TEXT(K339,"#,##0")&" above the limit","") -> 
A92: =A91+0.01 -> 20.75 | B92: Engineering Fees | C92: 0
A94: =A92+0.01 -> 20.76 | B94: Reserves | D94: =SUM(C95:C102) -> 0
A95: =A94+0.01 -> 20.77 | B95: Escrows | C95: 0
A96: 20.78 | B96: Operating Deficit Reserve | C96: 0 | E96: =IF(C96<K96,"Op. Rsv. must be at least "&TEXT(K96,"#,##0"),"") ->  | K96: =+'7. Revenues and Expenses'!C84/2 -> 0 | L96: LHC Minimum Operating Reserve
A97: 20.79 | B97: Rent Up Reserves | C97: 0
A98: 20.8 | B98: Replacement Reserve Deposit | C98: 0
A99: 20.81 | B99: Other: | C99: 0
A100: 20.82 | B100: Other: | C100: 0
A101: 20.83 | B101: Other: | C101: 0
A103: =A101+0.01 -> 20.84 | B103: Syndication Costs | D103: =SUM(C104:C107) -> 0
A104: =A103+0.01 -> 20.85 | B104: Syndication Legal Fees | C104: 0
A105: =A104+0.01 -> 20.86 | B105: Syndication Organization Expenses | C105: 0
A106: =A105+0.01 -> 20.87 | B106: Other Syndication Expenses | C106: 0
A108: =A106+0.01 -> 20.88 | B108: Other Soft Costs | D108: =SUM(C109:C129) -> 0
A109: =A108+0.01 -> 20.89 | B109: Relocation Expenses | C109: 0
A110: 20.9 | B110: Appraisal | C110: 0
A111: 20.91 | B111: Market Study | C111: 0
A112: 20.92 | B112: Environmental Study | C112: 0
A113: 20.93 | B113: Environmental Review | C113: 0
A114: 20.94 | B114: Lead-Based Paint Assessment and Testing | C114: 0
A115: 20.95 | B115: Survey | C115: 0
A116: 20.96 | B116: Physical Capital Needs Assessment | C116: 0
A117: 20.97 | B117: Marketing | C117: 0
A118: 20.98 | B118: Property Taxes | C118: 0
A119: 24.1 | B119: Cost Certification | C119: 0
A120: =A119+0.001 -> 24.101 | B120: Asset Management Fee | C120: 0
A121: =A120+0.001 -> 24.102 | B121: Left blank intentionally | C121: 0
A122: 24.103 | B122: LHC Tax Credit Application Fee | C122: 0
A123: 24.104 | B123: LHC Tax Credit Reservation Fee (5%) | C123: 0
A124: 24.105 | B124: Left blank intentionally | C124: 0
A125: 24.106 | B125: Non-LHC Tax Credit Fees | C125: 0
A126: 24.107 | B126: Other: | C126: 0
A127: 24.108 | B127: Other: | C127: 0
A128: 24.109 | B128: Other: | C128: 0
A130: =A128+0.001 -> 24.11 | B130: Developer's Fee | D130: =SUM(C131:C136) -> 0 | E130: =IF('3. Funding Characteristics'!H13="Yes","",IFERROR(IF(#REF!>0,"Dev Fee is "&TEXT(#REF!,"#,##0")&" above the limit",""),"Primary Development Type is missing in Project Description")) -> Primary Development Type is missing in Project Description
A131: =A130+0.001 -> 24.111 | B131: Consulting Fee | C131: 0
A132: =A131+0.001 -> 24.112 | B132: Fees paid to CHDOs | C132: 0
A133: =A132+0.001 -> 24.113 | B133: Fees paid to nonprofits | C133: 0
A134: =A133+0.001 -> 24.114 | B134: Developer Fee | C134: 0
A135: =A134+0.001 -> 24.115 | B135: Other developer fee | C135: 0
A137: =A135+0.001 -> 24.116 | B137: TOTAL DEVELOPMENT COSTS | D137: =SUM(D9:D136) -> 0
A138: =A137+0.001 -> 24.117 | B138: Comment on Development Costs
A140: =A8+1 -> 21 | B140: Do Sources and Uses Balance?
A141: =A140+0.01 -> 21.01 | B141: ="Total Permanent Sources of Funds ("&'3. Funding Characteristics'!A184&")" -> Total Permanent Sources of Funds (12) | D141: =+'3. Funding Characteristics'!H198 -> 0
A143: =A141+0.01 -> 21.02 | B143: Total Development Costs | D143: =+D137 -> 0
A145: =A143+0.01 -> 21.03 | B145: Total Sources Minus TDC | D145: =+D141-D143 -> 0
A146: =A145+0.01 -> 21.04 | B146: =IF(ROUND(D145,0)=0,"","Sources and Uses are out of Balance:"&IF(D145<0," Sources Too Low"," Excess Sources")) -> 
A148: =A140+1 -> 22 | B148: Acquisition Basis and Construction Basis (Applicable only to LIHTC)
A149: =A148+0.01 -> 22.01 | B149: Calculation of Adjusted Acquisition Basis
A150: =A149+0.01 -> 22.02 | B150: Building Acquisition | C150: =+C11 -> 0
A151: 22.03 | B151: Adjustment (explain) | C151: 0
A152: 22.04 | B152: Adjustment (explain) | C152: 0
A153: 22.05 | B153: Adjustment (explain) | C153: 0
A155: =A153+0.01 -> 22.06 | B155: Adjusted Acquisition Basis | C155: =SUM(C150:C154) -> 0
A156: 22.07 | B156: Comment on Acquisition Basis
A158: =A156+0.01 -> 22.08 | B158: Calculation of Adjusted Construction Basis
A159: 22.09 | B159: The computation below subtracts amounts that LHC understands are generally excluded from construction basis. If your advisors conclude that any of the formula deductions are inappropriate for your transaction, use one of the Adjustment rows to add back amounts as appropriate. Also use the Adjustment rows to exclude other amounts as appropriate for your transaction.
A161: =A159+0.01 -> 22.1 | B161: Total Development Cost | C161: =+D137 -> 0
A162: 22.11 | B162: Subtract Adjusted Acquisition Basis | C162: =+-C155 -> 0
A163: 22.12 | B163: Subtract Land Cost | C163: =+-C12-C13 -> 0
A164: 22.13 | B164: Subtract the out-of-basis portion of:
A165: 22.14 | B165: Community Facilities | C165: =-'3. Funding Characteristics'!H234 -> 0
A166: 22.15 | B166: Community Service Facilities | C166: =+-'3. Funding Characteristics'!H242 -> 0
A167: =A166+0.01 -> 22.16 | B167: Subtract Permanent Financing Costs | C167: =+-D74 -> 0
A168: 22.17 | B168: Subtract Reserves | C168: =+-D94 -> 0
A169: 22.18 | B169: Subtract Syndication Costs | C169: =+-D103 -> 0
A170: 22.19 | B170: Subtract LHC Fees | C170: =+-C121-C122-C123-C124 -> 0
A171: 22.2 | B171: Subtract Federal Grants | C171: =+-'3. Funding Characteristics'!H199 -> 0 | D171: ="See Section "&'3. Funding Characteristics'!A184 -> See Section 12
A172: =A171+0.01 -> 22.21 | B172: Subtract issuance costs for tax-exempt bonds | C172: =IF('3. Funding Characteristics'!H10="Yes",'3. Funding Characteristics'!H18,0) -> 0 | D172: ="See Funding Characteristics "&TEXT('3. Funding Characteristics'!A10,"0.00") -> See Funding Characteristics 10.02
A173: 22.22 | B173: Adjustment (explain) | C173: 0
A174: 22.23 | B174: Adjustment (explain) | C174: 0
A175: 22.24 | B175: Adjustment (explain) | C175: 0
A176: 22.25 | B176: Adjustment (explain) | C176: 0
A177: 22.26 | B177: Adjustment (explain) | C177: 0
A178: 22.27 | B178: Adjustment (explain) | C178: 0
A180: =A178+0.01 -> 22.28 | B180: Adjusted Construction Basis | C180: =SUM(C161:C178) -> 0
A181: 22.29 | B181: Comment on Construction Basis
A183: =A148+1 -> 23 | B183: Total Development Cost Summary
A184: =A183+0.01 -> 23.01 | B184: USES OF FUNDS / TOTAL DEVELOPMENT COST | C184: TOTAL
A185: =A184+0.01 -> 23.02 | B185: Building Acquisition | C185: =+C11 -> 0 | D185: =IF(K185=0,0,C185/K185) -> 0 | E185: per unit | K185: =+'4. Unit Mix and Rents'!F41 -> 0 | L185: total units
A186: 23.03 | B186: Land Acquisition | C186: =+D10-C11 -> 0 | D186: =IF(K185=0,0,C186/K185) -> 0 | E186: per unit
A187: 23.04 | B187: Construction Contract: New Construction | C187: =+C20 -> 0 | D187: =IF(K185=0,0,C187/K185) -> 0 | E187: per unit
A188: 23.05 | B188: Construction Contract: Rehab | C188: =+C21 -> 0 | D188: =IF(K185=0,0,C188/K185) -> 0 | E188: per unit
A189: 23.06 | B189: Other Construction Contract Building Costs | C189: =+D16-C188-C187 -> 0 | D189: =IF(K185=0,0,C189/K185) -> 0 | E189: per unit
A190: 23.07 | B190: Construction Contract: Site Work | C190: =+D25 -> 0 | D190: =IF(K185=0,0,C190/K185) -> 0 | E190: per unit
A191: 23.08 | B191: General Requirements | C191: =+C37 -> 0 | D191: =IF(K185=0,0,C191/K185) -> 0 | E191: per unit
A192: 23.09 | B192: Builder's Overhead | C192: =+C39 -> 0 | D192: =IF(K185=0,0,C192/K185) -> 0 | E192: per unit
A193: 23.1 | B193: Builder's Profit | C193: =+C40 -> 0 | D193: =IF(K185=0,0,C193/K185) -> 0 | E193: per unit
A194: 23.11 | B194: Other Construction Contract Costs | C194: =+D35-C193-C192-C191 -> 0 | D194: =IF(K185=0,0,C194/K185) -> 0 | E194: per unit
A195: 23.12 | B195: Hard Costs Outside Construction Contract | C195: =+D49 -> 0 | D195: =IF(K185=0,0,C195/K185) -> 0 | E195: per unit
A196: 23.13 | B196: Construction Hard Cost Contingency | C196: =+D56 -> 0 | D196: =IF(K185=0,0,C196/K185) -> 0 | E196: per unit
A197: 23.14 | B197: Total Construction Interim Costs | C197: =+D60 -> 0 | D197: =IF(K185=0,0,C197/K185) -> 0 | E197: per unit
A198: 23.15 | B198: Total Permanent Financing Costs | C198: =+D74 -> 0 | D198: =IF(K185=0,0,C198/K185) -> 0 | E198: per unit
A199: 23.16 | B199: Total LHC Risk-Sharing Fees | C199: =+D83 -> 0 | D199: =IF(K185=0,0,C199/K185) -> 0 | E199: per unit
A200: 23.17 | B200: Total Professional Fees | C200: =+D89 -> 0 | D200: =IF(K185=0,0,C200/K185) -> 0 | E200: per unit
A201: 23.18 | B201: Escrows | C201: =+C95 -> 0 | D201: =IF(K185=0,0,C201/K185) -> 0 | E201: per unit
A202: 23.19 | B202: Operating Deficit Reserve | C202: 0 | D202: =IF(K185=0,0,C202/K185) -> 0 | E202: per unit
A203: 23.2 | B203: Rent Up Reserves | C203: 0 | D203: =IF(K185=0,0,C203/K185) -> 0 | E203: per unit
A204: 23.21 | B204: Replacement Reserve Deposit IDRR | C204: 0 | D204: =IF(K185=0,0,C204/K185) -> 0 | E204: per unit
A205: 23.22 | B205: Other: | C205: 0 | D205: =IF(K185=0,0,C205/K185) -> 0 | E205: per unit
A206: 23.23 | B206: Other: | C206: 0 | D206: =IF(K185=0,0,C206/K185) -> 0 | E206: per unit
A207: 23.24 | B207: Other: | C207: 0 | D207: =IF(K185=0,0,C207/K185) -> 0 | E207: per unit
A208: 23.25 | B208: Total Syndication Costs | C208: =+D103 -> 0 | D208: =IF(K185=0,0,C208/K185) -> 0 | E208: per unit
A209: 23.26 | B209: Total Other Soft Costs | C209: =+D108 -> 0 | D209: =IF(K185=0,0,C209/K185) -> 0 | E209: per unit
A210: 23.27 | B210: Developer Fee | C210: =+C134 -> 0 | D210: =IF(K185=0,0,C210/K185) -> 0 | E210: per unit
A211: 23.28 | B211: Other Developer's Fee | C211: =+D130-C210 -> 0 | D211: =IF(K185=0,0,C211/K185) -> 0 | E211: per unit
A213: =A211+0.01 -> 23.29 | B213: Total Development Cost (Total Uses of Funds) | C213: =SUM(C185:C212) -> 0 | D213: =IF(K185=0,0,C213/K185) -> 0 | E213: per unit | K213: =+D137-C213 -> 0
A215: =A183+1 -> 24 | B215: HUD TDC Per Unit Limit
A216: =A215+0.01 -> 24.01 | B216: Parish | C216: ='2. Project Description'!E54 -> 0
A217: =A216+0.01 -> 24.02 | B217: Louisiana Cost Area for TDC Limit Purposes | C217: =+L217 ->  | L217: =VLOOKUP(C216,Parishes!A10:V73,22,FALSE) -> 
A218: =A217+0.01 -> 24.03 | B218: Primary Building Type | C218: =+'2. Project Description'!H62 -> Missing | F218: Maximum
A219: =A218+0.01 -> 24.04 | B219: Building Type for TDC Limit Purposes | C219: =VLOOKUP(C218,Controls!A50:B57,2,FALSE) -> Walkup | E219: TDC / Unit | F219: TDC | L219: =TRIM(C217&" "&C219) -> 
A221: =A219+0.01 -> 24.05 | B221: 0 BR Units | C221: =+'4. Unit Mix and Rents'!AU41 -> 0 | D221: units | E221: =VLOOKUP(L219,'HUD TDC Data'!C8:J35,L221,FALSE) ->  | F221: =+C221*E221 ->  | L221: 2
A222: =A221+0.01 -> 24.06 | B222: 1 BR Units | C222: =+'4. Unit Mix and Rents'!AV41 -> 0 | D222: units | E222: =VLOOKUP(L219,'HUD TDC Data'!C8:J35,L222,FALSE) ->  | F222: =+C222*E222 ->  | L222: 3
A223: =A222+0.01 -> 24.07 | B223: 2 BR Units | C223: =+'4. Unit Mix and Rents'!AW41 -> 0 | D223: units | E223: =VLOOKUP(L219,'HUD TDC Data'!C8:J35,L223,FALSE) ->  | F223: =+C223*E223 ->  | L223: 4
A224: =A223+0.01 -> 24.08 | B224: 3 BR Units | C224: =+'4. Unit Mix and Rents'!AX41 -> 0 | D224: units | E224: =VLOOKUP(L219,'HUD TDC Data'!C8:J35,L224,FALSE) ->  | F224: =+C224*E224 ->  | L224: 5
A225: =A224+0.01 -> 24.09 | B225: 4 BR Units | C225: =+'4. Unit Mix and Rents'!AY41 -> 0 | D225: units | E225: =VLOOKUP(L219,'HUD TDC Data'!C8:J35,L225,FALSE) ->  | F225: =+C225*E225 ->  | L225: 6
A227: =A225+0.01 -> 24.1 | B227: Total | C227: =SUM(C221:C225) -> 0 | D227: units | E227: =IF(C227=0,0,+F227/C227) -> 0 | F227: =SUM(F218:F226) ->  | G227: = Maximum TDC Limit | K227: =+F236+-F231 -> 0 | L227: Adjusted TDC, adding back Extraordinary Site Costs
K228: =IF(K227>F227,"Yes","No") ->  | L228: Above the limit, when ESC added back?
A229: =A227+0.01 -> 24.11 | B229: Compare to Estimated TDC | K229: =IF(F237>1,"Yes","No") ->  | L229: Above the limit, after subtracting ESC?
A230: =A229+0.01 -> 24.12 | B230: Total Development Cost (above) | F230: =+C213 -> 0 | K230: =IF(AND(K228="Yes",K229="No"),"Yes","No") ->  | L230: Extraordinary Site Costs needed, to be below TDC Max?
... 94 more rows

Sheet 6. Basis Calculation
A3: ='2. Project Description'!A3 -> HOMELESS & HOUSING STABILITY: AFFORDABLE HOUSING DEVELOPMENT PROGRAM
A4: =TRIM('2. Project Description'!E51)&" ("&TRIM('2. Project Description'!E53)&" LA), "&'2. Project Description'!E21 -> ( LA), | F4: Boost for Construction Basis | H4: 0
A5: COMPLETED ONLY IF LIHTC ARE INVOLVED IN THE PROJECT | F5: Boost for Acquisition Basis | H5: 0
A6: Basis Calculation | D6: =IF(C9<'3. Funding Characteristics'!H249,1,0) -> 0 | E6: =IF(D9<'3. Funding Characteristics'!H249,1,0) -> 0 | F6: =IF(E9<'3. Funding Characteristics'!H249,1,0) -> 0 | G6: =IF(F9<'3. Funding Characteristics'!H249,1,0) -> 0 | H6: =IF(G9<'3. Funding Characteristics'!H249,1,0) -> 0 | I6: =IF(H9<'3. Funding Characteristics'!H249,1,0) -> 0 | J6: =IF(I9<'3. Funding Characteristics'!H249,1,0) -> 0 | K6: =IF(J9<'3. Funding Characteristics'!H249,1,0) -> 0 | L6: =IF(K9<'3. Funding Characteristics'!H249,1,0) -> 0 | M6: =IF(L9<'3. Funding Characteristics'!H249,1,0) -> 0 | N6: =IF(M9<'3. Funding Characteristics'!H249,1,0) -> 0 | O6: =IF(N9<'3. Funding Characteristics'!H249,1,0) -> 0 | P6: =IF(O9<'3. Funding Characteristics'!H249,1,0) -> 0 | Q6: =IF(P9<'3. Funding Characteristics'!H249,1,0) -> 0 | R6: =IF(Q9<'3. Funding Characteristics'!H249,1,0) -> 0 | S6: =IF(R9<'3. Funding Characteristics'!H249,1,0) -> 0 | T6: =IF(S9<'3. Funding Characteristics'!H249,1,0) -> 0 | U6: =IF(T9<'3. Funding Characteristics'!H249,1,0) -> 0
B7: =IF(K57=0,"","Note -- there are error conditions; see the Notes at the end of this worksheet") -> 
C8: Total | D8: Configuration | E8: =IF(E6=1,"Configuration","") -> 
B9: BUILDING CONFIGURATION | C9: =+'3. Funding Characteristics'!H249 -> 0 | D9: 1 | E9: =IF(E6=1,+D9+1,"") -> 
B10: =IF('3. Funding Characteristics'!H23=0,"THIS SECTION IS NOT REQUIRED BECAUSE THERE ARE NO TAX CREDITS REQUESTED","") -> THIS SECTION IS NOT REQUIRED BECAUSE THERE ARE NO TAX CREDITS REQUESTED
B11: Number of Buildings with Configuration | C11: =SUM(D11:U11) -> 0
A13: =+'3. Funding Characteristics'!H264+'3. Funding Characteristics'!H265 -> 0 | B13: Floor Area of Residential Units + Staff Units | C13: =SUMPRODUCT(D13:U13,D11:U11) -> 0
A14: =+A16-A13-A15 -> 0 | B14: Other (Common Areas, …) | C14: =SUMPRODUCT(D14:U14,D11:U11) -> 0
A15: ='3. Funding Characteristics'!H268 -> 0 | B15: Other (Comml) | C15: =SUMPRODUCT(D15:U15,D12:U12) -> 0
A16: =+'3. Funding Characteristics'!H270 -> 0 | B16: Per Building Total Area | C16: =SUMPRODUCT(D16:U16,D11:U11) -> 0 | D16: =SUM(D13:D14) -> 0 | E16: =IF(E6=1,SUM(E13:E14),"") -> 
A18: =+'4. Unit Mix and Rents'!G41 -> 0 | B18: Number of LIHTC Units | C18: =SUMPRODUCT(D18:U18,D11:U11) -> 0
A19: =+'4. Unit Mix and Rents'!F56 -> 0 | B19: Number of Residential Units | C19: =SUMPRODUCT(D19:U19,D11:U11) -> 0
B20: Applicable Fraction by Units | D20: =IF(D19=0,0,+D18/D19) -> 0 | E20: =IF(E6=1,IF(E19=0,0,E18/E19),"") -> 
A22: =+'4. Unit Mix and Rents'!E45 -> 0 | B22: Sqft of LIHTC Units | C22: =SUMPRODUCT(D22:U22,D11:U11) -> 0
A23: =+'4. Unit Mix and Rents'!E56 -> 0 | B23: Total Sqft of Residential Units | C23: =SUMPRODUCT(D23:U23,D11:U11) -> 0
B24: Applicable Fraction by Sqft | D24: =IF(D23=0,0,+D22/D23) -> 0 | E24: =IF(E6=1,IF(E23=0,0,E22/E23),"") -> 
B26: BASIS CALCULATION
A28: =+'5. Development Costs'!C180 -> 0 | B28: Adjusted Construction Basis | C28: =SUMPRODUCT(D28:U28,D11:U11) -> 0 | D28: =IF(C16=0,0,ROUND((D16/C16)*'5. Development Costs'!C180,0)) -> 0 | E28: =IF(E6=1,ROUND((E16/C16)*'5. Development Costs'!C180,0),0) -> 0 | F28: =IF(F6=1,ROUND((F16/C16)*'5. Development Costs'!C180,0),0) -> 0 | G28: =IF(G6=1,ROUND((G16/C16)*'5. Development Costs'!C180,0),0) -> 0 | H28: =IF(H6=1,ROUND((H16/C16)*'5. Development Costs'!C180,0),0) -> 0 | I28: =IF(I6=1,ROUND((I16/C16)*'5. Development Costs'!C180,0),0) -> 0 | J28: =IF(J6=1,ROUND((J16/C16)*'5. Development Costs'!C180,0),0) -> 0 | K28: =IF(K6=1,ROUND((K16/C16)*'5. Development Costs'!C180,0),0) -> 0 | L28: =IF(L6=1,ROUND((L16/C16)*'5. Development Costs'!C180,0),0) -> 0 | M28: =IF(M6=1,ROUND((M16/C16)*'5. Development Costs'!C180,0),0) -> 0 | N28: =IF(N6=1,ROUND((N16/C16)*'5. Development Costs'!C180,0),0) -> 0 | O28: =IF(O6=1,ROUND((O16/C16)*'5. Development Costs'!C180,0),0) -> 0 | P28: =IF(P6=1,ROUND((P16/C16)*'5. Development Costs'!C180,0),0) -> 0 | Q28: =IF(Q6=1,ROUND((Q16/C16)*'5. Development Costs'!C180,0),0) -> 0 | R28: =IF(R6=1,ROUND((R16/C16)*'5. Development Costs'!C180,0),0) -> 0 | S28: =IF(S6=1,ROUND((S16/C16)*'5. Development Costs'!C180,0),0) -> 0 | T28: =IF(T6=1,ROUND((T16/C16)*'5. Development Costs'!C180,0),0) -> 0 | U28: =IF(U6=1,ROUND((U16/C16)*'5. Development Costs'!C180,0),0) -> 0
A29: =+'5. Development Costs'!C155 -> 0 | B29: Adjusted Acquisition Basis | C29: =SUMPRODUCT(D29:U29,D11:U11) -> 0 | D29: =IF(C16=0,0,ROUND((D13/C16)*'5. Development Costs'!C155,0)) -> 0 | E29: =IF(E6=1,ROUND((E13/C16)*'5. Development Costs'!C155,0),0) -> 0 | F29: =IF(F6=1,ROUND((F13/C16)*'5. Development Costs'!C155,0),0) -> 0 | G29: =IF(G6=1,ROUND((G13/C16)*'5. Development Costs'!C155,0),0) -> 0 | H29: =IF(H6=1,ROUND((H13/C16)*'5. Development Costs'!C155,0),0) -> 0 | I29: =IF(I6=1,ROUND((I13/C16)*'5. Development Costs'!C155,0),0) -> 0 | J29: =IF(J6=1,ROUND((J13/C16)*'5. Development Costs'!C155,0),0) -> 0 | K29: =IF(K6=1,ROUND((K13/C16)*'5. Development Costs'!C155,0),0) -> 0 | L29: =IF(L6=1,ROUND((L13/C16)*'5. Development Costs'!C155,0),0) -> 0 | M29: =IF(M6=1,ROUND((M13/C16)*'5. Development Costs'!C155,0),0) -> 0 | N29: =IF(N6=1,ROUND((N13/C16)*'5. Development Costs'!C155,0),0) -> 0 | O29: =IF(O6=1,ROUND((O13/C16)*'5. Development Costs'!C155,0),0) -> 0 | P29: =IF(P6=1,ROUND((P13/C16)*'5. Development Costs'!C155,0),0) -> 0 | Q29: =IF(Q6=1,ROUND((Q13/C16)*'5. Development Costs'!C155,0),0) -> 0 | R29: =IF(R6=1,ROUND((R13/C16)*'5. Development Costs'!C155,0),0) -> 0 | S29: =IF(S6=1,ROUND((S13/C16)*'5. Development Costs'!C155,0),0) -> 0 | T29: =IF(T6=1,ROUND((T13/C16)*'5. Development Costs'!C155,0),0) -> 0 | U29: =IF(U6=1,ROUND((U13/C16)*'5. Development Costs'!C155,0),0) -> 0
A31: =+H4+1 -> 1 | B31: Construction Basis After Boost | C31: =SUMPRODUCT(D31:U31,D11:U11) -> 0 | D31: =+D28*A31 -> 0 | E31: =IF(E6=1,+E28*A31,"") ->  | F31: =IF(F6=1,+F28*A31,"") ->  | G31: =IF(G6=1,+G28*A31,"") ->  | H31: =IF(H6=1,+H28*A31,"") ->  | I31: =IF(I6=1,+I28*A31,"") ->  | J31: =IF(J6=1,+J28*A31,"") ->  | K31: =IF(K6=1,+K28*A31,"") ->  | L31: =IF(L6=1,+L28*A31,"") ->  | M31: =IF(M6=1,+M28*A31,"") ->  | N31: =IF(N6=1,+N28*A31,"") ->  | O31: =IF(O6=1,+O28*A31,"") ->  | P31: =IF(P6=1,+P28*A31,"") ->  | Q31: =IF(Q6=1,+Q28*A31,"") ->  | R31: =IF(R6=1,+R28*A31,"") ->  | S31: =IF(S6=1,+S28*A31,"") ->  | T31: =IF(T6=1,+T28*A31,"") ->  | U31: =IF(U6=1,+U28*A31,"") -> 
A32: =+H5+1 -> 1 | B32: Acquisition Basis After Boost | C32: =SUMPRODUCT(D32:U32,D11:U11) -> 0 | D32: =+D29*A32 -> 0 | E32: =IF(E6=1,+E29*A32,"") ->  | F32: =IF(F6=1,+F29*A32,"") ->  | G32: =IF(G6=1,+G29*A32,"") ->  | H32: =IF(H6=1,+H29*A32,"") ->  | I32: =IF(I6=1,+I29*A32,"") ->  | J32: =IF(J6=1,+J29*A32,"") ->  | K32: =IF(K6=1,+K29*A32,"") ->  | L32: =IF(L6=1,+L29*A32,"") ->  | M32: =IF(M6=1,+M29*A32,"") ->  | N32: =IF(N6=1,+N29*A32,"") ->  | O32: =IF(O6=1,+O29*A32,"") ->  | P32: =IF(P6=1,+P29*A32,"") ->  | Q32: =IF(Q6=1,+Q29*A32,"") ->  | R32: =IF(R6=1,+R29*A32,"") ->  | S32: =IF(S6=1,+S29*A32,"") ->  | T32: =IF(T6=1,+T29*A32,"") ->  | U32: =IF(U6=1,+U29*A32,"") -> 
B34: Applicable Fraction | C34: =IF(C31=0,0,+C36/C31) -> 0 | D34: =MIN(D24,D20) -> 0 | E34: =IF(E6=1,MIN(E24,E20),"") -> 
B36: Unadjusted Qualified Construction Basis | C36: =SUMPRODUCT(D36:U36,D11:U11) -> 0 | D36: =+D34*D31 -> 0 | E36: =IF(E6=1,+E34*E31,"") -> 
B37: Unadjusted Qualified Acquisition. Basis | C37: =SUMPRODUCT(D37:U37,D11:U11) -> 0 | D37: =+D34*D32 -> 0 | E37: =IF(E6=1,E34*E32,"") -> 
B39: Homeless Basis Adjustment (Construction)* | C39: =SUMPRODUCT(D39:U39,D11:U11) -> 0 | D39: 0 | E39: 0 | F39: 0 | G39: 0 | H39: 0 | I39: 0 | J39: 0 | K39: 0 | L39: 0 | M39: 0 | N39: 0 | O39: 0 | P39: 0 | Q39: 0 | R39: 0 | S39: 0 | T39: 0 | U39: 0
B40: Homeless Basis Adjustment (Acquisition)* | C40: =SUMPRODUCT(D40:U40,D11:U11) -> 0 | D40: 0 | E40: 0 | F40: 0 | G40: 0 | H40: 0 | I40: 0 | J40: 0 | K40: 0 | L40: 0 | M40: 0 | N40: 0 | O40: 0 | P40: 0 | Q40: 0 | R40: 0 | S40: 0 | T40: 0 | U40: 0
B42: Qualified Construction Basis | C42: =SUMPRODUCT(D42:U42,D11:U11) -> 0 | D42: =+D39+D36 -> 0 | E42: =IF(E6=1,+E36+E39,"") -> 
B43: Qualified Acquisition Basis | C43: =SUMPRODUCT(D43:U43,D11:U11) -> 0 | D43: =+D40+D37 -> 0 | E43: =IF(E6=1,+E37+E40,"") -> 
B45: Construction Credit Percentage | C45: =IF('3. Funding Characteristics'!H22="Yes",'3. Funding Characteristics'!H24,IF('3. Funding Characteristics'!H13="Yes",'3. Funding Characteristics'!H15,0)) -> 0
B46: Acquisition Credit Percentage | C46: =IF('3. Funding Characteristics'!H22="Yes",+'3. Funding Characteristics'!H25,IF('3. Funding Characteristics'!H13="Yes",'3. Funding Characteristics'!H15,0)) -> 0
B49: Permitted Construction Credit | C49: =SUMPRODUCT(D49:U49,D11:U11) -> 0 | D49: =+D42*C45 -> 0 | E49: =IF(E6=1,+E42*C45,"") ->  | F49: =IF(F6=1,+F42*C45,"") ->  | G49: =IF(G6=1,+G42*C45,"") ->  | H49: =IF(H6=1,+H42*C45,"") ->  | I49: =IF(I6=1,+I42*C45,"") ->  | J49: =IF(J6=1,+J42*C45,"") ->  | K49: =IF(K6=1,+K42*C45,"") ->  | L49: =IF(L6=1,+L42*C45,"") ->  | M49: =IF(M6=1,+M42*C45,"") ->  | N49: =IF(N6=1,+N42*C45,"") ->  | O49: =IF(O6=1,+O42*C45,"") ->  | P49: =IF(P6=1,+P42*C45,"") ->  | Q49: =IF(Q6=1,+Q42*C45,"") ->  | R49: =IF(R6=1,+R42*C45,"") ->  | S49: =IF(S6=1,+S42*C45,"") ->  | T49: =IF(T6=1,+T42*C45,"") ->  | U49: =IF(U6=1,+U42*C45,"") -> 
B50: Permitted Acquisition Credi | C50: =SUMPRODUCT(D50:U50,D11:U11) -> 0 | D50: =+D43*C46 -> 0 | E50: =IF(E6=1,+E43*C46,"") ->  | F50: =IF(F6=1,+F43*C46,"") ->  | G50: =IF(G6=1,+G43*C46,"") ->  | H50: =IF(H6=1,+H43*C46,"") ->  | I50: =IF(I6=1,+I43*C46,"") ->  | J50: =IF(J6=1,+J43*C46,"") ->  | K50: =IF(K6=1,+K43*C46,"") ->  | L50: =IF(L6=1,+L43*C46,"") ->  | M50: =IF(M6=1,+M43*C46,"") ->  | N50: =IF(N6=1,+N43*C46,"") ->  | O50: =IF(O6=1,+O43*C46,"") ->  | P50: =IF(P6=1,+P43*C46,"") ->  | Q50: =IF(Q6=1,+Q43*C46,"") ->  | R50: =IF(R6=1,+R43*C46,"") ->  | S50: =IF(S6=1,+S43*C46,"") ->  | T50: =IF(T6=1,+T43*C46,"") ->  | U50: =IF(U6=1,+U43*C46,"") -> 
B52: Maximum Permitted Credit for Project | C52: =+C50+C49 -> 0
B53: (Based on estimated development costs, without regard to Equity Gap limitation and without regard to maximum credits allowable in the selected pool)
B55: * Section 42(c)(1)(E) permits an upward adjustment to basis for buildings used at least in part "to provide supportive services designed to assist [homeless] tenants in locating and retaiing permanent housing".
B57: Error checks:

Sheet 7. Revenues and Expenses
A3: ='2. Project Description'!A3 -> HOMELESS & HOUSING STABILITY: AFFORDABLE HOUSING DEVELOPMENT PROGRAM
A4: =TRIM('2. Project Description'!E51)&" ("&TRIM('2. Project Description'!E53)&" LA), "&'2. Project Description'!E21 -> ( LA),
A6: Revenues and Expenses, For First Stabilized Year After Lease-Up
A8: ='5. Development Costs'!A332+1 -> 27 | B8: Revenues for First Stabilized Year
A9: =A8+0.01 -> 27.01 | B9: Gross Potential Rents (excluding utilities) | C9: =+'4. Unit Mix and Rents'!L41*12 -> 0
A10: =A9+0.01 -> 27.02 | B10: Interest Income | C10: 0
A11: =A10+0.01 -> 27.03 | B11: Laundry Income | C11: 0
A12: 27.04 | B12: Parking Income | C12: 0
A13: 27.05 | B13: Tenant Charges (e.g. late fees) | C13: 0
A14: 27.06 | B14: Operating Subsidies:
A15: 27.07 | B15: Other (identify) | C15: 0
A16: 27.08 | B16: Other (identify) | C16: 0
A17: 27.09 | B17: Other (identify) | C17: 0
A18: 27.1 | B18: Other Revenue:
A19: 27.11 | B19: Other (identify) | C19: 0
A20: 27.12 | B20: Other (identify) | C20: 0
A21: 27.13 | B21: Other (identify) | C21: 0
A23: =A21+0.01 -> 27.14 | B23: Total Revenue Before Rent Loss | C23: =SUM(C9:C22) -> 0
A24: =A23+0.01 -> 27.15 | B24: Comment regarding Revenues
A26: =A8+1 -> 28 | B26: Must-Pay Operating Expenses for First Stabilized Year
A27: =A26+0.01 -> 28.01 | B27: Administrative Expenses: | C27: =SUM(C28:C47) -> 0 | D27: =IF('4. Unit Mix and Rents'!F41=0,0,C27/'4. Unit Mix and Rents'!F41) -> 0 | E27: PUPA
A28: 28.01.01 | B28: Accounting Services | C28: 0
A29: 28.01.02 | B29: Administrative Rent Free Unit(s) | C29: 0
A30: 28.01.03 | B30: Bad Debt | C30: 0
A31: 28.01.04 | B31: Rent Concessions | C31: 0
A32: 28.01.05 | B32: Advertising | C32: 0
A33: 28.01.06 | B33: LHC Compliance Monitoring Fee | C33: =+'3. Funding Characteristics'!H460 -> 0
A34: 28.01.07 | B34: Compliance Fees (Other) | C34: 0
A35: 28.01.08 | B35: LHC Asset Management Fee | C35: 0
A36: 28.01.09 | B36: Asset Management Fee (Other) | C36: 0
A37: 28.01.10 | B37: Legal Auditing | C37: 0
A38: 28.01.11 | B38: Management Fee | C38: 0
A39: 28.01.12 | B39: Manager(s) Salaries | C39: 0
A40: 28.01.13 | B40: Office Salaries | C40: 0
A41: 28.01.14 | B41: Office Supplies | C41: 0
A42: 28.01.15 | B42: Telephone | C42: 0
A43: 28.01.16 | B43: Supportive Services Expense | C43: 0
A44: 28.01.17 | B44: Other (identify) | C44: 0
A45: 28.01.18 | B45: Other (identify) | C45: 0
A46: 28.01.19 | B46: Other (identify) | C46: 0
A48: 28.02 | B48: Operating/Maintenance Expenses: | C48: =SUM(C49:C59) -> 0 | D48: =IF('4. Unit Mix and Rents'!F41=0,0,C48/'4. Unit Mix and Rents'!F41) -> 0 | E48: PUPA
A49: 28.02.01 | B49: Elevator Maintenance/Contract | C49: 0
A50: 28.02.02 | B50: Exterminating Contract | C50: 0
A51: 28.02.03 | B51: Grounds Expense | C51: 0
A52: 28.02.04 | B52: Janitorial Services | C52: 0
A53: 28.02.05 | B53: Repairs/Maintenance | C53: 0
A54: 28.02.06 | B54: Security Payroll/Contract | C54: 0
A55: 28.02.07 | B55: Waste Collection | C55: 0
A56: 28.02.08 | B56: Other (identify) | C56: 0
A57: 28.02.09 | B57: Other (identify) | C57: 0
A58: 28.02.10 | B58: Other (identify) | C58: 0
A60: 28.03 | B60: Utilities Expenses: | C60: =SUM(C61:C68) -> 0 | D60: =IF('4. Unit Mix and Rents'!F41=0,0,C60/'4. Unit Mix and Rents'!F41) -> 0 | E60: PUPA
A61: 28.03.01 | B61: Electricity | C61: 0
A62: 28.03.02 | B62: Gas | C62: 0
A63: 28.03.03 | B63: Sewer | C63: 0
A64: 28.03.04 | B64: Water | C64: 0
A65: 28.03.05 | B65: Other (identify): | C65: 0
A66: 28.03.06 | B66: Other (identify) | C66: 0
A67: 28.03.07 | B67: Other (identify) | C67: 0
A69: 28.04 | B69: Tax and Insurance Expenses: | C69: =SUM(C70:C78) -> 0 | D69: =IF('4. Unit Mix and Rents'!F41=0,0,C69/'4. Unit Mix and Rents'!F41) -> 0 | E69: PUPA
A70: 28.04.01 | B70: Property Insurance | C70: 0
A71: 28.04.02 | B71: Other Insurance | C71: 0
A72: 28.04.03 | B72: Payroll Taxes | C72: 0
A73: 28.04.04 | B73: Real Estate Taxes | C73: 0
A74: 28.04.05 | B74: Workmen's Compensation | C74: 0
A75: 28.04.06 | B75: Other (identify): | C75: 0
A76: 28.04.07 | B76: Other (identify) | C76: 0
A77: 28.04.08 | B77: Other (identify) | C77: 0
A79: 28.05 | B79: Total Operating Expenses | C79: =+C69+C60+C48+C27 -> 0 | D79: =IF('4. Unit Mix and Rents'!F41=0,0,C79/'4. Unit Mix and Rents'!F41) -> 0 | E79: PUPA
A81: 28.06 | B81: ="LHC Minimum Expenses" -> LHC Minimum Expenses | C81: =+D81*'4. Unit Mix and Rents'!F41 -> 0 | D81: 3600 | E81: PUPA
A82: 28.07 | B82: =IF(C79<C81,K82,"") ->  | K82: You have proposed total operating expenses that are below the minimum level specified in the QAP. Either increase the operating expenses so they are at or above LHC's minimum, or your Checklist response must include a waiver request.
A84: 28.08 | B84: Use These Expenses for Underwriting | C84: =+C79 -> 0 | D84: =IF('4. Unit Mix and Rents'!F41=0,0,C84/'4. Unit Mix and Rents'!F41) -> 0 | E84: PUPA
A85: 28.09 | B85: =IF(AND('2. Project Description'!H62=Controls!A52,'7. Revenues and Expenses'!C49=0),"This is an elevator building; explain why no elevator maintenance was budgeted.","") -> 
A87: 28.1 | B87: =IF(C36>0,"Asset Management Fees (Other) is generally not permitted as an ‘above the line’ operating expense, and may be structured to be paid only from the sponsor’s share of Surplus Cash—input any such fee at Section 45.01 below.",IF(C35<>0,"Include a full explanation of the proposed asset management fee(s) below.","")) -> 
A89: 28.11 | B89: Comment regarding Must-Pay Expenses
A91: =A26+1 -> 29 | B91: Contingent Operating Expenses
A92: =A91+0.01 -> 29.01 | B92: Please explain below any operating expenses that are payable only if cash is available, and/or after certain other payments are made first from available cash flow. Please use the comment area below if additional explanation is needed.
A94: 29.02 | B94: Asset Management Fee | C94: 0 | J94: =+C94+C36 -> 0 | K94: Total asset mgmt fee (must-pay + contingent)
A95: =A94+0.01 -> 29.03 | B95: Investor Service Fee | C95: 0 | J95: 5000 | K95: Maximum allowable as operating expense (combination of must-pay + contingent)
A96: 29.04 | B96: Other (identify) | C96: 0 | J96: =MIN(J95,J94) -> 0 | K96: Allowable as operating expense for this transaction
A97: 29.05 | B97: Other (identify) | C97: 0 | J97: =+J96-C36 -> 0 | K97: Allowable as contingent expense for this transaction
A98: 29.06 | B98: Other (identify) | C98: 0
A99: 29.07 | B99: Other (identify) | C99: 0
A100: 29.08 | B100: Other (identify) | C100: 0
A102: =A100+0.01 -> 29.09 | B102: Comment regarding Contingent Expenses

Sheet 8. Proforma
A3: =+'2. Project Description'!A3 -> HOMELESS & HOUSING STABILITY: AFFORDABLE HOUSING DEVELOPMENT PROGRAM
A4: =TRIM('2. Project Description'!E51)&" ("&TRIM('2. Project Description'!E53)&" LA), "&'2. Project Description'!E21 -> ( LA),
A6: Pro Forma Cash Flows
A8: 9 | H8: =+'4. Unit Mix and Rents'!F41 -> 0 | I8: Units
C9: 1 | D9: =+C9+1 -> 2 | E9: 3 | F9: 4 | G9: 5 | H9: 6 | I9: 7 | J9: 8 | K9: 9 | L9: 10 | M9: 11 | N9: 12 | O9: 13 | P9: 14 | Q9: 15 | R9: 16 | S9: 17 | T9: 18 | U9: 19 | V9: 20 | W9: 21 | X9: 22 | Y9: 23 | Z9: 24 | AA9: 25 | AB9: 26 | AC9: 27 | AD9: 28 | AE9: 29 | AF9: 30 | AG9: 31 | AH9: 32 | AI9: 33 | AJ9: 34 | AK9: 35 | AL9: 36 | AM9: 37 | AN9: 38 | AO9: 39 | AP9: 40
A10: =ROW(A10)-A8 -> 1 | C10: Year 1 | D10: Year 2 | E10: Year 3 | F10: Year 4 | G10: Year 5 | H10: Year 6 | I10: Year 7 | J10: Year 8 | K10: Year 9 | L10: Year 10 | M10: Year 11 | N10: Year 12 | O10: Year 13 | P10: Year 14 | Q10: Year 15 | R10: Year 16 | S10: Year 17 | T10: Year 18 | U10: Year 19 | V10: Year 20 | W10: Year 21 | X10: Year 22 | Y10: Year 23 | Z10: Year 24 | AA10: Year 25 | AB10: Year 26 | AC10: Year 27 | AD10: Year 28 | AE10: Year 29 | AF10: Year 30 | AG10: Year 31 | AH10: Year 32 | AI10: Year 33 | AJ10: Year 34 | AK10: Year 35 | AL10: Year 36 | AM10: Year 37 | AN10: Year 38 | AO10: Year 39 | AP10: Year 40
A11: =ROW(A11)-A8 -> 2
A12: =ROW(A12)-A8 -> 3 | B12: Rent Loss % | C12: =+'3. Funding Characteristics'!H386 -> 0.07 | D12: =+'3. Funding Characteristics'!H386 -> 0.07 | E12: =+'3. Funding Characteristics'!H386 -> 0.07 | F12: =+'3. Funding Characteristics'!H388 -> 0.07 | G12: =+F12 -> 0.07 | H12: 0.07 | I12: 0.07 | J12: 0.07 | K12: 0.07 | L12: 0.07 | M12: 0.07 | N12: 0.07 | O12: 0.07 | P12: 0.07 | Q12: 0.07 | R12: 0.07 | S12: 0.07 | T12: 0.07 | U12: 0.07 | V12: 0.07 | W12: 0.07 | X12: 0.07 | Y12: 0.07 | Z12: 0.07 | AA12: 0.07 | AB12: 0.07 | AC12: 0.07 | AD12: 0.07 | AE12: 0.07 | AF12: 0.07 | AG12: 0.07 | AH12: 0.07 | AI12: 0.07 | AJ12: 0.07 | AK12: 0.07 | AL12: 0.07 | AM12: 0.07 | AN12: 0.07 | AO12: 0.07 | AP12: 0.07
A13: =ROW(A13)-A8 -> 4
A14: =ROW(A14)-A8 -> 5 | B14: Gross Rent Potential | C14: =+'7. Revenues and Expenses'!C9 -> 0 | D14: =ROUND(C14*(1+'3. Funding Characteristics'!H390),0) -> 0 | E14: =ROUND(D14*(1+'3. Funding Characteristics'!H390),0) -> 0 | F14: =ROUND(E14*(1+'3. Funding Characteristics'!H392),0) -> 0 | G14: =ROUND(F14*(1+'3. Funding Characteristics'!H392),0) -> 0 | H14: =ROUND(G14*(1+'3. Funding Characteristics'!H392),0) -> 0 | I14: =ROUND(H14*(1+'3. Funding Characteristics'!H392),0) -> 0 | J14: =ROUND(I14*(1+'3. Funding Characteristics'!H392),0) -> 0 | K14: =ROUND(J14*(1+'3. Funding Characteristics'!H392),0) -> 0 | L14: =ROUND(K14*(1+'3. Funding Characteristics'!H392),0) -> 0 | M14: =ROUND(L14*(1+'3. Funding Characteristics'!H392),0) -> 0 | N14: =ROUND(M14*(1+'3. Funding Characteristics'!H392),0) -> 0 | O14: =ROUND(N14*(1+'3. Funding Characteristics'!H392),0) -> 0 | P14: =ROUND(O14*(1+'3. Funding Characteristics'!H392),0) -> 0 | Q14: =ROUND(P14*(1+'3. Funding Characteristics'!H392),0) -> 0 | R14: =ROUND(Q14*(1+'3. Funding Characteristics'!H392),0) -> 0 | S14: =ROUND(R14*(1+'3. Funding Characteristics'!H392),0) -> 0 | T14: =ROUND(S14*(1+'3. Funding Characteristics'!H392),0) -> 0 | U14: =ROUND(T14*(1+'3. Funding Characteristics'!H392),0) -> 0 | V14: =ROUND(U14*(1+'3. Funding Characteristics'!H392),0) -> 0 | W14: =ROUND(V14*(1+'3. Funding Characteristics'!H392),0) -> 0 | X14: =ROUND(W14*(1+'3. Funding Characteristics'!H392),0) -> 0 | Y14: =ROUND(X14*(1+'3. Funding Characteristics'!H392),0) -> 0 | Z14: =ROUND(Y14*(1+'3. Funding Characteristics'!H392),0) -> 0 | AA14: =ROUND(Z14*(1+'3. Funding Characteristics'!H392),0) -> 0 | AB14: =ROUND(AA14*(1+'3. Funding Characteristics'!H392),0) -> 0 | AC14: =ROUND(AB14*(1+'3. Funding Characteristics'!H392),0) -> 0 | AD14: =ROUND(AC14*(1+'3. Funding Characteristics'!H392),0) -> 0 | AE14: =ROUND(AD14*(1+'3. Funding Characteristics'!H392),0) -> 0 | AF14: =ROUND(AE14*(1+'3. Funding Characteristics'!H392),0) -> 0 | AG14: =ROUND(AF14*(1+'3. Funding Characteristics'!H392),0) -> 0 | AH14: =ROUND(AG14*(1+'3. Funding Characteristics'!H392),0) -> 0 | AI14: =ROUND(AH14*(1+'3. Funding Characteristics'!H392),0) -> 0 | AJ14: =ROUND(AI14*(1+'3. Funding Characteristics'!H392),0) -> 0 | AK14: =ROUND(AJ14*(1+'3. Funding Characteristics'!H392),0) -> 0 | AL14: =ROUND(AK14*(1+'3. Funding Characteristics'!H392),0) -> 0 | AM14: =ROUND(AL14*(1+'3. Funding Characteristics'!H392),0) -> 0 | AN14: =ROUND(AM14*(1+'3. Funding Characteristics'!H392),0) -> 0 | AO14: =ROUND(AN14*(1+'3. Funding Characteristics'!H392),0) -> 0 | AP14: =ROUND(AO14*(1+'3. Funding Characteristics'!H392),0) -> 0
A15: =ROW(A15)-A8 -> 6 | B15: Rent Loss | C15: =-ROUND(C14*C12,0) -> 0 | D15: 0 | E15: 0 | F15: 0 | G15: 0 | H15: 0 | I15: 0 | J15: 0 | K15: 0 | L15: 0 | M15: 0 | N15: 0 | O15: 0 | P15: 0 | Q15: 0 | R15: 0 | S15: 0 | T15: 0 | U15: 0 | V15: 0 | W15: 0 | X15: 0 | Y15: 0 | Z15: 0 | AA15: 0 | AB15: 0 | AC15: 0 | AD15: 0 | AE15: 0 | AF15: 0 | AG15: 0 | AH15: 0 | AI15: 0 | AJ15: 0 | AK15: 0 | AL15: 0 | AM15: 0 | AN15: 0 | AO15: 0 | AP15: 0
A16: =ROW(A16)-A8 -> 7 | B16: Interest | C16: =+'7. Revenues and Expenses'!C10 -> 0 | D16: =ROUND(C16*(1+'3. Funding Characteristics'!H390),0) -> 0 | E16: =ROUND(D16*(1+'3. Funding Characteristics'!H390),0) -> 0 | F16: =ROUND(E16*(1+'3. Funding Characteristics'!H392),0) -> 0 | G16: =ROUND(F16*(1+'3. Funding Characteristics'!H392),0) -> 0 | H16: =ROUND(G16*(1+'3. Funding Characteristics'!H392),0) -> 0 | I16: =ROUND(H16*(1+'3. Funding Characteristics'!H392),0) -> 0 | J16: =ROUND(I16*(1+'3. Funding Characteristics'!H392),0) -> 0 | K16: =ROUND(J16*(1+'3. Funding Characteristics'!H392),0) -> 0 | L16: =ROUND(K16*(1+'3. Funding Characteristics'!H392),0) -> 0 | M16: =ROUND(L16*(1+'3. Funding Characteristics'!H392),0) -> 0 | N16: =ROUND(M16*(1+'3. Funding Characteristics'!H392),0) -> 0 | O16: =ROUND(N16*(1+'3. Funding Characteristics'!H392),0) -> 0 | P16: =ROUND(O16*(1+'3. Funding Characteristics'!H392),0) -> 0 | Q16: =ROUND(P16*(1+'3. Funding Characteristics'!H392),0) -> 0 | R16: =ROUND(Q16*(1+'3. Funding Characteristics'!H392),0) -> 0 | S16: =ROUND(R16*(1+'3. Funding Characteristics'!H392),0) -> 0 | T16: =ROUND(S16*(1+'3. Funding Characteristics'!H392),0) -> 0 | U16: =ROUND(T16*(1+'3. Funding Characteristics'!H392),0) -> 0 | V16: =ROUND(U16*(1+'3. Funding Characteristics'!H392),0) -> 0 | W16: =ROUND(V16*(1+'3. Funding Characteristics'!H392),0) -> 0 | X16: =ROUND(W16*(1+'3. Funding Characteristics'!H392),0) -> 0 | Y16: =ROUND(X16*(1+'3. Funding Characteristics'!H392),0) -> 0 | Z16: =ROUND(Y16*(1+'3. Funding Characteristics'!H392),0) -> 0 | AA16: =ROUND(Z16*(1+'3. Funding Characteristics'!H392),0) -> 0 | AB16: =ROUND(AA16*(1+'3. Funding Characteristics'!H392),0) -> 0 | AC16: =ROUND(AB16*(1+'3. Funding Characteristics'!H392),0) -> 0 | AD16: =ROUND(AC16*(1+'3. Funding Characteristics'!H392),0) -> 0 | AE16: =ROUND(AD16*(1+'3. Funding Characteristics'!H392),0) -> 0 | AF16: =ROUND(AE16*(1+'3. Funding Characteristics'!H392),0) -> 0 | AG16: =ROUND(AF16*(1+'3. Funding Characteristics'!H392),0) -> 0 | AH16: =ROUND(AG16*(1+'3. Funding Characteristics'!H392),0) -> 0 | AI16: =ROUND(AH16*(1+'3. Funding Characteristics'!H392),0) -> 0 | AJ16: =ROUND(AI16*(1+'3. Funding Characteristics'!H392),0) -> 0 | AK16: =ROUND(AJ16*(1+'3. Funding Characteristics'!H392),0) -> 0 | AL16: =ROUND(AK16*(1+'3. Funding Characteristics'!H392),0) -> 0 | AM16: =ROUND(AL16*(1+'3. Funding Characteristics'!H392),0) -> 0 | AN16: =ROUND(AM16*(1+'3. Funding Characteristics'!H392),0) -> 0 | AO16: =ROUND(AN16*(1+'3. Funding Characteristics'!H392),0) -> 0 | AP16: =ROUND(AO16*(1+'3. Funding Characteristics'!H392),0) -> 0
A17: =ROW(A17)-A8 -> 8 | B17: Laundry | C17: =+'7. Revenues and Expenses'!C11 -> 0 | D17: =ROUND(C17*(1+'3. Funding Characteristics'!H390),0) -> 0 | E17: =ROUND(D17*(1+'3. Funding Characteristics'!H390),0) -> 0 | F17: =ROUND(E17*(1+'3. Funding Characteristics'!H392),0) -> 0 | G17: =ROUND(F17*(1+'3. Funding Characteristics'!H392),0) -> 0 | H17: =ROUND(G17*(1+'3. Funding Characteristics'!H392),0) -> 0 | I17: =ROUND(H17*(1+'3. Funding Characteristics'!H392),0) -> 0 | J17: =ROUND(I17*(1+'3. Funding Characteristics'!H392),0) -> 0 | K17: =ROUND(J17*(1+'3. Funding Characteristics'!H392),0) -> 0 | L17: =ROUND(K17*(1+'3. Funding Characteristics'!H392),0) -> 0 | M17: =ROUND(L17*(1+'3. Funding Characteristics'!H392),0) -> 0 | N17: =ROUND(M17*(1+'3. Funding Characteristics'!H392),0) -> 0 | O17: =ROUND(N17*(1+'3. Funding Characteristics'!H392),0) -> 0 | P17: =ROUND(O17*(1+'3. Funding Characteristics'!H392),0) -> 0 | Q17: =ROUND(P17*(1+'3. Funding Characteristics'!H392),0) -> 0 | R17: =ROUND(Q17*(1+'3. Funding Characteristics'!H392),0) -> 0 | S17: =ROUND(R17*(1+'3. Funding Characteristics'!H392),0) -> 0 | T17: =ROUND(S17*(1+'3. Funding Characteristics'!H392),0) -> 0 | U17: =ROUND(T17*(1+'3. Funding Characteristics'!H392),0) -> 0 | V17: =ROUND(U17*(1+'3. Funding Characteristics'!H392),0) -> 0 | W17: =ROUND(V17*(1+'3. Funding Characteristics'!H392),0) -> 0 | X17: =ROUND(W17*(1+'3. Funding Characteristics'!H392),0) -> 0 | Y17: =ROUND(X17*(1+'3. Funding Characteristics'!H392),0) -> 0 | Z17: =ROUND(Y17*(1+'3. Funding Characteristics'!H392),0) -> 0 | AA17: =ROUND(Z17*(1+'3. Funding Characteristics'!H392),0) -> 0 | AB17: =ROUND(AA17*(1+'3. Funding Characteristics'!H392),0) -> 0 | AC17: =ROUND(AB17*(1+'3. Funding Characteristics'!H392),0) -> 0 | AD17: =ROUND(AC17*(1+'3. Funding Characteristics'!H392),0) -> 0 | AE17: =ROUND(AD17*(1+'3. Funding Characteristics'!H392),0) -> 0 | AF17: =ROUND(AE17*(1+'3. Funding Characteristics'!H392),0) -> 0 | AG17: =ROUND(AF17*(1+'3. Funding Characteristics'!H392),0) -> 0 | AH17: =ROUND(AG17*(1+'3. Funding Characteristics'!H392),0) -> 0 | AI17: =ROUND(AH17*(1+'3. Funding Characteristics'!H392),0) -> 0 | AJ17: =ROUND(AI17*(1+'3. Funding Characteristics'!H392),0) -> 0 | AK17: =ROUND(AJ17*(1+'3. Funding Characteristics'!H392),0) -> 0 | AL17: =ROUND(AK17*(1+'3. Funding Characteristics'!H392),0) -> 0 | AM17: =ROUND(AL17*(1+'3. Funding Characteristics'!H392),0) -> 0 | AN17: =ROUND(AM17*(1+'3. Funding Characteristics'!H392),0) -> 0 | AO17: =ROUND(AN17*(1+'3. Funding Characteristics'!H392),0) -> 0 | AP17: =ROUND(AO17*(1+'3. Funding Characteristics'!H392),0) -> 0
A18: =ROW(A18)-A8 -> 9 | B18: Parking | C18: =+'7. Revenues and Expenses'!C12 -> 0 | D18: =ROUND(C18*(1+'3. Funding Characteristics'!H390),0) -> 0 | E18: =ROUND(D18*(1+'3. Funding Characteristics'!H390),0) -> 0 | F18: =ROUND(E18*(1+'3. Funding Characteristics'!H392),0) -> 0 | G18: =ROUND(F18*(1+'3. Funding Characteristics'!H392),0) -> 0 | H18: =ROUND(G18*(1+'3. Funding Characteristics'!H392),0) -> 0 | I18: =ROUND(H18*(1+'3. Funding Characteristics'!H392),0) -> 0 | J18: =ROUND(I18*(1+'3. Funding Characteristics'!H392),0) -> 0 | K18: =ROUND(J18*(1+'3. Funding Characteristics'!H392),0) -> 0 | L18: =ROUND(K18*(1+'3. Funding Characteristics'!H392),0) -> 0 | M18: =ROUND(L18*(1+'3. Funding Characteristics'!H392),0) -> 0 | N18: =ROUND(M18*(1+'3. Funding Characteristics'!H392),0) -> 0 | O18: =ROUND(N18*(1+'3. Funding Characteristics'!H392),0) -> 0 | P18: =ROUND(O18*(1+'3. Funding Characteristics'!H392),0) -> 0 | Q18: =ROUND(P18*(1+'3. Funding Characteristics'!H392),0) -> 0 | R18: =ROUND(Q18*(1+'3. Funding Characteristics'!H392),0) -> 0 | S18: =ROUND(R18*(1+'3. Funding Characteristics'!H392),0) -> 0 | T18: =ROUND(S18*(1+'3. Funding Characteristics'!H392),0) -> 0 | U18: =ROUND(T18*(1+'3. Funding Characteristics'!H392),0) -> 0 | V18: =ROUND(U18*(1+'3. Funding Characteristics'!H392),0) -> 0 | W18: =ROUND(V18*(1+'3. Funding Characteristics'!H392),0) -> 0 | X18: =ROUND(W18*(1+'3. Funding Characteristics'!H392),0) -> 0 | Y18: =ROUND(X18*(1+'3. Funding Characteristics'!H392),0) -> 0 | Z18: =ROUND(Y18*(1+'3. Funding Characteristics'!H392),0) -> 0 | AA18: =ROUND(Z18*(1+'3. Funding Characteristics'!H392),0) -> 0 | AB18: =ROUND(AA18*(1+'3. Funding Characteristics'!H392),0) -> 0 | AC18: =ROUND(AB18*(1+'3. Funding Characteristics'!H392),0) -> 0 | AD18: =ROUND(AC18*(1+'3. Funding Characteristics'!H392),0) -> 0 | AE18: =ROUND(AD18*(1+'3. Funding Characteristics'!H392),0) -> 0 | AF18: =ROUND(AE18*(1+'3. Funding Characteristics'!H392),0) -> 0 | AG18: =ROUND(AF18*(1+'3. Funding Characteristics'!H392),0) -> 0 | AH18: =ROUND(AG18*(1+'3. Funding Characteristics'!H392),0) -> 0 | AI18: =ROUND(AH18*(1+'3. Funding Characteristics'!H392),0) -> 0 | AJ18: =ROUND(AI18*(1+'3. Funding Characteristics'!H392),0) -> 0 | AK18: =ROUND(AJ18*(1+'3. Funding Characteristics'!H392),0) -> 0 | AL18: =ROUND(AK18*(1+'3. Funding Characteristics'!H392),0) -> 0 | AM18: =ROUND(AL18*(1+'3. Funding Characteristics'!H392),0) -> 0 | AN18: =ROUND(AM18*(1+'3. Funding Characteristics'!H392),0) -> 0 | AO18: =ROUND(AN18*(1+'3. Funding Characteristics'!H392),0) -> 0 | AP18: =ROUND(AO18*(1+'3. Funding Characteristics'!H392),0) -> 0
A19: =ROW(A19)-A8 -> 10 | B19: Tenant Charges | C19: =+'7. Revenues and Expenses'!C13 -> 0 | D19: =ROUND(C19*(1+'3. Funding Characteristics'!H390),0) -> 0 | E19: =ROUND(D19*(1+'3. Funding Characteristics'!H390),0) -> 0 | F19: =ROUND(E19*(1+'3. Funding Characteristics'!H392),0) -> 0 | G19: =ROUND(F19*(1+'3. Funding Characteristics'!H392),0) -> 0 | H19: =ROUND(G19*(1+'3. Funding Characteristics'!H392),0) -> 0 | I19: =ROUND(H19*(1+'3. Funding Characteristics'!H392),0) -> 0 | J19: =ROUND(I19*(1+'3. Funding Characteristics'!H392),0) -> 0 | K19: =ROUND(J19*(1+'3. Funding Characteristics'!H392),0) -> 0 | L19: =ROUND(K19*(1+'3. Funding Characteristics'!H392),0) -> 0 | M19: =ROUND(L19*(1+'3. Funding Characteristics'!H392),0) -> 0 | N19: =ROUND(M19*(1+'3. Funding Characteristics'!H392),0) -> 0 | O19: =ROUND(N19*(1+'3. Funding Characteristics'!H392),0) -> 0 | P19: =ROUND(O19*(1+'3. Funding Characteristics'!H392),0) -> 0 | Q19: =ROUND(P19*(1+'3. Funding Characteristics'!H392),0) -> 0 | R19: =ROUND(Q19*(1+'3. Funding Characteristics'!H392),0) -> 0 | S19: =ROUND(R19*(1+'3. Funding Characteristics'!H392),0) -> 0 | T19: =ROUND(S19*(1+'3. Funding Characteristics'!H392),0) -> 0 | U19: =ROUND(T19*(1+'3. Funding Characteristics'!H392),0) -> 0 | V19: =ROUND(U19*(1+'3. Funding Characteristics'!H392),0) -> 0 | W19: =ROUND(V19*(1+'3. Funding Characteristics'!H392),0) -> 0 | X19: =ROUND(W19*(1+'3. Funding Characteristics'!H392),0) -> 0 | Y19: =ROUND(X19*(1+'3. Funding Characteristics'!H392),0) -> 0 | Z19: =ROUND(Y19*(1+'3. Funding Characteristics'!H392),0) -> 0 | AA19: =ROUND(Z19*(1+'3. Funding Characteristics'!H392),0) -> 0 | AB19: =ROUND(AA19*(1+'3. Funding Characteristics'!H392),0) -> 0 | AC19: =ROUND(AB19*(1+'3. Funding Characteristics'!H392),0) -> 0 | AD19: =ROUND(AC19*(1+'3. Funding Characteristics'!H392),0) -> 0 | AE19: =ROUND(AD19*(1+'3. Funding Characteristics'!H392),0) -> 0 | AF19: =ROUND(AE19*(1+'3. Funding Characteristics'!H392),0) -> 0 | AG19: =ROUND(AF19*(1+'3. Funding Characteristics'!H392),0) -> 0 | AH19: =ROUND(AG19*(1+'3. Funding Characteristics'!H392),0) -> 0 | AI19: =ROUND(AH19*(1+'3. Funding Characteristics'!H392),0) -> 0 | AJ19: =ROUND(AI19*(1+'3. Funding Characteristics'!H392),0) -> 0 | AK19: =ROUND(AJ19*(1+'3. Funding Characteristics'!H392),0) -> 0 | AL19: =ROUND(AK19*(1+'3. Funding Characteristics'!H392),0) -> 0 | AM19: =ROUND(AL19*(1+'3. Funding Characteristics'!H392),0) -> 0 | AN19: =ROUND(AM19*(1+'3. Funding Characteristics'!H392),0) -> 0 | AO19: =ROUND(AN19*(1+'3. Funding Characteristics'!H392),0) -> 0 | AP19: =ROUND(AO19*(1+'3. Funding Characteristics'!H392),0) -> 0
A20: =ROW(A20)-A8 -> 11 | B20: Other | C20: =+'7. Revenues and Expenses'!C14+SUM('7. Revenues and Expenses'!C18:C22) -> 0 | D20: =ROUND(C20*(1+'3. Funding Characteristics'!H390),0) -> 0 | E20: =ROUND(D20*(1+'3. Funding Characteristics'!H390),0) -> 0 | F20: =ROUND(E20*(1+'3. Funding Characteristics'!H392),0) -> 0 | G20: =ROUND(F20*(1+'3. Funding Characteristics'!H392),0) -> 0 | H20: =ROUND(G20*(1+'3. Funding Characteristics'!H392),0) -> 0 | I20: =ROUND(H20*(1+'3. Funding Characteristics'!H392),0) -> 0 | J20: =ROUND(I20*(1+'3. Funding Characteristics'!H392),0) -> 0 | K20: =ROUND(J20*(1+'3. Funding Characteristics'!H392),0) -> 0 | L20: =ROUND(K20*(1+'3. Funding Characteristics'!H392),0) -> 0 | M20: =ROUND(L20*(1+'3. Funding Characteristics'!H392),0) -> 0 | N20: =ROUND(M20*(1+'3. Funding Characteristics'!H392),0) -> 0 | O20: =ROUND(N20*(1+'3. Funding Characteristics'!H392),0) -> 0 | P20: =ROUND(O20*(1+'3. Funding Characteristics'!H392),0) -> 0 | Q20: =ROUND(P20*(1+'3. Funding Characteristics'!H392),0) -> 0 | R20: =ROUND(Q20*(1+'3. Funding Characteristics'!H392),0) -> 0 | S20: =ROUND(R20*(1+'3. Funding Characteristics'!H392),0) -> 0 | T20: =ROUND(S20*(1+'3. Funding Characteristics'!H392),0) -> 0 | U20: =ROUND(T20*(1+'3. Funding Characteristics'!H392),0) -> 0 | V20: =ROUND(U20*(1+'3. Funding Characteristics'!H392),0) -> 0 | W20: =ROUND(V20*(1+'3. Funding Characteristics'!H392),0) -> 0 | X20: =ROUND(W20*(1+'3. Funding Characteristics'!H392),0) -> 0 | Y20: =ROUND(X20*(1+'3. Funding Characteristics'!H392),0) -> 0 | Z20: =ROUND(Y20*(1+'3. Funding Characteristics'!H392),0) -> 0 | AA20: =ROUND(Z20*(1+'3. Funding Characteristics'!H392),0) -> 0 | AB20: =ROUND(AA20*(1+'3. Funding Characteristics'!H392),0) -> 0 | AC20: =ROUND(AB20*(1+'3. Funding Characteristics'!H392),0) -> 0 | AD20: =ROUND(AC20*(1+'3. Funding Characteristics'!H392),0) -> 0 | AE20: =ROUND(AD20*(1+'3. Funding Characteristics'!H392),0) -> 0 | AF20: =ROUND(AE20*(1+'3. Funding Characteristics'!H392),0) -> 0 | AG20: =ROUND(AF20*(1+'3. Funding Characteristics'!H392),0) -> 0 | AH20: =ROUND(AG20*(1+'3. Funding Characteristics'!H392),0) -> 0 | AI20: =ROUND(AH20*(1+'3. Funding Characteristics'!H392),0) -> 0 | AJ20: =ROUND(AI20*(1+'3. Funding Characteristics'!H392),0) -> 0 | AK20: =ROUND(AJ20*(1+'3. Funding Characteristics'!H392),0) -> 0 | AL20: =ROUND(AK20*(1+'3. Funding Characteristics'!H392),0) -> 0 | AM20: =ROUND(AL20*(1+'3. Funding Characteristics'!H392),0) -> 0 | AN20: =ROUND(AM20*(1+'3. Funding Characteristics'!H392),0) -> 0 | AO20: =ROUND(AN20*(1+'3. Funding Characteristics'!H392),0) -> 0 | AP20: =ROUND(AO20*(1+'3. Funding Characteristics'!H392),0) -> 0
A21: =ROW(A21)-A8 -> 12 | B21: Total Operating Subsidy | C21: =SUM('7. Revenues and Expenses'!C14:C18) -> 0 | D21: =ROUND(C21*(1+'3. Funding Characteristics'!H390),0) -> 0 | E21: =ROUND(D21*(1+'3. Funding Characteristics'!H390),0) -> 0 | F21: =ROUND(E21*(1+'3. Funding Characteristics'!H392),0) -> 0 | G21: =ROUND(F21*(1+'3. Funding Characteristics'!H392),0) -> 0 | H21: =ROUND(G21*(1+'3. Funding Characteristics'!H392),0) -> 0 | I21: =ROUND(H21*(1+'3. Funding Characteristics'!H392),0) -> 0 | J21: =ROUND(I21*(1+'3. Funding Characteristics'!H392),0) -> 0 | K21: =ROUND(J21*(1+'3. Funding Characteristics'!H392),0) -> 0 | L21: =ROUND(K21*(1+'3. Funding Characteristics'!H392),0) -> 0 | M21: =ROUND(L21*(1+'3. Funding Characteristics'!H392),0) -> 0 | N21: =ROUND(M21*(1+'3. Funding Characteristics'!H392),0) -> 0 | O21: =ROUND(N21*(1+'3. Funding Characteristics'!H392),0) -> 0 | P21: =ROUND(O21*(1+'3. Funding Characteristics'!H392),0) -> 0 | Q21: =ROUND(P21*(1+'3. Funding Characteristics'!H392),0) -> 0 | R21: =ROUND(Q21*(1+'3. Funding Characteristics'!H392),0) -> 0 | S21: =ROUND(R21*(1+'3. Funding Characteristics'!H392),0) -> 0 | T21: =ROUND(S21*(1+'3. Funding Characteristics'!H392),0) -> 0 | U21: =ROUND(T21*(1+'3. Funding Characteristics'!H392),0) -> 0 | V21: =ROUND(U21*(1+'3. Funding Characteristics'!H392),0) -> 0 | W21: =ROUND(V21*(1+'3. Funding Characteristics'!H392),0) -> 0 | X21: =ROUND(W21*(1+'3. Funding Characteristics'!H392),0) -> 0 | Y21: =ROUND(X21*(1+'3. Funding Characteristics'!H392),0) -> 0 | Z21: =ROUND(Y21*(1+'3. Funding Characteristics'!H392),0) -> 0 | AA21: =ROUND(Z21*(1+'3. Funding Characteristics'!H392),0) -> 0 | AB21: =ROUND(AA21*(1+'3. Funding Characteristics'!H392),0) -> 0 | AC21: =ROUND(AB21*(1+'3. Funding Characteristics'!H392),0) -> 0 | AD21: =ROUND(AC21*(1+'3. Funding Characteristics'!H392),0) -> 0 | AE21: =ROUND(AD21*(1+'3. Funding Characteristics'!H392),0) -> 0 | AF21: =ROUND(AE21*(1+'3. Funding Characteristics'!H392),0) -> 0 | AG21: =ROUND(AF21*(1+'3. Funding Characteristics'!H392),0) -> 0 | AH21: =ROUND(AG21*(1+'3. Funding Characteristics'!H392),0) -> 0 | AI21: =ROUND(AH21*(1+'3. Funding Characteristics'!H392),0) -> 0 | AJ21: =ROUND(AI21*(1+'3. Funding Characteristics'!H392),0) -> 0 | AK21: =ROUND(AJ21*(1+'3. Funding Characteristics'!H392),0) -> 0 | AL21: =ROUND(AK21*(1+'3. Funding Characteristics'!H392),0) -> 0 | AM21: =ROUND(AL21*(1+'3. Funding Characteristics'!H392),0) -> 0 | AN21: =ROUND(AM21*(1+'3. Funding Characteristics'!H392),0) -> 0 | AO21: =ROUND(AN21*(1+'3. Funding Characteristics'!H392),0) -> 0 | AP21: =ROUND(AO21*(1+'3. Funding Characteristics'!H392),0) -> 0
A22: =ROW(A22)-A8 -> 13
A23: =ROW(A23)-A8 -> 14 | B23: Effective Gross Income | C23: =SUM(C13:C22) -> 0 | D23: 0 | E23: 0 | F23: 0 | G23: 0 | H23: 0 | I23: 0 | J23: 0 | K23: 0 | L23: 0 | M23: 0 | N23: 0 | O23: 0 | P23: 0 | Q23: 0 | R23: 0 | S23: 0 | T23: 0 | U23: 0 | V23: 0 | W23: 0 | X23: 0 | Y23: 0 | Z23: 0 | AA23: 0 | AB23: 0 | AC23: 0 | AD23: 0 | AE23: 0 | AF23: 0 | AG23: 0 | AH23: 0 | AI23: 0 | AJ23: 0 | AK23: 0 | AL23: 0 | AM23: 0 | AN23: 0 | AO23: 0 | AP23: 0
A24: =ROW(A24)-A8 -> 15
A25: =ROW(A25)-A8 -> 16 | B25: Property Management Fee | C25: =+'7. Revenues and Expenses'!C38 -> 0 | D25: =ROUND(C25*(1+'3. Funding Characteristics'!H396),0) -> 0 | E25: =ROUND(D25*(1+'3. Funding Characteristics'!H396),0) -> 0 | F25: =ROUND(E25*(1+'3. Funding Characteristics'!H396),0) -> 0 | G25: =ROUND(F25*(1+'3. Funding Characteristics'!H396),0) -> 0 | H25: =ROUND(G25*(1+'3. Funding Characteristics'!H396),0) -> 0 | I25: =ROUND(H25*(1+'3. Funding Characteristics'!H396),0) -> 0 | J25: =ROUND(I25*(1+'3. Funding Characteristics'!H396),0) -> 0 | K25: =ROUND(J25*(1+'3. Funding Characteristics'!H396),0) -> 0 | L25: =ROUND(K25*(1+'3. Funding Characteristics'!H396),0) -> 0 | M25: =ROUND(L25*(1+'3. Funding Characteristics'!H396),0) -> 0 | N25: =ROUND(M25*(1+'3. Funding Characteristics'!H396),0) -> 0 | O25: =ROUND(N25*(1+'3. Funding Characteristics'!H396),0) -> 0 | P25: =ROUND(O25*(1+'3. Funding Characteristics'!H396),0) -> 0 | Q25: =ROUND(P25*(1+'3. Funding Characteristics'!H396),0) -> 0 | R25: =ROUND(Q25*(1+'3. Funding Characteristics'!H396),0) -> 0 | S25: =ROUND(R25*(1+'3. Funding Characteristics'!H396),0) -> 0 | T25: =ROUND(S25*(1+'3. Funding Characteristics'!H396),0) -> 0 | U25: =ROUND(T25*(1+'3. Funding Characteristics'!H396),0) -> 0 | V25: =ROUND(U25*(1+'3. Funding Characteristics'!H396),0) -> 0 | W25: =ROUND(V25*(1+'3. Funding Characteristics'!H396),0) -> 0 | X25: =ROUND(W25*(1+'3. Funding Characteristics'!H396),0) -> 0 | Y25: =ROUND(X25*(1+'3. Funding Characteristics'!H396),0) -> 0 | Z25: =ROUND(Y25*(1+'3. Funding Characteristics'!H396),0) -> 0 | AA25: =ROUND(Z25*(1+'3. Funding Characteristics'!H396),0) -> 0 | AB25: =ROUND(AA25*(1+'3. Funding Characteristics'!H396),0) -> 0 | AC25: =ROUND(AB25*(1+'3. Funding Characteristics'!H396),0) -> 0 | AD25: =ROUND(AC25*(1+'3. Funding Characteristics'!H396),0) -> 0 | AE25: =ROUND(AD25*(1+'3. Funding Characteristics'!H396),0) -> 0 | AF25: =ROUND(AE25*(1+'3. Funding Characteristics'!H396),0) -> 0 | AG25: =ROUND(AF25*(1+'3. Funding Characteristics'!H396),0) -> 0 | AH25: =ROUND(AG25*(1+'3. Funding Characteristics'!H396),0) -> 0 | AI25: =ROUND(AH25*(1+'3. Funding Characteristics'!H396),0) -> 0 | AJ25: =ROUND(AI25*(1+'3. Funding Characteristics'!H396),0) -> 0 | AK25: =ROUND(AJ25*(1+'3. Funding Characteristics'!H396),0) -> 0 | AL25: =ROUND(AK25*(1+'3. Funding Characteristics'!H396),0) -> 0 | AM25: =ROUND(AL25*(1+'3. Funding Characteristics'!H396),0) -> 0 | AN25: =ROUND(AM25*(1+'3. Funding Characteristics'!H396),0) -> 0 | AO25: =ROUND(AN25*(1+'3. Funding Characteristics'!H396),0) -> 0 | AP25: =ROUND(AO25*(1+'3. Funding Characteristics'!H396),0) -> 0
A26: =ROW(A26)-A8 -> 17 | B26: LHC Compliance Monitoring Fee | C26: =+'7. Revenues and Expenses'!C33 -> 0 | D26: =ROUND(C26*(1+'3. Funding Characteristics'!H396),0) -> 0 | E26: =ROUND(D26*(1+'3. Funding Characteristics'!H396),0) -> 0 | F26: =ROUND(E26*(1+'3. Funding Characteristics'!H396),0) -> 0 | G26: =ROUND(F26*(1+'3. Funding Characteristics'!H396),0) -> 0 | H26: =ROUND(G26*(1+'3. Funding Characteristics'!H396),0) -> 0 | I26: =ROUND(H26*(1+'3. Funding Characteristics'!H396),0) -> 0 | J26: =ROUND(I26*(1+'3. Funding Characteristics'!H396),0) -> 0 | K26: =ROUND(J26*(1+'3. Funding Characteristics'!H396),0) -> 0 | L26: =ROUND(K26*(1+'3. Funding Characteristics'!H396),0) -> 0 | M26: =ROUND(L26*(1+'3. Funding Characteristics'!H396),0) -> 0 | N26: =ROUND(M26*(1+'3. Funding Characteristics'!H396),0) -> 0 | O26: =ROUND(N26*(1+'3. Funding Characteristics'!H396),0) -> 0 | P26: =ROUND(O26*(1+'3. Funding Characteristics'!H396),0) -> 0 | Q26: =ROUND(P26*(1+'3. Funding Characteristics'!H396),0) -> 0 | R26: =ROUND(Q26*(1+'3. Funding Characteristics'!H396),0) -> 0 | S26: =ROUND(R26*(1+'3. Funding Characteristics'!H396),0) -> 0 | T26: =ROUND(S26*(1+'3. Funding Characteristics'!H396),0) -> 0 | U26: =ROUND(T26*(1+'3. Funding Characteristics'!H396),0) -> 0 | V26: =ROUND(U26*(1+'3. Funding Characteristics'!H396),0) -> 0 | W26: =ROUND(V26*(1+'3. Funding Characteristics'!H396),0) -> 0 | X26: =ROUND(W26*(1+'3. Funding Characteristics'!H396),0) -> 0 | Y26: =ROUND(X26*(1+'3. Funding Characteristics'!H396),0) -> 0 | Z26: =ROUND(Y26*(1+'3. Funding Characteristics'!H396),0) -> 0 | AA26: =ROUND(Z26*(1+'3. Funding Characteristics'!H396),0) -> 0 | AB26: =ROUND(AA26*(1+'3. Funding Characteristics'!H396),0) -> 0 | AC26: =ROUND(AB26*(1+'3. Funding Characteristics'!H396),0) -> 0 | AD26: =ROUND(AC26*(1+'3. Funding Characteristics'!H396),0) -> 0 | AE26: =ROUND(AD26*(1+'3. Funding Characteristics'!H396),0) -> 0 | AF26: =ROUND(AE26*(1+'3. Funding Characteristics'!H396),0) -> 0 | AG26: =ROUND(AF26*(1+'3. Funding Characteristics'!H396),0) -> 0 | AH26: =ROUND(AG26*(1+'3. Funding Characteristics'!H396),0) -> 0 | AI26: =ROUND(AH26*(1+'3. Funding Characteristics'!H396),0) -> 0 | AJ26: =ROUND(AI26*(1+'3. Funding Characteristics'!H396),0) -> 0 | AK26: =ROUND(AJ26*(1+'3. Funding Characteristics'!H396),0) -> 0 | AL26: =ROUND(AK26*(1+'3. Funding Characteristics'!H396),0) -> 0 | AM26: =ROUND(AL26*(1+'3. Funding Characteristics'!H396),0) -> 0 | AN26: =ROUND(AM26*(1+'3. Funding Characteristics'!H396),0) -> 0 | AO26: =ROUND(AN26*(1+'3. Funding Characteristics'!H396),0) -> 0 | AP26: =ROUND(AO26*(1+'3. Funding Characteristics'!H396),0) -> 0
A27: =ROW(A27)-A8 -> 18 | B27: Asset Management Fee | C27: =+'7. Revenues and Expenses'!C35 -> 0 | D27: =ROUND(C27*(1+'3. Funding Characteristics'!H396),0) -> 0 | E27: =ROUND(D27*(1+'3. Funding Characteristics'!H396),0) -> 0 | F27: =ROUND(E27*(1+'3. Funding Characteristics'!H396),0) -> 0 | G27: =ROUND(F27*(1+'3. Funding Characteristics'!H396),0) -> 0 | H27: =ROUND(G27*(1+'3. Funding Characteristics'!H396),0) -> 0 | I27: =ROUND(H27*(1+'3. Funding Characteristics'!H396),0) -> 0 | J27: =ROUND(I27*(1+'3. Funding Characteristics'!H396),0) -> 0 | K27: =ROUND(J27*(1+'3. Funding Characteristics'!H396),0) -> 0 | L27: =ROUND(K27*(1+'3. Funding Characteristics'!H396),0) -> 0 | M27: =ROUND(L27*(1+'3. Funding Characteristics'!H396),0) -> 0 | N27: =ROUND(M27*(1+'3. Funding Characteristics'!H396),0) -> 0 | O27: =ROUND(N27*(1+'3. Funding Characteristics'!H396),0) -> 0 | P27: =ROUND(O27*(1+'3. Funding Characteristics'!H396),0) -> 0 | Q27: =ROUND(P27*(1+'3. Funding Characteristics'!H396),0) -> 0 | R27: =ROUND(Q27*(1+'3. Funding Characteristics'!H396),0) -> 0 | S27: =ROUND(R27*(1+'3. Funding Characteristics'!H396),0) -> 0 | T27: =ROUND(S27*(1+'3. Funding Characteristics'!H396),0) -> 0 | U27: =ROUND(T27*(1+'3. Funding Characteristics'!H396),0) -> 0 | V27: =ROUND(U27*(1+'3. Funding Characteristics'!H396),0) -> 0 | W27: =ROUND(V27*(1+'3. Funding Characteristics'!H396),0) -> 0 | X27: =ROUND(W27*(1+'3. Funding Characteristics'!H396),0) -> 0 | Y27: =ROUND(X27*(1+'3. Funding Characteristics'!H396),0) -> 0 | Z27: =ROUND(Y27*(1+'3. Funding Characteristics'!H396),0) -> 0 | AA27: =ROUND(Z27*(1+'3. Funding Characteristics'!H396),0) -> 0 | AB27: =ROUND(AA27*(1+'3. Funding Characteristics'!H396),0) -> 0 | AC27: =ROUND(AB27*(1+'3. Funding Characteristics'!H396),0) -> 0 | AD27: =ROUND(AC27*(1+'3. Funding Characteristics'!H396),0) -> 0 | AE27: =ROUND(AD27*(1+'3. Funding Characteristics'!H396),0) -> 0 | AF27: =ROUND(AE27*(1+'3. Funding Characteristics'!H396),0) -> 0 | AG27: =ROUND(AF27*(1+'3. Funding Characteristics'!H396),0) -> 0 | AH27: =ROUND(AG27*(1+'3. Funding Characteristics'!H396),0) -> 0 | AI27: =ROUND(AH27*(1+'3. Funding Characteristics'!H396),0) -> 0 | AJ27: =ROUND(AI27*(1+'3. Funding Characteristics'!H396),0) -> 0 | AK27: =ROUND(AJ27*(1+'3. Funding Characteristics'!H396),0) -> 0 | AL27: =ROUND(AK27*(1+'3. Funding Characteristics'!H396),0) -> 0 | AM27: =ROUND(AL27*(1+'3. Funding Characteristics'!H396),0) -> 0 | AN27: =ROUND(AM27*(1+'3. Funding Characteristics'!H396),0) -> 0 | AO27: =ROUND(AN27*(1+'3. Funding Characteristics'!H396),0) -> 0 | AP27: =ROUND(AO27*(1+'3. Funding Characteristics'!H396),0) -> 0
A28: =ROW(A28)-A8 -> 19 | B28: Other Administrative Expenses | C28: ='7. Revenues and Expenses'!C27-SUM('8. Proforma'!C24:C27) -> 0 | D28: =ROUND(C28*(1+'3. Funding Characteristics'!H396),0) -> 0 | E28: =ROUND(D28*(1+'3. Funding Characteristics'!H396),0) -> 0 | F28: =ROUND(E28*(1+'3. Funding Characteristics'!H396),0) -> 0 | G28: =ROUND(F28*(1+'3. Funding Characteristics'!H396),0) -> 0 | H28: =ROUND(G28*(1+'3. Funding Characteristics'!H396),0) -> 0 | I28: =ROUND(H28*(1+'3. Funding Characteristics'!H396),0) -> 0 | J28: =ROUND(I28*(1+'3. Funding Characteristics'!H396),0) -> 0 | K28: =ROUND(J28*(1+'3. Funding Characteristics'!H396),0) -> 0 | L28: =ROUND(K28*(1+'3. Funding Characteristics'!H396),0) -> 0 | M28: =ROUND(L28*(1+'3. Funding Characteristics'!H396),0) -> 0 | N28: =ROUND(M28*(1+'3. Funding Characteristics'!H396),0) -> 0 | O28: =ROUND(N28*(1+'3. Funding Characteristics'!H396),0) -> 0 | P28: =ROUND(O28*(1+'3. Funding Characteristics'!H396),0) -> 0 | Q28: =ROUND(P28*(1+'3. Funding Characteristics'!H396),0) -> 0 | R28: =ROUND(Q28*(1+'3. Funding Characteristics'!H396),0) -> 0 | S28: =ROUND(R28*(1+'3. Funding Characteristics'!H396),0) -> 0 | T28: =ROUND(S28*(1+'3. Funding Characteristics'!H396),0) -> 0 | U28: =ROUND(T28*(1+'3. Funding Characteristics'!H396),0) -> 0 | V28: =ROUND(U28*(1+'3. Funding Characteristics'!H396),0) -> 0 | W28: =ROUND(V28*(1+'3. Funding Characteristics'!H396),0) -> 0 | X28: =ROUND(W28*(1+'3. Funding Characteristics'!H396),0) -> 0 | Y28: =ROUND(X28*(1+'3. Funding Characteristics'!H396),0) -> 0 | Z28: =ROUND(Y28*(1+'3. Funding Characteristics'!H396),0) -> 0 | AA28: =ROUND(Z28*(1+'3. Funding Characteristics'!H396),0) -> 0 | AB28: =ROUND(AA28*(1+'3. Funding Characteristics'!H396),0) -> 0 | AC28: =ROUND(AB28*(1+'3. Funding Characteristics'!H396),0) -> 0 | AD28: =ROUND(AC28*(1+'3. Funding Characteristics'!H396),0) -> 0 | AE28: =ROUND(AD28*(1+'3. Funding Characteristics'!H396),0) -> 0 | AF28: =ROUND(AE28*(1+'3. Funding Characteristics'!H396),0) -> 0 | AG28: =ROUND(AF28*(1+'3. Funding Characteristics'!H396),0) -> 0 | AH28: =ROUND(AG28*(1+'3. Funding Characteristics'!H396),0) -> 0 | AI28: =ROUND(AH28*(1+'3. Funding Characteristics'!H396),0) -> 0 | AJ28: =ROUND(AI28*(1+'3. Funding Characteristics'!H396),0) -> 0 | AK28: =ROUND(AJ28*(1+'3. Funding Characteristics'!H396),0) -> 0 | AL28: =ROUND(AK28*(1+'3. Funding Characteristics'!H396),0) -> 0 | AM28: =ROUND(AL28*(1+'3. Funding Characteristics'!H396),0) -> 0 | AN28: =ROUND(AM28*(1+'3. Funding Characteristics'!H396),0) -> 0 | AO28: =ROUND(AN28*(1+'3. Funding Characteristics'!H396),0) -> 0 | AP28: =ROUND(AO28*(1+'3. Funding Characteristics'!H396),0) -> 0
A29: =ROW(A29)-A8 -> 20 | B29: Operating & Maintenance Expenses | C29: =+'7. Revenues and Expenses'!C48 -> 0 | D29: =ROUND(C29*(1+'3. Funding Characteristics'!H396),0) -> 0 | E29: =ROUND(D29*(1+'3. Funding Characteristics'!H396),0) -> 0 | F29: =ROUND(E29*(1+'3. Funding Characteristics'!H396),0) -> 0 | G29: =ROUND(F29*(1+'3. Funding Characteristics'!H396),0) -> 0 | H29: =ROUND(G29*(1+'3. Funding Characteristics'!H396),0) -> 0 | I29: =ROUND(H29*(1+'3. Funding Characteristics'!H396),0) -> 0 | J29: =ROUND(I29*(1+'3. Funding Characteristics'!H396),0) -> 0 | K29: =ROUND(J29*(1+'3. Funding Characteristics'!H396),0) -> 0 | L29: =ROUND(K29*(1+'3. Funding Characteristics'!H396),0) -> 0 | M29: =ROUND(L29*(1+'3. Funding Characteristics'!H396),0) -> 0 | N29: =ROUND(M29*(1+'3. Funding Characteristics'!H396),0) -> 0 | O29: =ROUND(N29*(1+'3. Funding Characteristics'!H396),0) -> 0 | P29: =ROUND(O29*(1+'3. Funding Characteristics'!H396),0) -> 0 | Q29: =ROUND(P29*(1+'3. Funding Characteristics'!H396),0) -> 0 | R29: =ROUND(Q29*(1+'3. Funding Characteristics'!H396),0) -> 0 | S29: =ROUND(R29*(1+'3. Funding Characteristics'!H396),0) -> 0 | T29: =ROUND(S29*(1+'3. Funding Characteristics'!H396),0) -> 0 | U29: =ROUND(T29*(1+'3. Funding Characteristics'!H396),0) -> 0 | V29: =ROUND(U29*(1+'3. Funding Characteristics'!H396),0) -> 0 | W29: =ROUND(V29*(1+'3. Funding Characteristics'!H396),0) -> 0 | X29: =ROUND(W29*(1+'3. Funding Characteristics'!H396),0) -> 0 | Y29: =ROUND(X29*(1+'3. Funding Characteristics'!H396),0) -> 0 | Z29: =ROUND(Y29*(1+'3. Funding Characteristics'!H396),0) -> 0 | AA29: =ROUND(Z29*(1+'3. Funding Characteristics'!H396),0) -> 0 | AB29: =ROUND(AA29*(1+'3. Funding Characteristics'!H396),0) -> 0 | AC29: =ROUND(AB29*(1+'3. Funding Characteristics'!H396),0) -> 0 | AD29: =ROUND(AC29*(1+'3. Funding Characteristics'!H396),0) -> 0 | AE29: =ROUND(AD29*(1+'3. Funding Characteristics'!H396),0) -> 0 | AF29: =ROUND(AE29*(1+'3. Funding Characteristics'!H396),0) -> 0 | AG29: =ROUND(AF29*(1+'3. Funding Characteristics'!H396),0) -> 0 | AH29: =ROUND(AG29*(1+'3. Funding Characteristics'!H396),0) -> 0 | AI29: =ROUND(AH29*(1+'3. Funding Characteristics'!H396),0) -> 0 | AJ29: =ROUND(AI29*(1+'3. Funding Characteristics'!H396),0) -> 0 | AK29: =ROUND(AJ29*(1+'3. Funding Characteristics'!H396),0) -> 0 | AL29: =ROUND(AK29*(1+'3. Funding Characteristics'!H396),0) -> 0 | AM29: =ROUND(AL29*(1+'3. Funding Characteristics'!H396),0) -> 0 | AN29: =ROUND(AM29*(1+'3. Funding Characteristics'!H396),0) -> 0 | AO29: =ROUND(AN29*(1+'3. Funding Characteristics'!H396),0) -> 0 | AP29: =ROUND(AO29*(1+'3. Funding Characteristics'!H396),0) -> 0
A30: =ROW(A30)-A8 -> 21 | B30: Utilities Expenses | C30: =+'7. Revenues and Expenses'!C60 -> 0 | D30: =ROUND(C30*(1+'3. Funding Characteristics'!H396),0) -> 0 | E30: =ROUND(D30*(1+'3. Funding Characteristics'!H396),0) -> 0 | F30: =ROUND(E30*(1+'3. Funding Characteristics'!H396),0) -> 0 | G30: =ROUND(F30*(1+'3. Funding Characteristics'!H396),0) -> 0 | H30: =ROUND(G30*(1+'3. Funding Characteristics'!H396),0) -> 0 | I30: =ROUND(H30*(1+'3. Funding Characteristics'!H396),0) -> 0 | J30: =ROUND(I30*(1+'3. Funding Characteristics'!H396),0) -> 0 | K30: =ROUND(J30*(1+'3. Funding Characteristics'!H396),0) -> 0 | L30: =ROUND(K30*(1+'3. Funding Characteristics'!H396),0) -> 0 | M30: =ROUND(L30*(1+'3. Funding Characteristics'!H396),0) -> 0 | N30: =ROUND(M30*(1+'3. Funding Characteristics'!H396),0) -> 0 | O30: =ROUND(N30*(1+'3. Funding Characteristics'!H396),0) -> 0 | P30: =ROUND(O30*(1+'3. Funding Characteristics'!H396),0) -> 0 | Q30: =ROUND(P30*(1+'3. Funding Characteristics'!H396),0) -> 0 | R30: =ROUND(Q30*(1+'3. Funding Characteristics'!H396),0) -> 0 | S30: =ROUND(R30*(1+'3. Funding Characteristics'!H396),0) -> 0 | T30: =ROUND(S30*(1+'3. Funding Characteristics'!H396),0) -> 0 | U30: =ROUND(T30*(1+'3. Funding Characteristics'!H396),0) -> 0 | V30: =ROUND(U30*(1+'3. Funding Characteristics'!H396),0) -> 0 | W30: =ROUND(V30*(1+'3. Funding Characteristics'!H396),0) -> 0 | X30: =ROUND(W30*(1+'3. Funding Characteristics'!H396),0) -> 0 | Y30: =ROUND(X30*(1+'3. Funding Characteristics'!H396),0) -> 0 | Z30: =ROUND(Y30*(1+'3. Funding Characteristics'!H396),0) -> 0 | AA30: =ROUND(Z30*(1+'3. Funding Characteristics'!H396),0) -> 0 | AB30: =ROUND(AA30*(1+'3. Funding Characteristics'!H396),0) -> 0 | AC30: =ROUND(AB30*(1+'3. Funding Characteristics'!H396),0) -> 0 | AD30: =ROUND(AC30*(1+'3. Funding Characteristics'!H396),0) -> 0 | AE30: =ROUND(AD30*(1+'3. Funding Characteristics'!H396),0) -> 0 | AF30: =ROUND(AE30*(1+'3. Funding Characteristics'!H396),0) -> 0 | AG30: =ROUND(AF30*(1+'3. Funding Characteristics'!H396),0) -> 0 | AH30: =ROUND(AG30*(1+'3. Funding Characteristics'!H396),0) -> 0 | AI30: =ROUND(AH30*(1+'3. Funding Characteristics'!H396),0) -> 0 | AJ30: =ROUND(AI30*(1+'3. Funding Characteristics'!H396),0) -> 0 | AK30: =ROUND(AJ30*(1+'3. Funding Characteristics'!H396),0) -> 0 | AL30: =ROUND(AK30*(1+'3. Funding Characteristics'!H396),0) -> 0 | AM30: =ROUND(AL30*(1+'3. Funding Characteristics'!H396),0) -> 0 | AN30: =ROUND(AM30*(1+'3. Funding Characteristics'!H396),0) -> 0 | AO30: =ROUND(AN30*(1+'3. Funding Characteristics'!H396),0) -> 0 | AP30: =ROUND(AO30*(1+'3. Funding Characteristics'!H396),0) -> 0
A31: =ROW(A31)-A8 -> 22 | B31: Taxes & Insurance Expenses | C31: =+'7. Revenues and Expenses'!C84-SUM('8. Proforma'!C24:C30) -> 0 | D31: =ROUND(C31*(1+'3. Funding Characteristics'!H396),0) -> 0 | E31: =ROUND(D31*(1+'3. Funding Characteristics'!H396),0) -> 0 | F31: =ROUND(E31*(1+'3. Funding Characteristics'!H396),0) -> 0 | G31: =ROUND(F31*(1+'3. Funding Characteristics'!H396),0) -> 0 | H31: =ROUND(G31*(1+'3. Funding Characteristics'!H396),0) -> 0 | I31: =ROUND(H31*(1+'3. Funding Characteristics'!H396),0) -> 0 | J31: =ROUND(I31*(1+'3. Funding Characteristics'!H396),0) -> 0 | K31: =ROUND(J31*(1+'3. Funding Characteristics'!H396),0) -> 0 | L31: =ROUND(K31*(1+'3. Funding Characteristics'!H396),0) -> 0 | M31: =ROUND(L31*(1+'3. Funding Characteristics'!H396),0) -> 0 | N31: =ROUND(M31*(1+'3. Funding Characteristics'!H396),0) -> 0 | O31: =ROUND(N31*(1+'3. Funding Characteristics'!H396),0) -> 0 | P31: =ROUND(O31*(1+'3. Funding Characteristics'!H396),0) -> 0 | Q31: =ROUND(P31*(1+'3. Funding Characteristics'!H396),0) -> 0 | R31: =ROUND(Q31*(1+'3. Funding Characteristics'!H396),0) -> 0 | S31: =ROUND(R31*(1+'3. Funding Characteristics'!H396),0) -> 0 | T31: =ROUND(S31*(1+'3. Funding Characteristics'!H396),0) -> 0 | U31: =ROUND(T31*(1+'3. Funding Characteristics'!H396),0) -> 0 | V31: =ROUND(U31*(1+'3. Funding Characteristics'!H396),0) -> 0 | W31: =ROUND(V31*(1+'3. Funding Characteristics'!H396),0) -> 0 | X31: =ROUND(W31*(1+'3. Funding Characteristics'!H396),0) -> 0 | Y31: =ROUND(X31*(1+'3. Funding Characteristics'!H396),0) -> 0 | Z31: =ROUND(Y31*(1+'3. Funding Characteristics'!H396),0) -> 0 | AA31: =ROUND(Z31*(1+'3. Funding Characteristics'!H396),0) -> 0 | AB31: =ROUND(AA31*(1+'3. Funding Characteristics'!H396),0) -> 0 | AC31: =ROUND(AB31*(1+'3. Funding Characteristics'!H396),0) -> 0 | AD31: =ROUND(AC31*(1+'3. Funding Characteristics'!H396),0) -> 0 | AE31: =ROUND(AD31*(1+'3. Funding Characteristics'!H396),0) -> 0 | AF31: =ROUND(AE31*(1+'3. Funding Characteristics'!H396),0) -> 0 | AG31: =ROUND(AF31*(1+'3. Funding Characteristics'!H396),0) -> 0 | AH31: =ROUND(AG31*(1+'3. Funding Characteristics'!H396),0) -> 0 | AI31: =ROUND(AH31*(1+'3. Funding Characteristics'!H396),0) -> 0 | AJ31: =ROUND(AI31*(1+'3. Funding Characteristics'!H396),0) -> 0 | AK31: =ROUND(AJ31*(1+'3. Funding Characteristics'!H396),0) -> 0 | AL31: =ROUND(AK31*(1+'3. Funding Characteristics'!H396),0) -> 0 | AM31: =ROUND(AL31*(1+'3. Funding Characteristics'!H396),0) -> 0 | AN31: =ROUND(AM31*(1+'3. Funding Characteristics'!H396),0) -> 0 | AO31: =ROUND(AN31*(1+'3. Funding Characteristics'!H396),0) -> 0 | AP31: =ROUND(AO31*(1+'3. Funding Characteristics'!H396),0) -> 0
A32: =ROW(A32)-A8 -> 23
A33: =ROW(A33)-A8 -> 24 | B33: Total Operating Expenses | C33: =SUM(C24:C31) -> 0 | D33: 0 | E33: 0 | F33: 0 | G33: 0 | H33: 0 | I33: 0 | J33: 0 | K33: 0 | L33: 0 | M33: 0 | N33: 0 | O33: 0 | P33: 0 | Q33: 0 | R33: 0 | S33: 0 | T33: 0 | U33: 0 | V33: 0 | W33: 0 | X33: 0 | Y33: 0 | Z33: 0 | AA33: 0 | AB33: 0 | AC33: 0 | AD33: 0 | AE33: 0 | AF33: 0 | AG33: 0 | AH33: 0 | AI33: 0 | AJ33: 0 | AK33: 0 | AL33: 0 | AM33: 0 | AN33: 0 | AO33: 0 | AP33: 0
A34: =ROW(A34)-A8 -> 25
A35: =ROW(A35)-A8 -> 26 | B35: Replacement Reserve ADRR | C35: =+'3. Funding Characteristics'!H411 -> 0 | D35: =ROUND(C35*(1+'3. Funding Characteristics'!$H$398),0) -> 0 | E35: =ROUND(D35*(1+'3. Funding Characteristics'!$H$398),0) -> 0 | F35: =ROUND(E35*(1+'3. Funding Characteristics'!$H$398),0) -> 0 | G35: =ROUND(F35*(1+'3. Funding Characteristics'!$H$398),0) -> 0 | H35: =ROUND(G35*(1+'3. Funding Characteristics'!$H$398),0) -> 0 | I35: =ROUND(H35*(1+'3. Funding Characteristics'!$H$398),0) -> 0 | J35: =ROUND(I35*(1+'3. Funding Characteristics'!$H$398),0) -> 0 | K35: =ROUND(J35*(1+'3. Funding Characteristics'!$H$398),0) -> 0 | L35: =ROUND(K35*(1+'3. Funding Characteristics'!$H$398),0) -> 0 | M35: =ROUND(L35*(1+'3. Funding Characteristics'!$H$398),0) -> 0 | N35: =ROUND(M35*(1+'3. Funding Characteristics'!$H$398),0) -> 0 | O35: =ROUND(N35*(1+'3. Funding Characteristics'!$H$398),0) -> 0 | P35: =ROUND(O35*(1+'3. Funding Characteristics'!$H$398),0) -> 0 | Q35: =ROUND(P35*(1+'3. Funding Characteristics'!$H$398),0) -> 0 | R35: =ROUND(Q35*(1+'3. Funding Characteristics'!$H$398),0) -> 0 | S35: =ROUND(R35*(1+'3. Funding Characteristics'!$H$398),0) -> 0 | T35: =ROUND(S35*(1+'3. Funding Characteristics'!$H$398),0) -> 0 | U35: =ROUND(T35*(1+'3. Funding Characteristics'!$H$398),0) -> 0 | V35: =ROUND(U35*(1+'3. Funding Characteristics'!$H$398),0) -> 0 | W35: =ROUND(V35*(1+'3. Funding Characteristics'!$H$398),0) -> 0 | X35: =ROUND(W35*(1+'3. Funding Characteristics'!$H$398),0) -> 0 | Y35: =ROUND(X35*(1+'3. Funding Characteristics'!$H$398),0) -> 0 | Z35: =ROUND(Y35*(1+'3. Funding Characteristics'!$H$398),0) -> 0 | AA35: =ROUND(Z35*(1+'3. Funding Characteristics'!$H$398),0) -> 0 | AB35: =ROUND(AA35*(1+'3. Funding Characteristics'!$H$398),0) -> 0 | AC35: =ROUND(AB35*(1+'3. Funding Characteristics'!$H$398),0) -> 0 | AD35: =ROUND(AC35*(1+'3. Funding Characteristics'!$H$398),0) -> 0 | AE35: =ROUND(AD35*(1+'3. Funding Characteristics'!$H$398),0) -> 0 | AF35: =ROUND(AE35*(1+'3. Funding Characteristics'!$H$398),0) -> 0 | AG35: =ROUND(AF35*(1+'3. Funding Characteristics'!$H$398),0) -> 0 | AH35: =ROUND(AG35*(1+'3. Funding Characteristics'!$H$398),0) -> 0 | AI35: =ROUND(AH35*(1+'3. Funding Characteristics'!$H$398),0) -> 0 | AJ35: =ROUND(AI35*(1+'3. Funding Characteristics'!$H$398),0) -> 0 | AK35: =ROUND(AJ35*(1+'3. Funding Characteristics'!$H$398),0) -> 0 | AL35: =ROUND(AK35*(1+'3. Funding Characteristics'!$H$398),0) -> 0 | AM35: =ROUND(AL35*(1+'3. Funding Characteristics'!$H$398),0) -> 0 | AN35: =ROUND(AM35*(1+'3. Funding Characteristics'!$H$398),0) -> 0 | AO35: =ROUND(AN35*(1+'3. Funding Characteristics'!$H$398),0) -> 0 | AP35: =ROUND(AO35*(1+'3. Funding Characteristics'!$H$398),0) -> 0
A36: =ROW(A36)-A8 -> 27
A37: =ROW(A37)-A8 -> 28 | B37: Net Operating Income | C37: =+C23-C33-C35 -> 0 | D37: 0 | E37: 0 | F37: 0 | G37: 0 | H37: 0 | I37: 0 | J37: 0 | K37: 0 | L37: 0 | M37: 0 | N37: 0 | O37: 0 | P37: 0 | Q37: 0 | R37: 0 | S37: 0 | T37: 0 | U37: 0 | V37: 0 | W37: 0 | X37: 0 | Y37: 0 | Z37: 0 | AA37: 0 | AB37: 0 | AC37: 0 | AD37: 0 | AE37: 0 | AF37: 0 | AG37: 0 | AH37: 0 | AI37: 0 | AJ37: 0 | AK37: 0 | AL37: 0 | AM37: 0 | AN37: 0 | AO37: 0 | AP37: 0
A38: =ROW(A38)-A8 -> 29
A39: =ROW(A39)-A8 -> 30 | B39: Must Pay Debt Service | C39: =+'3. Funding Characteristics'!H417 -> 0 | D39: =+C39 -> 0 | E39: 0 | F39: 0 | G39: 0 | H39: 0 | I39: 0 | J39: 0 | K39: 0 | L39: 0 | M39: 0 | N39: 0 | O39: 0 | P39: 0 | Q39: 0 | R39: 0 | S39: 0 | T39: 0 | U39: 0 | V39: 0 | W39: 0 | X39: 0 | Y39: 0 | Z39: 0 | AA39: 0 | AB39: 0 | AC39: 0 | AD39: 0 | AE39: 0 | AF39: 0 | AG39: 0 | AH39: 0 | AI39: 0 | AJ39: 0 | AK39: 0 | AL39: 0 | AM39: 0 | AN39: 0 | AO39: 0 | AP39: 0
A40: =ROW(A40)-A8 -> 31 | B40: Other
A41: =ROW(A41)-A8 -> 32
A42: =ROW(A42)-A8 -> 33 | B42: Operating Cash Flow | C42: =C37-SUM(C38:C41) -> 0 | D42: 0 | E42: 0 | F42: 0 | G42: 0 | H42: 0 | I42: 0 | J42: 0 | K42: 0 | L42: 0 | M42: 0 | N42: 0 | O42: 0 | P42: 0 | Q42: 0 | R42: 0 | S42: 0 | T42: 0 | U42: 0 | V42: 0 | W42: 0 | X42: 0 | Y42: 0 | Z42: 0 | AA42: 0 | AB42: 0 | AC42: 0 | AD42: 0 | AE42: 0 | AF42: 0 | AG42: 0 | AH42: 0 | AI42: 0 | AJ42: 0 | AK42: 0 | AL42: 0 | AM42: 0 | AN42: 0 | AO42: 0 | AP42: 0
A43: =ROW(A43)-A8 -> 34 | B43: DSCR | C43: =IF(SUM(C39:C40)=0,0,C37/SUM(C39:C40)) -> 0 | D43: 0 | E43: 0 | F43: 0 | G43: 0 | H43: 0 | I43: 0 | J43: 0 | K43: 0 | L43: 0 | M43: 0 | N43: 0 | O43: 0 | P43: 0 | Q43: 0 | R43: 0 | S43: 0 | T43: 0 | U43: 0 | V43: 0 | W43: 0 | X43: 0 | Y43: 0 | Z43: 0 | AA43: 0 | AB43: 0 | AC43: 0 | AD43: 0 | AE43: 0 | AF43: 0 | AG43: 0 | AH43: 0 | AI43: 0 | AJ43: 0 | AK43: 0 | AL43: 0 | AM43: 0 | AN43: 0 | AO43: 0 | AP43: 0
A44: =ROW(A44)-A8 -> 35
B45: Allowable Contingent A/M Fee | C45: =+'7. Revenues and Expenses'!J97 -> 0 | D45: =ROUND(C45*(1+'3. Funding Characteristics'!H396),0) -> 0 | E45: =ROUND(D45*(1+'3. Funding Characteristics'!H396),0) -> 0 | F45: =ROUND(E45*(1+'3. Funding Characteristics'!H396),0) -> 0 | G45: =ROUND(F45*(1+'3. Funding Characteristics'!H396),0) -> 0 | H45: =ROUND(G45*(1+'3. Funding Characteristics'!H396),0) -> 0 | I45: =ROUND(H45*(1+'3. Funding Characteristics'!H396),0) -> 0 | J45: =ROUND(I45*(1+'3. Funding Characteristics'!H396),0) -> 0 | K45: =ROUND(J45*(1+'3. Funding Characteristics'!H396),0) -> 0 | L45: =ROUND(K45*(1+'3. Funding Characteristics'!H396),0) -> 0 | M45: =ROUND(L45*(1+'3. Funding Characteristics'!H396),0) -> 0 | N45: =ROUND(M45*(1+'3. Funding Characteristics'!H396),0) -> 0 | O45: =ROUND(N45*(1+'3. Funding Characteristics'!H396),0) -> 0 | P45: =ROUND(O45*(1+'3. Funding Characteristics'!H396),0) -> 0 | Q45: =ROUND(P45*(1+'3. Funding Characteristics'!H396),0) -> 0 | R45: =ROUND(Q45*(1+'3. Funding Characteristics'!H396),0) -> 0 | S45: =ROUND(R45*(1+'3. Funding Characteristics'!H396),0) -> 0 | T45: =ROUND(S45*(1+'3. Funding Characteristics'!H396),0) -> 0 | U45: =ROUND(T45*(1+'3. Funding Characteristics'!H396),0) -> 0 | V45: =ROUND(U45*(1+'3. Funding Characteristics'!H396),0) -> 0 | W45: =ROUND(V45*(1+'3. Funding Characteristics'!H396),0) -> 0 | X45: =ROUND(W45*(1+'3. Funding Characteristics'!H396),0) -> 0 | Y45: =ROUND(X45*(1+'3. Funding Characteristics'!H396),0) -> 0 | Z45: =ROUND(Y45*(1+'3. Funding Characteristics'!H396),0) -> 0 | AA45: =ROUND(Z45*(1+'3. Funding Characteristics'!H396),0) -> 0 | AB45: =ROUND(AA45*(1+'3. Funding Characteristics'!H396),0) -> 0 | AC45: =ROUND(AB45*(1+'3. Funding Characteristics'!H396),0) -> 0 | AD45: =ROUND(AC45*(1+'3. Funding Characteristics'!H396),0) -> 0 | AE45: =ROUND(AD45*(1+'3. Funding Characteristics'!H396),0) -> 0 | AF45: =ROUND(AE45*(1+'3. Funding Characteristics'!H396),0) -> 0 | AG45: =ROUND(AF45*(1+'3. Funding Characteristics'!H396),0) -> 0 | AH45: =ROUND(AG45*(1+'3. Funding Characteristics'!H396),0) -> 0 | AI45: =ROUND(AH45*(1+'3. Funding Characteristics'!H396),0) -> 0 | AJ45: =ROUND(AI45*(1+'3. Funding Characteristics'!H396),0) -> 0 | AK45: =ROUND(AJ45*(1+'3. Funding Characteristics'!H396),0) -> 0 | AL45: =ROUND(AK45*(1+'3. Funding Characteristics'!H396),0) -> 0 | AM45: =ROUND(AL45*(1+'3. Funding Characteristics'!H396),0) -> 0 | AN45: =ROUND(AM45*(1+'3. Funding Characteristics'!H396),0) -> 0 | AO45: =ROUND(AN45*(1+'3. Funding Characteristics'!H396),0) -> 0 | AP45: =ROUND(AO45*(1+'3. Funding Characteristics'!H396),0) -> 0
B47: Surplus Cash | C47: =MAX(0,C42-C45) -> 0 | D47: 0 | E47: 0 | F47: 0 | G47: 0 | H47: 0 | I47: 0 | J47: 0 | K47: 0 | L47: 0 | M47: 0 | N47: 0 | O47: 0 | P47: 0 | Q47: 0 | R47: 0 | S47: 0 | T47: 0 | U47: 0 | V47: 0 | W47: 0 | X47: 0 | Y47: 0 | Z47: 0 | AA47: 0 | AB47: 0 | AC47: 0 | AD47: 0 | AE47: 0 | AF47: 0 | AG47: 0 | AH47: 0 | AI47: 0 | AJ47: 0 | AK47: 0 | AL47: 0 | AM47: 0 | AN47: 0 | AO47: 0 | AP47: 0
B49: Cumulative Surplus Cash | C49: =+C47 -> 0 | D49: =+C49+D47 -> 0 | E49: 0 | F49: 0 | G49: 0 | H49: 0 | I49: 0 | J49: 0 | K49: 0 | L49: 0 | M49: 0 | N49: 0 | O49: 0 | P49: 0 | Q49: 0 | R49: 0 | S49: 0 | T49: 0 | U49: 0 | V49: 0 | W49: 0 | X49: 0 | Y49: 0 | Z49: 0 | AA49: 0 | AB49: 0 | AC49: 0 | AD49: 0 | AE49: 0 | AF49: 0 | AG49: 0 | AH49: 0 | AI49: 0 | AJ49: 0 | AK49: 0 | AL49: 0 | AM49: 0 | AN49: 0 | AO49: 0 | AP49: 0
B50: Through Year 15 | C50: =+Q49 -> 0
B51: Through Year 35 | C51: =+AK49 -> 0
B52: Through Year 40 | C52: =+AP49 -> 0

Sheet Selection Criteria (hidden)
A3: =+'2. Project Description'!A3 -> HOMELESS & HOUSING STABILITY: AFFORDABLE HOUSING DEVELOPMENT PROGRAM
A4: =+'4. Unit Mix and Rents'!A4 -> ( LA),
A5: Selection Criteria: Points Claimed by Taxpayer / Applicant
D6: Calculated | F6: Self-Score | L6: Max
A7: I. | B7: TARGETED PROJECT TYPE | L7: 16
A8: A. | B8: De-Concentration Projects. (Only one selection allowed)
A9: i. | B9: Project Diversity. | D9: =MAX(H9,H10) ->  | E9: points | F9: 0 | H9: =IF('4. Unit Mix and Rents'!G41=0,0,IF(M9>80%,0,IF($M$9<=60%,$L$9-2,IF($M$9<=70%,$L$9-1,IF($M$9<=80%,$L$9,3))))) -> 0 | I9: =TEXT(M9,"0.0%")&" Low Income Units in Project" -> 0.0% Low Income Units in Project | L9: 5 | M9: =+'4. Unit Mix and Rents'!G44 -> 0 | R9: Scoring updated for 2022 QAP
A10: ii. | B10: Geographic Diversity. | F10: 0 | H10: =IF(AND('2. Project Description'!#REF!="Yes",'2. Project Description'!#REF!<99%),0,IF($M$10>=120%,$L$10,IF($M$10>=110%,$L$10-1,IF($M$10>=100%,$L$10-2,IF($M$10=100%,$L$10-2,0)*0)))) ->  | I10: ="Census tract median income is "&TEXT(M10,"0.0%")&" of MSA" -> Census tract median income is 0.0% of MSA | L10: 5 | M10: =IFERROR(+'2. Project Description'!#REF!,0) -> 0 | N10: of MSA | O10: =IFERROR(+'2. Project Description'!#REF!,0) -> 0 | P10: of Parish | R10: Scoring updated for 2022 QAP
C11: =IF(AND(D10>0,'2. Project Description'!#REF!="Yes"),"Note -- LHC review needed for Geographic Diversity; project lies in multiple census tracts","") -> 
A13: B. | B13: Community Redevelopment (select one. maximum 3 points allowed)
A14: i. | B14: Redevelopment Project
B15: a. Distressed Property | D15: =MAX(H15:H18) ->  | E15: points | F15: 0 | H15: =IF(AND('2. Project Description'!#REF!="Yes",'2. Project Description'!H66="Yes",'2. Project Description'!H69="Yes"),L15,0) ->  | L15: 3
B16: b. Redevelopment Property | F16: 0 | H16: =IF(AND('2. Project Description'!#REF!="Yes",'2. Project Description'!H66="Yes",'2. Project Description'!H69="Yes"),L16,0) ->  | L16: 3
B17: c. Owner Occupied / Plan of Action | F17: 0 | H17: =IF(AND('2. Project Description'!#REF!="Yes",'2. Project Description'!H66="Yes",'2. Project Description'!H69="Yes"),L17,0) ->  | L17: 3
A18: ii | B18: New Construction Project included in a Concerted Community Revitalization Plan | F18: 0 | H18: =IF(AND(M30="Yes",'2. Project Description'!H66="Yes",'2. Project Description'!H69="Yes"),L18,0) ->  | L18: 3
A20: C. | B20: Rehabilitation & Preservation. | M20: ='2. Project Description'!#REF! ->  | N20: (any rehab?)
A21: i.a. | B21: Existing LIHTC project | D21: =MAX(H21:H27) ->  | E21: points | F21: 0 | H21: =IF('2. Project Description'!H71="Yes",L21,0) -> 0 | L21: 7
A22: i.b | B22: Rehab of existing Federally Funded Project | F22: 0 | H22: =IF(AND(H21=0,'2. Project Description'!H72="Yes"),L22,0) -> 0 | I22: =IF(AND(F22>0,COUNTIF(F21:F22,">0")>1),"Only one selection allowed in I.C.i","") ->  | L22: 7
A23: i.c | B23: Rehab of existing non-historic residential building | F23: 0 | H23: =IF(AND(SUM(H21:H22)=0,'2. Project Description'!#REF!="Yes"),L23,0) ->  | I23: =IF(AND(F23>0,COUNTIF(F21:F23,">0")>1),"Only one selection allowed in I.C.i","") ->  | L23: 7
A24: i.d | B24: Blighted housing remediation and/or replacement | F24: 0 | H24: =IF(AND(SUM(H21:H23)=0,'2. Project Description'!#REF!="Yes"),L24,0) ->  | I24: =IF(AND(F24>0,COUNTIF(F21:F24,">0")>1),"Only one selection allowed in I.C.i","") ->  | L24: 7
A25: i.e | B25: Rehab Infill / Scattered Site | F25: 0 | H25: =IF(AND(SUM(H21:H24)=0,'2. Project Description'!#REF!="Yes"),L25,0) ->  | I25: =IF(AND(F25>0,COUNTIF(F21:F25,">0")>1),"Only one selection allowed in I.C.i","") ->  | L25: 7 | M25: =+'2. Project Description'!#REF! ->  | N25: (infill?) | O25: =+'2. Project Description'!H59 -> Missing | P25: (single site?)
A26: i.f | B26: Preservation of Residential Historic Property | F26: 0 | H26: =IF(AND(SUM(H21:H25)=0,'2. Project Description'!#REF!="Yes"),L26,0) ->  | I26: =IF(AND(F26>0,COUNTIF(F21:F26,">0")>1),"Only one selection allowed in I.C.i","") ->  | L26: 3
A27: ii. | B27: Existing Federally Funded with HAP Contract | D27: =IF(M27<>"Yes",0,L27) ->  | E27: points | F27: 0 | L27: 1 | M27: =+'2. Project Description'!#REF! ->  | N27: (Existing FF with HAP)
A29: D. | B29: New Construction. | M29: =+'2. Project Description'!#REF! ->  | N29: (any new const?) | P29: =+'2. Project Description'!#REF! ->  | Q29: new const (by # of units)
A30: i.a. | B30: New Construction | D30: =MAX(H30:H31) ->  | E30: points | F30: 0 | H30: =IF(AND(M30="Yes",M25<>"Yes"),L30,0) ->  | I30: =IF(AND(F30<>0,F31<>0),"Only one selection allowed","") ->  | L30: 7 | M30: =IF(AND(M29="Yes",P29>=50%),"Yes","No") ->  | N30: (at least 50% new const by # units)
A31: i.b | B31: New Construction Infill / Scattered Site (not eligible for points for community facility) | F31: 0 | H31: =IF(AND(M30="Yes",'2. Project Description'!#REF!="Yes",H30=0),L31,0) ->  | I31: =IF(AND(F30<>0,F31<>0),"Only one selection allowed","") ->  | L31: 7 | S31: Scoring updated for 2022 QAP
A32: i.c | B32: Homeownership Project | D32: =IF(AND(M30="Yes",'2. Project Description'!#REF!="Yes"),L32,0) ->  | E32: points | F32: 0 | L32: 1
B34: Total for Section I - Maximum 16 points | D34: =MIN(L34,M34) ->  | E34: points | F34: =SUM(F7:F33) -> 0 | L34: =+L7 -> 16 | M34: =(MAX(D30,D21)+D9+D15+D27+D32) ->  | N34: Section I Total | S34: Scoring updated for 2022 QAP
A36: II. | B36: TARGETED POPULATION TYPE | L36: 6
A37: A.i. | B37: Special Needs Households: | D37: =IF('2. Project Description'!H118<>"Yes",0,IF(M37>=30%,L37,IF(M37>=20%,L37-1,IF(M37>=10%,L37-2,0)))) -> 0 | E37: points | F37: 0 | H37: =TEXT(M37,"0.0%")&" of Total Units in Project for Special Needs" -> 0.0% of Total Units in Project for Special Needs | L37: 6 | M37: =IF('2. Project Description'!H118<>"Yes",0,'2. Project Description'!#REF!) -> 0
B38: =IF(D37=0,"","Population type(s):") ->  | C38: =IF(D37=0,"",'2. Project Description'!#REF!) -> 
A39: A.ii. | B39: Elderly Households: | D39: =IF(AND(D37=0,'2. Project Description'!#REF!="Yes"),L39,0) ->  | E39: points | F39: 0 | H39: =TEXT(M39,"0.0%")&" of Total Units in Project for Elderly" ->  | L39: 6 | M39: =IF('2. Project Description'!#REF!<>"Yes",0,1) -> 
B41: Total for Section II - Maximum 6 points | D41: =MAX(D37,D39) ->  | E41: points | F41: =SUM(F36:F40) -> 0 | H41: =IF(AND(F37>0,F39>0),"Cannot select both A and B","") ->  | L41: =+L36 -> 6
A43: III. | B43: PRIORITY DEVELOPMENT AREAS AND OTHER PREFERENCES | L43: 22
A44: A. | B44: Extended Affordability Agreement. | D44: =IF(AND('2. Project Description'!#REF!="Yes",'2. Project Description'!#REF!="Yes",'2. Project Description'!#REF!>0),'2. Project Description'!#REF!,0) ->  | E44: points | F44: 0 | H44: =IF(D44=0,"No extended affordability",'2. Project Description'!#REF!) ->  | L44: 7
A45: B. | B45: Increased Unit Affordability.
A46: i. | B46: Extremely Low Income Targeting.
A47: a. | B47: Between 5% and 10% of units are non-PSH at 30% AMI or below. | D47: =MAX(H47:H48) -> 0 | E47: points | F47: 0 | H47: =IF(H48<>0,0,N47) -> 0 | I47: =TEXT(M47,"0.0%")&" of Total Units are non-PSH at 30% or below" -> -5.0% of Total Units are non-PSH at 30% or below | L47: 4 | M47: =+'4. Unit Mix and Rents'!G47-5% -> -0.05 | N47: =IF(AND(M47>=5%,M47<10%),L47,0) -> 0
A48: b. | B48: Between 5% and 10% of units are PSH Units. | F48: 0 | H48: =+N48 -> 0 | I48: =TEXT(M48,"0.0%")&" of Total Units qualify as PSH Units" -> -5.0% of Total Units qualify as PSH Units | L48: 3 | M48: =+'4. Unit Mix and Rents'!G46-5% -> -0.05 | N48: =IF(AND(M48>=5%,M48<10%),L48,0) -> 0
H49: =IF(AND(F47>0,F48>0),"Cannot select both a and b","") -> 
A50: ii. | B50: Very Low Income Targeting. | D50: =IF(M50>=35%,L50,IF(M50>=25%,L50-1,IF(M50>=20%,L50-2,0))) -> 0 | E50: points | F50: 0 | H50: =TEXT(M50,"0.0%")&" of Total Units at between 31%-50% AMI" -> 0.0% of Total Units at between 31%-50% AMI | L50: 5 | M50: =+'4. Unit Mix and Rents'!G51 -> 0
A51: C. | B51: Governmental Priorities.
A52: i. | B52: =IF(M52="","Project Not Located in Difficult Development Area (DDA)","Project Located in Difficult Development Area (DDA) or") -> Project Not Located in Difficult Development Area (DDA) | D52: =MAX(H52:H54) -> 0 | E52: points | F52: 0 | H52: =IF(M53="CNI",0,IF(M52="",0,L52)) -> 0 | L52: 2 | M52: =IF('2. Project Description'!H65="Yes","DDA","") -> 
B53: =IF(M53="","Project Not Located in Qualified Census Tract (QCT)","Project Located in Qualified Census Tract (QCT) or") -> Project Not Located in Qualified Census Tract (QCT) | F53: 0 | H53: =IF(M53="",0,L53) -> 0 | L53: 2 | M53: =IF('2. Project Description'!H66="Yes","QCT","") -> 
B54: =IF(M54="","Project Not Located in Federally or State recognized Tribal Organization (RTO)","Project Located in Federally or State recognized Tribal Organization (RTO)") -> Project Not Located in Federally or State recognized Tribal Organization (RTO) | F54: 0 | H54: =IF(M54="",0,L54) -> 0 | L54: 2 | M54: =IF('2. Project Description'!H67="Yes","RTO","") ->  | O54: =+'2. Project Description'!E54 -> 0
A55: ii. | B55: Located in a parish that (a) has not received an award of LIHTC within the last 20 years. Beauregard, Claiborne, Grant, La Salle, St. Charles, St. Helena, St. John the Baptist, Tensas | D55: =IF(OR(O54="Beauregard",O54="Claiborne",O54="Grant",O54="LaSalle",O54="St. Charles",O54="St. Helena",O54="St. John",O54="Tensas"),2,0) -> 0 | E55: points | F55: 0 | L55: 2
A56: iii.c | B56: Parish with cost-burdened renters above 53% | E56: points | F56: 0 | H56: =TEXT(M56,"0.0%")&" cost-burdened renters" ->  | M56: =VLOOKUP(O54,Parishes!A9:AD73,27,FALSE) -> 
A57: iii.c | B57: Only one of the following: | H57: =IF(AND(F58>0,F59>0),"Limited to 1 point in ii.d","") ->  | R57: Scoring updated for 2019 QAP
A58: iii.d | B58: Parish with children under 5 in poverty above 32% | E58: points | F58: 0 | H58: =TEXT(M58,"0.0%")&" children under 5 in poverty" ->  | M58: =VLOOKUP(O54,Parishes!A9:AD73,29,FALSE) -> 
A59: iii.e | B59: Parish with persons in poverty above 20% | E59: points | F59: 0 | H59: =TEXT(M59,"0.0%")&" persons in poverty" ->  | M59: =VLOOKUP(O54,Parishes!A9:AD73,28,FALSE) ->  | S59: Scoring updated for 2022 QAP
A60: iii.f | B60: Parish with Median Household Income at or below 46,000 | E60: points | F60: 0 | H60: =TEXT(M60,"#,##0")&" Median Household Income" ->  | M60: =VLOOKUP(O54,Parishes!A9:AD73,30,FALSE) -> 
A61: D. | B61: Additional Financial Support | D61: =IF(M61>=7%,L61,IF(M61>=4%,L61-1,IF(M61>=2%,L61-2,0))) -> 0 | E61: points | F61: 0 | H61: =TEXT(M61,"0.0%")&" of TDC in Additional Financial Support" -> 0.0% of TDC in Additional Financial Support | L61: 4 | M61: =IF('2. Project Description'!H130="Yes",'2. Project Description'!M132,0) -> 0
B63: Total for Section III - Maximum 22 points | D63: =MIN(L63,M63) ->  | E63: points | F63: =SUM(F43:F62) -> 0 | L63: =+L43 -> 22 | M63: =SUM(D44:D61) ->  | N63: Section III Total
A65: IV. | B65: LOCATION CHARACTERISTICS | L65: 5
A66: A. | B66: Neighborhood Features.
A67: i. | B67: Points Gained. | D67: =MIN(M67,L67) -> 0 | E67: points | F67: 0 | L67: 5 | M67: =+'2. Project Description'!M135 -> 0
B68: =IF(M68<0,"Error -- there is a nearby negative neighborhood feature thas is prohibited under the QAP.","") ->  | M68: ='2. Project Description'!#REF! ->  | N68: negative nhood feature
B70: Total for Section IV | D70: =SUM(D66:D69) -> 0 | E70: points | F70: =SUM(F65:F69) -> 0 | L70: =+L65 -> 5
A72: V. | B72: PROJECT CHARACTERISTICS | L72: 42
A73: A. | B73: Community Facilities. | D73: =IF(AND(S73<>"Yes",P73="Yes",M73="Yes",V73=0),L73,0) ->  | E73: points | F73: 0 | L73: 2 | M73: =+'2. Project Description'!#REF! ->  | N73: (CF?) | P73: =+'2. Project Description'!H59 -> Missing | Q73: (single site project?) | S73: =+'2. Project Description'!#REF! ->  | T73: (H.O. project?) | V73: =+H31+F31+H25+F25 ->  | W73: Points claimed for Infill / Scattered Site
A74: B. | B74: Optional Amenities. *Provide architecture certification for the selected amenities.
A75: i. | B75: Washers and dryers are installed and maintained in each unit (no points will be offered for offering hookups only. Equipment must be new.) | D75: =IF('2. Project Description'!H149="Yes",L75,0) -> 0 | E75: points | F75: 0 | L75: 2 | M75: =+P79 ->  | N75: =+Q79 -> (Any rehab) | S75: Scoring updated for 2022 QAP
A76: ii. | B76: Diswashers maintained in each unit | D76: =IF('2. Project Description'!H150="Yes",L76,0) -> 0 | E76: point | F76: 0 | L76: 1
A77: iii. | B77: Development Wi-Fi | D77: =IF('2. Project Description'!H151="Yes",L77,0) -> 0 | E77: point | F77: 0 | L77: 1
B78: *Applicant must provide documentation in the application submission
A79: iv. | B79: Green Building * | D79: =IF('2. Project Description'!$H$148="Yes",$L$79,0) -> 0 | E79: points | F79: 0 | H79: =IF('2. Project Description'!$H$148="Yes",$B$79,"") ->  | L79: 5 | M79: =+'2. Project Description'!H148 -> Missing | N79: (Green Bldg) | P79: =+'2. Project Description'!#REF! ->  | Q79: (Any rehab) | S79: Scoring updated for 2022 QAP
A80: V. | B80: Universal Design * | D80: =IF('2. Project Description'!$H$152="Yes",$L$80,0) -> 0 | E80: points | F80: 0 | H80: =IF('2. Project Description'!$H$152="Yes",$B$80,"") ->  | L80: 2 | S80: Scoring updated for 2022 QAP
A81: C. | B81: Project Amenities. | H81: =M81&" Project Amenities claimed" -> 0 Project Amenities claimed | L81: 2 | M81: =+'2. Project Description'!M167 -> 0
B82: Playground | D82: =MIN(M81,L81) -> 0 | E82: point | F82: 0 | H82: =IF('2. Project Description'!H168="Yes",L82,0) -> 0 | L82: 1
B83: Computer Center (minimum 5 computers) | E83: point | F83: 0 | H83: =IF('2. Project Description'!H169="Yes",L83,0) -> 0 | L83: 1
B84: Exercise Room (must have equipment) | E84: point | F84: 0 | H84: =IF('2. Project Description'!H170="Yes",L84,0) -> 0 | L84: 1
B85: Picnic Area with Permanent Grill | E85: point | F85: 0 | H85: =IF('2. Project Description'!H171="Yes",L85,0) -> 0 | L85: 1
B86: Courtyard with Seating | E86: point | F86: 0 | H86: =IF('2. Project Description'!H172="Yes",L86,0) -> 0 | L86: 1
A87: D. | B87: Additional Accessible Units. | D87: =IF(M87>=20%,L87,IF(M87>=10%,L87-1,0)) ->  | E87: points | F87: 0 | H87: =+O87 -> 0 | I87: of total units are accessible | L87: 3 | M87: =+'2. Project Description'!H175+'2. Project Description'!#REF! ->  | N87: provided | O87: =IF('4. Unit Mix and Rents'!F41=0,0,+M87/'4. Unit Mix and Rents'!F41) -> 0
A88: E. | B88: On-Site Security. | H88: =+'2. Project Description'!#REF! ->  | L88: 1 | M88: =SUM(H89:H91) -> 
A89: i. | B89: Security Cameras. | D89: =MAX(H89:H91) ->  | E89: points | F89: 0 | H89: =IF('2. Project Description'!#REF!="Yes",2,0) ->  | L89: 2 | S89: Scoring updated for 2019 QAP
B90: Security Gate. | F90: 0 | H90: =IF('2. Project Description'!#REF!="Yes",2,0) ->  | L90: 2 | S90: Scoring updated for 2019 QAP
B91: On Site Security Guard. | F91: 0 | H91: =IF('2. Project Description'!#REF!="Yes",2,0) ->  | L91: 2 | S91: Scoring updated for 2019 QAP
A92: ii. | B92: Security cameras connect with local town crime surveillance initiative | D92: =IF('2. Project Description'!#REF!="Yes",L92,0) ->  | E92: point | F92: 0 | L92: 1
A93: F. | B93: TDC At Least 15% Below Maximum TDC Per Unit. | E93: points | F93: 0 | H93: =+M93 ->  | I93: =+N93 ->  | L93: 0 | M93: =+'5. Development Costs'!F237-1 ->  | N93: =IF(M93>0,"above the Maximum TDC",IF(M93<0,"below the Maximum TDC","")) -> 
A94: F. | B94: HUD Defensible Space | D94: =IF('2. Project Description'!#REF!="Yes",L94,0) ->  | E94: points | F94: 0 | L94: 2 | M94: =+'2. Project Description'!#REF! ->  | N94: (Any new const.) | S94: Scoring updated for 2022 QAP
A95: G. | B95: Resiliency Standards | L95: 2 | M95: =+'2. Project Description'!#REF! ->  | N95: (Any new const.) | S95: Scoring updated for 2022 QAP
B96: FORTFIED GOLD: | D96: =MAX(H96:H97) -> 0 | E96: points | F96: 0 | H96: =IF('2. Project Description'!H179="Yes",L96,0) -> 0 | L96: 7 | M96: =+'2. Project Description'!#REF! ->  | N96: (Any new const.)
B97: FORTFIED SILVER: | F97: 0 | H97: =IF('2. Project Description'!H180="Yes",L97,0) -> 0 | L97: 5 | M97: =+'2. Project Description'!#REF! ->  | N97: (Any new const.)
A98: H. | B98: Eviction Prevention and Low Barrier Tenant Screening - Maximum 3 Points | L98: 2 | M98: =+'2. Project Description'!#REF! ->  | N98: (Any new const.) | S98: Scoring updated for 2022 QAP
B99: Eviction Prevention Plan | D99: =IF('2. Project Description'!#REF!="Yes",L99,0) ->  | E99: points | F99: 0 | L99: 2
B100: Low-barrier tenant screening | D100: =IF('2. Project Description'!#REF!="Yes",L100,0) ->  | E100: points | F100: 0 | L100: 1
A101: I. | B101: Diversity, Equity & Inclusion - Maximum 9 Points | L101: 2 | S101: Scoring updated for 2022 QAP
A102: i. | B102: (i) Material Participation of Minority, Women’s and Veteran’s Businesses – up to 4 points | S102: Scoring updated for 2022 QAP
B103: Professional Services/ General Contractor | D103: =IF('2. Project Description'!#REF!="Yes",L103,0) ->  | E103: points | F103: 0 | L103: 2
B104: Sub-Contractors/Vendors 1%-4.99% of Total Development Cost | D104: =MAX(H104:H105) ->  | E104: points | F104: 0 | H104: =IF('2. Project Description'!#REF!="Yes",L104,0) ->  | L104: 1
B105: Sub-Contractors/Vendors >5% of Total Development Cost | F105: 0 | H105: =IF('2. Project Description'!#REF!="Yes",L105,0) ->  | L105: 2
A106: ii. | B106: Points for JV with a Certified Minority Entity, Woman-Owned Business, Veteran-Owned Business, Service Disabled Veteran-Owned Business or a Qualified Small Business (Max 5 points) | L106: 5
B107: JV with a Certified Minority Entity | D107: =MAX(H107:H111) ->  | E107: points | F107: 0 | H107: =IF('2. Project Description'!#REF!="Yes",L107,0) ->  | L107: 5
B108: Woman-Owned Business | E108: points | F108: 0 | H108: =IF('2. Project Description'!#REF!="Yes",L108,0) ->  | L108: 5
B109: Veteran-Owned Business | E109: points | F109: 0 | H109: =IF('2. Project Description'!#REF!="Yes",L109,0) ->  | L109: 5
B110: Service Disabled Veteran-Owned Business | E110: points | F110: 0 | H110: =IF('2. Project Description'!#REF!="Yes",L110,0) ->  | L110: 5
B111: Qualified Small Business | E111: points | F111: 0 | H111: =IF('2. Project Description'!#REF!="Yes",L111,0) ->  | L111: 5
B113: Total for Section V | D113: =MIN(L113,M113) ->  | E113: points | F113: =SUM(F72:F112) -> 0 | L113: =+L72 -> 42 | M113: =SUM(D73:D111) ->  | N113: Section Total
B115: TOTAL POINTS (TO BE CONFIRMED BY LHC) | D115: =+D113+D70+D63+D41+D34 ->  | E115: POINTS | F115: =+F113+F70+F63+F41+F34 -> 0 | G115: POINTS | L115: =+L72+L65+L43+L36+L7 -> 91
C2064: m ,

Sheet 9. Summary
A3: =+'2. Project Description'!A3 -> HOMELESS & HOUSING STABILITY: AFFORDABLE HOUSING DEVELOPMENT PROGRAM
A4: =TRIM('2. Project Description'!E51)&" ("&TRIM('2. Project Description'!E53)&" LA), "&'2. Project Description'!E21 -> ( LA),
A6: Project Summary
A8: Applicant Name | B8: =+'2. Project Description'!E10 -> 0
A9: Developer | B9: =+'2. Project Description'!E21 -> 0
A10: Management Agent | B10: =+'2. Project Description'!E29 -> 0
A11: City | B11: =+'2. Project Description'!E53 -> 0
A12: Parish | B12: =+'2. Project Description'!E54 -> 0
A13: Number of Units | B13: =TEXT('4. Unit Mix and Rents'!F41,"0")&" total units and "&TEXT('4. Unit Mix and Rents'!O41,"0")&" LIHTC Units" -> 0 total units and 0 LIHTC Units
A16: Unit Mix Summary | B16: 0 BR | C16: 1 BR | D16: 2 BR | E16: 3 BR | F16: 4 BR | G16: Total
A17: =+'4. Unit Mix and Rents'!B65 -> 20% AMI | B17: ='4. Unit Mix and Rents'!C65 -> 0 | C17: =+'4. Unit Mix and Rents'!D65 -> 0 | D17: =+'4. Unit Mix and Rents'!E65 -> 0 | E17: =+'4. Unit Mix and Rents'!F65 -> 0 | F17: =+'4. Unit Mix and Rents'!G65 -> 0 | G17: =SUM(B17:F17) -> 0
A18: =+'4. Unit Mix and Rents'!B66 -> 30% AMI | B18: ='4. Unit Mix and Rents'!C66 -> 0 | C18: =+'4. Unit Mix and Rents'!D66 -> 0 | D18: =+'4. Unit Mix and Rents'!E66 -> 0 | E18: =+'4. Unit Mix and Rents'!F66 -> 0 | F18: =+'4. Unit Mix and Rents'!G66 -> 0 | G18: 0
A19: =+'4. Unit Mix and Rents'!B67 -> 40% AMI | B19: ='4. Unit Mix and Rents'!C67 -> 0 | C19: =+'4. Unit Mix and Rents'!D67 -> 0 | D19: =+'4. Unit Mix and Rents'!E67 -> 0 | E19: =+'4. Unit Mix and Rents'!F67 -> 0 | F19: =+'4. Unit Mix and Rents'!G67 -> 0 | G19: 0
A20: =+'4. Unit Mix and Rents'!B68 -> 50% AMI | B20: ='4. Unit Mix and Rents'!C68 -> 0 | C20: =+'4. Unit Mix and Rents'!D68 -> 0 | D20: =+'4. Unit Mix and Rents'!E68 -> 0 | E20: =+'4. Unit Mix and Rents'!F68 -> 0 | F20: =+'4. Unit Mix and Rents'!G68 -> 0 | G20: 0
A21: =+'4. Unit Mix and Rents'!B69 -> 60% AMI | B21: ='4. Unit Mix and Rents'!C69 -> 0 | C21: =+'4. Unit Mix and Rents'!D69 -> 0 | D21: =+'4. Unit Mix and Rents'!E69 -> 0 | E21: =+'4. Unit Mix and Rents'!F69 -> 0 | F21: =+'4. Unit Mix and Rents'!G69 -> 0 | G21: 0
A22: =+'4. Unit Mix and Rents'!B70 -> 70% AMI | B22: ='4. Unit Mix and Rents'!C70 -> 0 | C22: =+'4. Unit Mix and Rents'!D70 -> 0 | D22: =+'4. Unit Mix and Rents'!E70 -> 0 | E22: =+'4. Unit Mix and Rents'!F70 -> 0 | F22: =+'4. Unit Mix and Rents'!G70 -> 0 | G22: 0
A23: =+'4. Unit Mix and Rents'!B71 -> 80% AMI | B23: ='4. Unit Mix and Rents'!C71 -> 0 | C23: =+'4. Unit Mix and Rents'!D71 -> 0 | D23: =+'4. Unit Mix and Rents'!E71 -> 0 | E23: =+'4. Unit Mix and Rents'!F71 -> 0 | F23: =+'4. Unit Mix and Rents'!G71 -> 0 | G23: 0
A24: =+'4. Unit Mix and Rents'!B72 -> 120% AMI | B24: ='4. Unit Mix and Rents'!C72 -> 0 | C24: =+'4. Unit Mix and Rents'!D72 -> 0 | D24: =+'4. Unit Mix and Rents'!E72 -> 0 | E24: =+'4. Unit Mix and Rents'!F72 -> 0 | F24: =+'4. Unit Mix and Rents'!G72 -> 0 | G24: 0
A25: =+'4. Unit Mix and Rents'!B73 -> Not AMI Restricted | B25: ='4. Unit Mix and Rents'!C73 -> 0 | C25: =+'4. Unit Mix and Rents'!D73 -> 0 | D25: =+'4. Unit Mix and Rents'!E73 -> 0 | E25: =+'4. Unit Mix and Rents'!F73 -> 0 | F25: =+'4. Unit Mix and Rents'!G73 -> 0 | G25: 0
A26: Total Units | B26: =SUM(B17:B25) -> 0 | C26: =SUM(C17:C25) -> 0 | D26: 0 | E26: 0 | F26: 0 | G26: 0
A28: =+'4. Unit Mix and Rents'!B76 -> PSH Units | B28: ='4. Unit Mix and Rents'!C76 -> 0 | C28: =+'4. Unit Mix and Rents'!D76 -> 0 | D28: =+'4. Unit Mix and Rents'!E76 -> 0 | E28: =+'4. Unit Mix and Rents'!F76 -> 0 | F28: =+'4. Unit Mix and Rents'!G76 -> 0 | G28: =SUM(B28:F28) -> 0
A30: Operating Budget
A31: =+'3. Funding Characteristics'!B420 -> Gross Potential Rental Income | D31: =+'3. Funding Characteristics'!H420 -> 0
A32: =+'3. Funding Characteristics'!B421 -> Rent Loss (years 1-3) | D32: =+'3. Funding Characteristics'!H421 -> 0 | F32: =+'3. Funding Characteristics'!D421 -> 0.07
A33: =+'3. Funding Characteristics'!B422 -> Other Income | D33: =+'3. Funding Characteristics'!H422 -> 0
A34: Effective Gross Income | D34: =+'3. Funding Characteristics'!H424 -> 0
A35: Total Operating Expenses | D35: =+'3. Funding Characteristics'!H426 -> 0 | F35: =+'7. Revenues and Expenses'!D84 -> 0 | G35: PUPA
A36: =+'3. Funding Characteristics'!B429 -> Net Operating Income | D36: =+'3. Funding Characteristics'!H429 -> 0
A37: =+'3. Funding Characteristics'!B431 -> Must Pay Debt Service | D37: =-SUM('3. Funding Characteristics'!H431:H435) -> 0
A38: Operating Cash Flow | D38: =+'3. Funding Characteristics'!H436 -> 0
A39: =+'3. Funding Characteristics'!B437 -> DSCR Year 1 | D39: =+'3. Funding Characteristics'!H437 -> 0
A41: Total Sources of Funds | D41: =+'3. Funding Characteristics'!H198 -> 0 | F41: =+IF(G26=0,0,D41/G26) -> 0 | G41: per unit
A42: =+'3. Funding Characteristics'!B185 -> New LHC Risk Sharing First Mortgage Loan | D42: =+'3. Funding Characteristics'!H185 -> 0 | F42: =+IF(G26=0,0,D42/G26) -> 0
A43: =+'3. Funding Characteristics'!B186 -> Other Loan With Must-Pay Debt Service | D43: =+'3. Funding Characteristics'!H186 -> 0 | F43: =+IF(G26=0,0,D43/G26) -> 0
A44: =+'3. Funding Characteristics'!B187 -> Non-LHC loan #2 (identify lender): | D44: =+'3. Funding Characteristics'!H187 -> 0 | F44: =+IF(G26=0,0,D44/G26) -> 0
A45: =+'3. Funding Characteristics'!B188 -> Amount of HHSD Funds Requested | D45: =+'3. Funding Characteristics'!H188 -> 0 | F45: =+IF(G26=0,0,D45/G26) -> 0
A46: =+'3. Funding Characteristics'!B189 -> Deferred Developer Fee | D46: =+'3. Funding Characteristics'!H189 -> 0 | F46: =+IF(G26=0,0,D46/G26) -> 0
A47: =+'3. Funding Characteristics'!B190 -> Federal Historic Tax Credits and Equity | D47: =+'3. Funding Characteristics'!H190 -> 0 | F47: =+IF(G26=0,0,D47/G26) -> 0
A48: =+'3. Funding Characteristics'!B191 -> State Historic Tax Credits and Equity | D48: =+'3. Funding Characteristics'!H191 -> 0 | F48: =+IF(G26=0,0,D48/G26) -> 0
A49: =+'3. Funding Characteristics'!B192 -> Estimated LIHTC Equity Proceeds | D49: =+'3. Funding Characteristics'!H192 -> 0 | F49: =+IF(G26=0,0,D49/G26) -> 0
A50: Other | D50: =D41-SUM(D42:E49) -> 0 | F50: =+IF(G26=0,0,D50/G26) -> 0
A52: Total Development Cost | D52: =+'5. Development Costs'!C213 -> 0 | F52: =+IF(G26=0,0,D52/G26) -> 0 | G52: per unit
A53: =+'5. Development Costs'!B185 -> Building Acquisition | D53: =+'5. Development Costs'!C185 -> 0 | F53: =+IF(G26=0,0,D53/G26) -> 0
A54: =+'5. Development Costs'!B186 -> Land Acquisition | D54: =+'5. Development Costs'!C186 -> 0 | F54: =+IF(G26=0,0,D54/G26) -> 0
A55: Total Hard Costs | D55: =SUM('5. Development Costs'!C187:C194) -> 0 | F55: =+IF(G26=0,0,D55/G26) -> 0
A56: Builder Compensation | C56: 0 | D56: 0 | F56: 0
A57: Construction Contingency | C57: =IF((D55+D56)=0,0,D57/(D55+D56)) -> 0 | D57: =+'5. Development Costs'!C196 -> 0 | F57: =+IF(G26=0,0,D57/G26) -> 0
A58: Total Developer's Fee | C58: =IF((D55+D56+D57)=0,0,D58/(D55+D56+D57)) -> 0 | D58: =+SUM('5. Development Costs'!C210:C211) -> 0 | F58: =+IF(G26=0,0,D58/G26) -> 0
A59: Initial Reserves | D59: =SUM('5. Development Costs'!C202:C207) -> 0 | F59: =+IF(G26=0,0,D59/G26) -> 0
A60: Soft Costs / Other | D60: =D52-SUM(D53:E59) -> 0 | F60: =+IF(G26=0,0,D60/G26) -> 0
A62: DSCR from Cash Flow Proforma:
A63: Year 1 | E63: =+'3. Funding Characteristics'!H437 -> 0
A64: =+'3. Funding Characteristics'!B440 -> Year 5 | E64: =+'3. Funding Characteristics'!H440 -> 0
A65: =+'3. Funding Characteristics'!B441 -> Year 10 | E65: =+'3. Funding Characteristics'!H441 -> 0
A66: =+'3. Funding Characteristics'!B442 -> Year 15 | E66: =+'3. Funding Characteristics'!H442 -> 0
A67: =+'3. Funding Characteristics'!B443 -> Year 20 | E67: =+'3. Funding Characteristics'!H443 -> 0
A68: =+'3. Funding Characteristics'!B444 -> Year 25 | E68: =+'3. Funding Characteristics'!H444 -> 0
A69: =+'3. Funding Characteristics'!B445 -> Year 30 | E69: =+'3. Funding Characteristics'!H445 -> 0
A70: =+'3. Funding Characteristics'!B446 -> Year 35 | E70: =+'3. Funding Characteristics'!H446 -> 0

Sheet 10. Checklist
B3: =+'2. Project Description'!A3 -> HOMELESS & HOUSING STABILITY: AFFORDABLE HOUSING DEVELOPMENT PROGRAM
B4: =TRIM('2. Project Description'!E51)&" ("&TRIM('2. Project Description'!E53)&" LA), "&'2. Project Description'!E21 -> ( LA),
B6: Checklist of Threshold Requirements and Other Required Information
B8: Upload the Following Documents (Each Requires User Entries)
A9: 1 | B9: Missing | C9: Development Team Resumes (Scoring Criteria I.A)
A10: 2 | B10: Missing | C10: Developer profile & track record including organizational experience, similar projects completed in past five years. (Scoring Criteria I.B)
A11: 3 | B11: Missing | C11: Documentation of experience and/or partnerships with service providers in serving Qualified Population (Scoring Criteria I.C)
A12: 4 | B12: Missing | C12: Other certifications, partnerships, etc. that demonstrate the capacity to serve vulnerable populations (Scoring Criteria I.C)
A13: 5 | B13: Missing | C13: Proposed services/partnerships for serving Qualified Population (Scoring Criteria II.D)
A14: 6 | B14: Missing | C14: Taxpayer Certification (If applicable)
A15: 7 | B15: Missing | C15: Property Management Experience (Experience of entity/individuals who will provide property management services)
A16: 8 | B16: Missing | C16: Project Site Map
A17: 9 | B17: Missing | C17: Proof of Ownership/Ownership Information
A18: 10 | B18: Missing | C18: Evidence/Documentation of Site Control
A19: 11 | B19: Missing | C19: Zoning Evidence
A20: 12 | B20: Missing | C20: Project Schedule
A21: 13 | B21: Missing | C21: IIBHS Fortified Multifamily Gold Standard (if applicable)
A22: 14 | B22: Missing | C22: Enterprise Green Communities (ECG) Completed Checklist & Score
A23: 15 | B23: Missing | C23: Commitment Letter(s) for Permanent Financing
A24: 16 | B24: Missing | C24: Additional Documents (if applicable). Including Construction Manager Fee per Tab 3 (if applicable).

Sheet AMI Rents (hidden)
A3: =+'7. Revenues and Expenses'!A3 -> HOMELESS & HOUSING STABILITY: AFFORDABLE HOUSING DEVELOPMENT PROGRAM
A5: ="AMI Rents for "&'4. Unit Mix and Rents'!A4 -> AMI Rents for ( LA),
A7: 4 Person AMI | B7: =+'3. Funding Characteristics'!H308 -> Parish required on Row 82 | C7: at 100% AMI | E7: =+'2. Project Description'!E54 -> 0
A9: 0.2 | B9: of AMI Will Be Used for These Calculations
A10: 1 Person | B10: =ROUND(B13*I10/50,0)*50 ->  | C10: 0BR | D10: =B10 ->  | E10: =D10*0.3/12 ->  | F10: =C10&" Gross Rent" -> 0BR Gross Rent | I10: 0.7
A11: 2 Person | B11: =ROUND(B13*I11/50,0)*50 ->  | C11: 1BR | D11: =(B10+B11)/2 ->  | F11: 1BR Gross Rent | I11: 0.8
A12: 3 Person | B12: =ROUND(B13*I12/50,0)*50 ->  | C12: 2BR | D12: =B12 ->  | F12: 2BR Gross Rent | I12: 0.9
A13: 4 Person | B13: =ROUND(B7*A9,0) ->  | C13: 3BR | D13: =(B13+B14)/2 ->  | F13: 3BR Gross Rent | I13: 1
A14: 5 Person | B14: =ROUND(B13*I14/50,0)*50 ->  | C14: 4BR | D14: =B15 ->  | F14: 4BR Gross Rent | I14: 1.08
A15: 6 Person | B15: =ROUND(B13*I15/50,0)*50 ->  | C15: 5BR | D15: =(B17+B16)/2 ->  | F15: 5BR Gross Rent | I15: 1.16
A16: 7 Person | B16: =ROUND(B13*I16/50,0)*50 ->  | I16: =+I15+8% -> 1.24
A17: 8 Person | B17: =ROUND(B13*I17/50,0)*50 ->  | I17: =+I16+8% -> 1.32
A19: ="Gross Rents (Rents + Tenant Paid Utilities) at 30% of "&TEXT(A9,"0%")&" of AMI" -> Gross Rents (Rents + Tenant Paid Utilities) at 30% of 20% of AMI
A20: 0BR | B20: 1BR | C20: 2BR | D20: 3BR | E20: 4BR | F20: 5BR
A21: =ROUNDDOWN(E10,I21) ->  | B21: =ROUNDDOWN(E11,I21) ->  | C21: =ROUNDDOWN(E12,I21) ->  | D21: =ROUNDDOWN(E13,I21) ->  | E21: =ROUNDDOWN(E14,I21) ->  | F21: =ROUNDDOWN(E15,I21) ->  | I21: 0 | J21: 2 = round down to penny; 0 = round down to dollar
A23: 0.3 | B23: of AMI Will Be Used for These Calculations
A24: 1 Person | B24: =ROUND(B27*I24/50,0)*50 ->  | C24: 0BR | D24: =B24 ->  | E24: =D24*0.3/12 ->  | F24: =C24&" Gross Rent" -> 0BR Gross Rent | I24: 0.7
A25: 2 Person | B25: =ROUND(B27*I25/50,0)*50 ->  | C25: 1BR | D25: =(B24+B25)/2 ->  | F25: 1BR Gross Rent | I25: 0.8
A26: 3 Person | B26: =ROUND(B27*I26/50,0)*50 ->  | C26: 2BR | D26: =B26 ->  | F26: 2BR Gross Rent | I26: 0.9
A27: 4 Person | B27: =ROUND(B7*A23,0) ->  | C27: 3BR | D27: =(B27+B28)/2 ->  | F27: 3BR Gross Rent | I27: 1
A28: 5 Person | B28: =ROUND(B27*I28/50,0)*50 ->  | C28: 4BR | D28: =B29 ->  | F28: 4BR Gross Rent | I28: 1.08
A29: 6 Person | B29: =ROUND(B27*I29/50,0)*50 ->  | C29: 5BR | D29: =(B31+B30)/2 ->  | F29: 5BR Gross Rent | I29: 1.16
A30: 7 Person | B30: =ROUND(B27*I30/50,0)*50 ->  | I30: =+I29+8% -> 1.24
A31: 8 Person | B31: =ROUND(B27*I31/50,0)*50 ->  | I31: =+I30+8% -> 1.32
A33: ="Gross Rents (Rents + Tenant Paid Utilities) at 30% of "&TEXT(A23,"0%")&" of AMI" -> Gross Rents (Rents + Tenant Paid Utilities) at 30% of 30% of AMI
A34: 0BR | B34: 1BR | C34: 2BR | D34: 3BR | E34: 4BR | F34: 5BR
A35: =ROUNDDOWN(E24,I35) ->  | B35: =ROUNDDOWN(E25,I35) ->  | C35: =ROUNDDOWN(E26,I35) ->  | D35: =ROUNDDOWN(E27,I35) ->  | E35: =ROUNDDOWN(E28,I35) ->  | F35: =ROUNDDOWN(E29,I35) -> 
A37: 0.4 | B37: of AMI Will Be Used for These Calculations
A38: 1 Person | B38: =ROUND(B41*I38/50,0)*50 ->  | C38: 0BR | D38: =B38 ->  | E38: =D38*0.3/12 ->  | F38: =C38&" Gross Rent" -> 0BR Gross Rent | I38: 0.7
A39: 2 Person | B39: =ROUND(B41*I39/50,0)*50 ->  | C39: 1BR | D39: =(B38+B39)/2 ->  | F39: 1BR Gross Rent | I39: 0.8
A40: 3 Person | B40: =ROUND(B41*I40/50,0)*50 ->  | C40: 2BR | D40: =B40 ->  | F40: 2BR Gross Rent | I40: 0.9
A41: 4 Person | B41: =ROUND(B7*A37,0) ->  | C41: 3BR | D41: =(B41+B42)/2 ->  | F41: 3BR Gross Rent | I41: 1
A42: 5 Person | B42: =ROUND(B41*I42/50,0)*50 ->  | C42: 4BR | D42: =B43 ->  | F42: 4BR Gross Rent | I42: 1.08
A43: 6 Person | B43: =ROUND(B41*I43/50,0)*50 ->  | C43: 5BR | D43: =(B45+B44)/2 ->  | F43: 5BR Gross Rent | I43: 1.16
A44: 7 Person | B44: =ROUND(B41*I44/50,0)*50 ->  | I44: =+I43+8% -> 1.24
A45: 8 Person | B45: =ROUND(B41*I45/50,0)*50 ->  | I45: =+I44+8% -> 1.32
A47: ="Gross Rents (Rents + Tenant Paid Utilities) at 30% of "&TEXT(A37,"0%")&" of AMI" -> Gross Rents (Rents + Tenant Paid Utilities) at 30% of 40% of AMI
A48: 0BR | B48: 1BR | C48: 2BR | D48: 3BR | E48: 4BR | F48: 5BR
A49: =ROUNDDOWN(E38,I49) ->  | B49: =ROUNDDOWN(E39,I49) ->  | C49: =ROUNDDOWN(E40,I49) ->  | D49: =ROUNDDOWN(E41,I49) ->  | E49: =ROUNDDOWN(E42,I49) ->  | F49: =ROUNDDOWN(E43,I49) -> 
A51: 0.5 | B51: of AMI Will Be Used for These Calculations
A52: 1 Person | B52: =ROUND(B55*I52/50,0)*50 ->  | C52: 0BR | D52: =B52 ->  | E52: =D52*0.3/12 ->  | F52: =C52&" Gross Rent" -> 0BR Gross Rent | I52: 0.7
A53: 2 Person | B53: =ROUND(B55*I53/50,0)*50 ->  | C53: 1BR | D53: =(B52+B53)/2 ->  | F53: 1BR Gross Rent | I53: 0.8
A54: 3 Person | B54: =ROUND(B55*I54/50,0)*50 ->  | C54: 2BR | D54: =B54 ->  | F54: 2BR Gross Rent | I54: 0.9
A55: 4 Person | B55: =ROUND(B7*A51,0) ->  | C55: 3BR | D55: =(B55+B56)/2 ->  | F55: 3BR Gross Rent | I55: 1
A56: 5 Person | B56: =ROUND(B55*I56/50,0)*50 ->  | C56: 4BR | D56: =B57 ->  | F56: 4BR Gross Rent | I56: 1.08
A57: 6 Person | B57: =ROUND(B55*I57/50,0)*50 ->  | C57: 5BR | D57: =(B59+B58)/2 ->  | F57: 5BR Gross Rent | I57: 1.16
A58: 7 Person | B58: =ROUND(B55*I58/50,0)*50 ->  | I58: =+I57+8% -> 1.24
A59: 8 Person | B59: =ROUND(B55*I59/50,0)*50 ->  | I59: =+I58+8% -> 1.32
A61: ="Gross Rents (Rents + Tenant Paid Utilities) at 30% of "&TEXT(A51,"0%")&" of AMI" -> Gross Rents (Rents + Tenant Paid Utilities) at 30% of 50% of AMI
A62: 0BR | B62: 1BR | C62: 2BR | D62: 3BR | E62: 4BR | F62: 5BR
A63: =ROUNDDOWN(E52,I63) ->  | B63: =ROUNDDOWN(E53,I63) ->  | C63: =ROUNDDOWN(E54,I63) ->  | D63: =ROUNDDOWN(E55,I63) ->  | E63: =ROUNDDOWN(E56,I63) ->  | F63: =ROUNDDOWN(E57,I63) -> 
A65: 0.6 | B65: of AMI Will Be Used for These Calculations
A66: 1 Person | B66: =ROUND(B69*I66/50,0)*50 ->  | C66: 0BR | D66: =B66 ->  | E66: =D66*0.3/12 ->  | F66: =C66&" Gross Rent" -> 0BR Gross Rent | I66: 0.7
A67: 2 Person | B67: =ROUND(B69*I67/50,0)*50 ->  | C67: 1BR | D67: =(B66+B67)/2 ->  | F67: 1BR Gross Rent | I67: 0.8
A68: 3 Person | B68: =ROUND(B69*I68/50,0)*50 ->  | C68: 2BR | D68: =B68 ->  | F68: 2BR Gross Rent | I68: 0.9
A69: 4 Person | B69: =ROUND(B7*A65,0) ->  | C69: 3BR | D69: =(B69+B70)/2 ->  | F69: 3BR Gross Rent | I69: 1
A70: 5 Person | B70: =ROUND(B69*I70/50,0)*50 ->  | C70: 4BR | D70: =B71 ->  | F70: 4BR Gross Rent | I70: 1.08
A71: 6 Person | B71: =ROUND(B69*I71/50,0)*50 ->  | C71: 5BR | D71: =(B73+B72)/2 ->  | F71: 5BR Gross Rent | I71: 1.16
A72: 7 Person | B72: =ROUND(B69*I72/50,0)*50 ->  | I72: =+I71+8% -> 1.24
A73: 8 Person | B73: =ROUND(B69*I73/50,0)*50 ->  | I73: =+I72+8% -> 1.32
A75: ="Gross Rents (Rents + Tenant Paid Utilities) at 30% of "&TEXT(A65,"0%")&" of AMI" -> Gross Rents (Rents + Tenant Paid Utilities) at 30% of 60% of AMI
A76: 0BR | B76: 1BR | C76: 2BR | D76: 3BR | E76: 4BR | F76: 5BR
A77: =ROUNDDOWN(E66,I77) ->  | B77: =ROUNDDOWN(E67,I77) ->  | C77: =ROUNDDOWN(E68,I77) ->  | D77: =ROUNDDOWN(E69,I77) ->  | E77: =ROUNDDOWN(E70,I77) ->  | F77: =ROUNDDOWN(E71,I77) -> 
A79: 0.7 | B79: of AMI Will Be Used for These Calculations
A80: 1 Person | B80: =ROUND(B83*I80/50,0)*50 ->  | C80: 0BR | D80: =B80 ->  | E80: =D80*0.3/12 ->  | F80: =C80&" Gross Rent" -> 0BR Gross Rent | I80: 0.7
A81: 2 Person | B81: =ROUND(B83*I81/50,0)*50 ->  | C81: 1BR | D81: =(B80+B81)/2 ->  | F81: 1BR Gross Rent | I81: 0.8
A82: 3 Person | B82: =ROUND(B83*I82/50,0)*50 ->  | C82: 2BR | D82: =B82 ->  | F82: 2BR Gross Rent | I82: 0.9
A83: 4 Person | B83: =ROUND(B7*A79,0) ->  | C83: 3BR | D83: =(B83+B84)/2 ->  | F83: 3BR Gross Rent | I83: 1
A84: 5 Person | B84: =ROUND(B83*I84/50,0)*50 ->  | C84: 4BR | D84: =B85 ->  | F84: 4BR Gross Rent | I84: 1.08
A85: 6 Person | B85: =ROUND(B83*I85/50,0)*50 ->  | C85: 5BR | D85: =(B87+B86)/2 ->  | F85: 5BR Gross Rent | I85: 1.16
A86: 7 Person | B86: =ROUND(B83*I86/50,0)*50 ->  | I86: =+I85+8% -> 1.24
A87: 8 Person | B87: =ROUND(B83*I87/50,0)*50 ->  | I87: =+I86+8% -> 1.32
A89: ="Gross Rents (Rents + Tenant Paid Utilities) at 30% of "&TEXT(A79,"0%")&" of AMI" -> Gross Rents (Rents + Tenant Paid Utilities) at 30% of 70% of AMI
A90: 0BR | B90: 1BR | C90: 2BR | D90: 3BR | E90: 4BR | F90: 5BR
A91: =ROUNDDOWN(E80,I91) ->  | B91: =ROUNDDOWN(E81,I91) ->  | C91: =ROUNDDOWN(E82,I91) ->  | D91: =ROUNDDOWN(E83,I91) ->  | E91: =ROUNDDOWN(E84,I91) ->  | F91: =ROUNDDOWN(E85,I91) -> 
A93: 0.8 | B93: of AMI Will Be Used for These Calculations
A94: 1 Person | B94: =ROUND(B97*I94/50,0)*50 ->  | C94: 0BR | D94: =B94 ->  | E94: =D94*0.3/12 ->  | F94: =C94&" Gross Rent" -> 0BR Gross Rent | I94: 0.7
A95: 2 Person | B95: =ROUND(B97*I95/50,0)*50 ->  | C95: 1BR | D95: =(B94+B95)/2 ->  | F95: 1BR Gross Rent | I95: 0.8
A96: 3 Person | B96: =ROUND(B97*I96/50,0)*50 ->  | C96: 2BR | D96: =B96 ->  | F96: 2BR Gross Rent | I96: 0.9
A97: 4 Person | B97: =ROUND(B7*A93,0) ->  | C97: 3BR | D97: =(B97+B98)/2 ->  | F97: 3BR Gross Rent | I97: 1
A98: 5 Person | B98: =ROUND(B97*I98/50,0)*50 ->  | C98: 4BR | D98: =B99 ->  | F98: 4BR Gross Rent | I98: 1.08
A99: 6 Person | B99: =ROUND(B97*I99/50,0)*50 ->  | C99: 5BR | D99: =(B101+B100)/2 ->  | F99: 5BR Gross Rent | I99: 1.16
A100: 7 Person | B100: =ROUND(B97*I100/50,0)*50 ->  | I100: =+I99+8% -> 1.24
A101: 8 Person | B101: =ROUND(B97*I101/50,0)*50 ->  | I101: =+I100+8% -> 1.32
A103: ="Gross Rents (Rents + Tenant Paid Utilities) at 30% of "&TEXT(A93,"0%")&" of AMI" -> Gross Rents (Rents + Tenant Paid Utilities) at 30% of 80% of AMI
A104: 0BR | B104: 1BR | C104: 2BR | D104: 3BR | E104: 4BR | F104: 5BR
A105: =ROUNDDOWN(E94,I105) ->  | B105: =ROUNDDOWN(E95,I105) ->  | C105: =ROUNDDOWN(E96,I105) ->  | D105: =ROUNDDOWN(E97,I105) ->  | E105: =ROUNDDOWN(E98,I105) ->  | F105: =ROUNDDOWN(E99,I105) -> 
A107: 1.2 | B107: of AMI Will Be Used for These Calculations
A108: 1 Person | B108: =ROUND(B111*I108/50,0)*50 ->  | C108: 0BR | D108: =B108 ->  | E108: =D108*0.3/12 ->  | F108: =C108&" Gross Rent" -> 0BR Gross Rent | I108: 0.7
A109: 2 Person | B109: =ROUND(B111*I109/50,0)*50 ->  | C109: 1BR | D109: =(B108+B109)/2 ->  | F109: 1BR Gross Rent | I109: 0.8
A110: 3 Person | B110: =ROUND(B111*I110/50,0)*50 ->  | C110: 2BR | D110: =B110 ->  | F110: 2BR Gross Rent | I110: 0.9
A111: 4 Person | B111: =ROUND(B7*A107,0) ->  | C111: 3BR | D111: =(B111+B112)/2 ->  | F111: 3BR Gross Rent | I111: 1
A112: 5 Person | B112: =ROUND(B111*I112/50,0)*50 ->  | C112: 4BR | D112: =B113 ->  | F112: 4BR Gross Rent | I112: 1.08
A113: 6 Person | B113: =ROUND(B111*I113/50,0)*50 ->  | C113: 5BR | D113: =(B115+B114)/2 ->  | F113: 5BR Gross Rent | I113: 1.16
A114: 7 Person | B114: =ROUND(B111*I114/50,0)*50 ->  | I114: =+I113+8% -> 1.24
A115: 8 Person | B115: =ROUND(B111*I115/50,0)*50 ->  | I115: =+I114+8% -> 1.32
A117: ="Gross Rents (Rents + Tenant Paid Utilities) at 30% of "&TEXT(A107,"0%")&" of AMI" -> Gross Rents (Rents + Tenant Paid Utilities) at 30% of 120% of AMI
A118: 0BR | B118: 1BR | C118: 2BR | D118: 3BR | E118: 4BR | F118: 5BR
A119: =ROUNDDOWN(E108,I119) ->  | B119: =ROUNDDOWN(E109,I119) ->  | C119: =ROUNDDOWN(E110,I119) ->  | D119: =ROUNDDOWN(E111,I119) ->  | E119: =ROUNDDOWN(E112,I119) ->  | F119: =ROUNDDOWN(E113,I119) -> 
A122: Gross Rents | B122: 0BR | C122: 1BR | D122: 2BR | E122: 3BR | F122: 4BR
A123: 120% AMI | B123: =+A119 ->  | C123: =+B119 ->  | D123: =+C119 ->  | E123: =+D119 ->  | F123: =+E119 -> 
A124: 20% AMI | B124: =+A21 ->  | C124: =+B21 ->  | D124: =+C21 ->  | E124: =+D21 ->  | F124: =+E21 -> 
A125: 30% AMI | B125: =+A35 ->  | C125: =+B35 ->  | D125: =+C35 ->  | E125: =+D35 ->  | F125: =+E35 -> 
A126: 40% AMI | B126: =+A49 ->  | C126: =+B49 ->  | D126: =+C49 ->  | E126: =+D49 ->  | F126: =+E49 -> 
A127: 50% AMI | B127: =+A63 ->  | C127: =+B63 ->  | D127: =+C63 ->  | E127: =+D63 ->  | F127: =+E63 -> 
A128: 60% AMI | B128: =+A77 ->  | C128: =+B77 ->  | D128: =+C77 ->  | E128: =+D77 ->  | F128: =+E77 -> 
A129: 70% AMI | B129: =+A91 ->  | C129: =+B91 ->  | D129: =+C91 ->  | E129: =+D91 ->  | F129: =+E91 -> 
A130: 80% AMI | B130: =+A105 ->  | C130: =+B105 ->  | D130: =+C105 ->  | E130: =+D105 ->  | F130: =+E105 -> 
A131: Market | B131: N/A | C131: N/A | D131: N/A | E131: N/A | F131: N/A

Sheet Development Team (hidden)
A3: =+'2. Project Description'!A3 -> HOMELESS & HOUSING STABILITY: AFFORDABLE HOUSING DEVELOPMENT PROGRAM
A4: =TRIM('2. Project Description'!E51)&" ("&TRIM('2. Project Description'!E53)&" LA), "&'2. Project Description'!E21 -> ( LA),
A6: Development Team
B8: Developer: | C8: =+'2. Project Description'!E21 -> 0
C9: =+'2. Project Description'!E22 -> 0
C10: =+'2. Project Description'!E23 -> 0
C12: Contact: | D12: =+'2. Project Description'!E13 -> 0 | E12: Phone: | F12: =+'2. Project Description'!E14 -> 0
C14: E-Mail Address: | D14: =+'2. Project Description'!E15 -> 0
B16: Taxpayer: | C16: =+'2. Project Description'!E10 -> 0
C17: =+'2. Project Description'!E11 -> 0
C18: =+'2. Project Description'!E12 -> 0
C20: Contact: | D20: =+'2. Project Description'!E13 -> 0 | E20: Phone: | F20: =+'2. Project Description'!E14 -> 0
C22: E-Mail Address: | D22: =+'2. Project Description'!E15 -> 0
B24: =+'2. Project Description'!#REF! ->  | C24: =+'2. Project Description'!#REF! -> 
B25: =+'2. Project Description'!#REF! ->  | C25: =+C17 -> 0
C26: =+C18 -> 0
C28: Contact: | D28: =+D20 -> 0 | E28: Phone: | F28: =+F20 -> 0
C30: E-Mail Address: | D30: =+D22 -> 0
B32: Sponsor:
C36: Contact: | E36: Phone:
C38: E-Mail Address:
B40: Consultant:
C44: Contact: | E44: Phone:
C46: E-Mail Address:
B48: Fiscal Member/Partner:
C52: Contact: | E52: Phone:
B54: Syndicator: | C54: =IF(Syndication!E12=0,"",Syndication!E12) -> 
C55: =IF(Syndication!E13=0,"",Syndication!E13) -> 
C56: =IF(Syndication!E14=0,"",Syndication!E14) -> 
C58: Contact: | D58: =IF(Syndication!F16=0,"",Syndication!F16) ->  | E58: Phone: | F58: =IF(Syndication!H16=0,"",Syndication!H16) -> 
B60: Attorney:
C64: Contact: | E64: Phone:
B67: Accountant:
B68: (Independent 3rd Party)
C71: Contact: | E71: Phone:
B73: Construction Mortgage
B74: Lender:
C77: Contact: | E77: Phone:
B80: Permanent Mortgage
B81: Lender:
C84: Contact: | E84: Phone:
B86: Management Co.:
C90: Contact: | E90: Phone:
B92: Architect:
C96: Contact: | E96: Phone:
B98: Builder / Contractor:
C102: Contact: | E102: Phone:

Sheet Syndication (hidden)
A3: ='2. Project Description'!A3 -> HOMELESS & HOUSING STABILITY: AFFORDABLE HOUSING DEVELOPMENT PROGRAM
A4: =TRIM('2. Project Description'!E51)&" ("&TRIM('2. Project Description'!E53)&" LA), "&'2. Project Description'!E21 -> ( LA),
A6: Syndication Information and Certification
B8: I. | C8: Syndication Commitment: A Commitment attached hereto as Exhibit A has been received from the Syndicator (named below) to purchase an ownership interest in the Taxpayer/Applicant for the total dollar amount specified below (the "Syndication Proceeds") in the percentage specified below in connection with the Low-Income Housing Credits specified in the Commitment:
C10: A. | D10: Syndicator Information (see Glossary for definition of 'Syndicator')
D12: Name:
D13: Address:
D16: Telephone:
D17: Contact:
C19: B. | D19: Percentage Interest in Taxpayer to be Acquired by Syndicator:
C21: C. | D21: % Interest in Taxpayer to be Retained by Sponsor/Developer: | J21: =1-J19 -> 1
C23: D. | D23: Amount of Tax Credits Specified in Commitment: | J23: =+'2. Project Description'!#REF! -> 
C25: E. | D25: Syndication Proceeds Generated by Syndicator (Prior to Subtraction
D26: of Syndication Costs): | M26: =IF(J23=0,0,+J26/(J23*J19*10)) ->  | N26: calculated syndication price
C28: F. | D28: Gross Equity to be invested in Taxpayer by Syndicator: | J28: =+'3. Funding Characteristics'!E120 -> 0
C30: G. | D30: Syndication Costs Paid by Syndicator (E-F): | J30: =J26-J28 -> 0
C32: H. | D32: Syndication Costs Paid by Developer (VI.10): | J32: =+J135 -> 0 | M32: =+'5. Development Costs'!D103 -> 0 | N32: from Development Costs worksheet
D33: =IF(J32='5. Development Costs'!D103,"","Doesn't Match Total Syndication Costs ("&TEXT('5. Development Costs'!D103,"#,##0")&") from the Dev. Costs worksheet.") -> 
C35: I. | D35: Total Syndication Costs (G+H): | J35: =+J30+J32 -> 0
C37: J. | D37: Total Syndication Costs as a % of Syndication Proceeds (I/E):* | J37: =IF(J26>0,J35/J26,0) -> 0
C39: K. | D39: Total Syndication Proceeds Available (F-H): | J39: =+J28-J32 -> 0
C40: ________________
C41: * If syndication is public, may not exceed 15%. If syndication is private, may not exceed 10%.
B43: II. | C43: Disbursement of Gross Equity by Installment: The Gross Equity will be invested in the Taxpayer by the Syndicator in the following installments:
C45: Event | F45: Date | H45: Percentage | J45: Installment
B47: 1) | H47: 0 | J47: 0
B48: 2) | H48: 0 | J48: 0
B49: 3) | H49: 0 | J49: 0
B50: 4) | H50: 0 | J50: 0
B51: 5) | H51: 0 | J51: 0
B52: 6) | H52: 0 | J52: 0
B53: 7) | H53: 0 | J53: 0
B54: 8) | H54: 0 | J54: 0
B55: 9) | H55: 0 | J55: 0
B56: 10) | H56: 0 | J56: 0
B57: 11) | H57: 0 | J57: 0
B58: 12) | H58: 0 | J58: 0
B59: 13) | H59: 0 | J59: 0
B60: 14) | H60: 0 | J60: 0
B61: 15) | H61: 0 | J61: 0
F62: =IF(ROUND(SUM(J47:J61),-1)<>ROUND(J28,-1),"WARNING - Does not agree with Line F above.","") -> 
B63: III. | C63: Sources of Interim Financing From Commercial Lenders: The following constitutes the source of Bridge Loan Costs and/or other Interim Financing Devices from commercial lenders:
C65: A. | D65: Interim Funds from Commercial Lender #1:
D67: Name:
D68: Address:
D71: Telephone:
D72: Contact:
D74: Loan Amount: | J74: 0
D75: Interest Rate: | F75: 0 | G75: per annum
D76: Estimate Total Interest Payments: | J76: 0
D77: Security for Interim Funds:
C79: B. | D79: Interim Funds from Commercial Lender #2:
D81: Name:
D82: Address:
D85: Telephone:
D86: Contact:
D88: Loan Amount: | J88: 0
D89: Interest Rate: | F89: 0 | G89: per annum
D90: Estimate Total Interest Payments: | J90: 0
D91: Security for Interim Funds:
B93: IV. | C93: Identity of Interest Information With Respect to Commercial Loans: The terms of the interim financing specified in Section III above were negotiated in good faith and on an "arm's-length" basis. There is no identity-of-interest between the entities listed in the Sources of Interim Funds and any partners or investors in the Taxpayer/Applicant.
B95: V. | C95: Interim Funds from Syndicator and Syndication Costs:
C97: A. | D97: The Syndicator will provide interim financing of | J97: 0
D98: at an interest rate of | J98: 0
D99: per annum and expects to receive | J99: 0
D100: of interest on funds loaned to the Taxpayer by the Syndicator.
C102: B. | D102: The following amounts represent syndication expenses to be incurred and paid by the
D103: Syndicator in obtaining cash to invest in the Taxpayer:
C105: Items | G105: Payee* | J105: Amounts*
B107: 1 | C107: Accountant's Fee Paid by Syndicator | G107: 0 | J107: 0
B108: 2 | C108: Syndicator's Fee | G108: 0 | J108: 0
B109: 3 | C109: Attorney's Fee Paid by Syndicator | G109: 0 | J109: 0
B110: 4 | C110: Broker Fees Paid by Syndicator | G110: 0 | J110: 0
B111: 5 | C111: Organizational Expense of Syndication | G111: 0 | J111: 0
B112: 6 | C112: Other: | D112: 0 | G112: 0 | J112: 0
B113: 7 | C113: Other: | D113: 0 | G113: 0 | J113: 0
B114: 8 | C114: Other: | D114: 0 | G114: 0 | J114: 0
B115: 9 | C115: Other: | D115: 0 | G115: 0 | J115: 0
B116: 10 | C116: Other: | D116: 0 | G116: 0 | J116: 0
C117: TOTAL: | F117: =IF(J117=J30,"","This doesn't match Section I, Line G!") ->  | J117: =+SUM(J107:J116) -> 0 | M117: =+J30 -> 0 | N117: Syndication Costs paid by Syndicator (Line I.G above)
B118: _____________
B119: * All amounts must relate solely to the Syndication and must be amounts specifically approved and paid by the Syndicator. No amounts should be shown without specifying the name of a payee and no amounts shown may be paid by the Taxpayer or Developer.
B121: VI. | C121: Syndication Costs Paid by Taxpayer or Developer: The following amounts represent syndication expenses to be incurred and paid by the Taxpayer or Developer in obtaining cash to invest in the Taxpayer:
C123: Items | G123: Payee* | J123: Amounts*
B125: 1 | C125: Accountant's Fee Paid by Taxpayer | G125: 0 | J125: 0
B126: 2 | C126: Taxpayer's Fee | G126: 0 | J126: 0
B127: 3 | C127: Attorney's Fee Paid by Taxpayer | G127: 0 | J127: 0
B128: 4 | C128: Broker Fees Paid by Taxpayer | G128: 0 | J128: 0
B129: 5 | C129: Organizational Expense of Syndication | G129: 0 | J129: 0
B130: 6 | C130: Other: | D130: 0 | G130: 0 | J130: 0
B131: 7 | C131: Other: | D131: 0 | G131: 0 | J131: 0
B132: 8 | C132: Other: | D132: 0 | G132: 0 | J132: 0
B133: 9 | C133: Other: | D133: 0 | G133: 0 | J133: 0
B134: 10 | C134: Other: | D134: 0 | G134: 0 | J134: 0
C135: TOTAL: | F135: =IF(J135=J32,"","This doesn't match Section I, Line H!") ->  | J135: =+SUM(J125:J134) -> 0
B136: _____________
B137: * All amounts must relate solely to the Syndication and must be amounts specifically approved and paid by the Syndicator. No amounts should be shown without specifying the name of a payee and no amounts shown may be paid by the Taxpayer or Developer.
B139: VII. | C139: Net Equity:
C141: The estimated Placed in Service Date is | J141: =+M141 -> 00:00:00 | M141: =+'2. Project Description'!H111 -> 00:00:00 | N141: Placed In Service Date for Last Building | R141: ="See Section "&TEXT('2. Project Description'!A111,"0.00") -> See Section 5.37
C142: The Net Equity* as of the Estimated Placed in Service Date is | J142: =+J150 -> 0
C144: * Compute Net Equity by (i) compounding Installments from Part II above in advance of the Placed In Service Date by the Compound Factor, (ii) discounting Installments following the Placed In Service Date by the Discount Factor, (iii) adding the sum total of adjusted Installments from (i) and (ii). The Compound Factor and the Discount Factor for purposes of the Application will be determined as of January 1st of the year in which the Application is submitted and will be based on the yield as of such date on the six (6) month T-Bill plus two (2) percent.
C146: Please evidence this calculation as follows:
C148: (i) | D148: Compounding Installments prior to Placed In Service Date: | J148: 0
C149: (ii) | D149: Discounting Installments Following Placed In Service Date: | J149: 0
C150: (iii) | D150: Net Equity [Add (i) plus (ii)]: | J150: =+J148+J149 -> 0
B153: WITNESS my signature, on this the | G153: day of
G158: ='2. Project Description'!E10&" (Taxpayer)" -> (Taxpayer)
F161: By:
B165: Notary
B168: The undersigned duly authorized representative of the Syndicator hereby certifies as follows: (1) The information contained in this Syndication Information and Certification is true and correct as of the date of its execution by the Taxpayer/Applicant; and (2) The syndication of the tax credits requested by the Syndicator has been or will be (check one):
E170: Publicly Offered* | M170: =IF(D170="","Private","Public") -> Private
C171: =IF(D170="","",D170) ->  | D171: x | E171: Privately Placed
D172: =IF(D170<>"",IF(D171<>"","You can only check one block!",""),IF(D171="","You must check at least one block!","")) -> 
B173: * If the syndication proceeds are generated through public offering, please submit copy of all filings with the SEC as Appendix B.
B176: WITNESS my signature, on this the | G176: day of
G180: =E12&" (Syndicator)" -> (Syndicator)
F182: By:
F185: Title:

Sheet Taxpayer Certification (hidden)
A3: =+'2. Project Description'!A3 -> HOMELESS & HOUSING STABILITY: AFFORDABLE HOUSING DEVELOPMENT PROGRAM
A4: =TRIM('2. Project Description'!E51)&" ("&TRIM('2. Project Description'!E53)&" LA), "&'2. Project Description'!E21 -> ( LA),
A6: Taxpayer / Applicant Certification
B8: The undersigned Taxpayer or duly authorized representative of the same hereby certifies that the information contained in the Low Income Tax Credit Application Package, including all appendices and Exhibits attached hereto is complete and accurate as of the date hereof. The undersigned acknowledges that the information provided in this Application package or in any other document, release or communication by the Louisiana Housing Corporation (the "Corporation") has not been relied upon for purpose of making any investment decision by the Taxpayer and that any and all expenses and investments with respect to this application for an allocation of low-income housing tax credits have been or will be made on the basis of an independent judgement by the Taxpayer or upon consultation with a qualified tax consultant.
B9: The Taxpayer hereby certifies that the project can be completed and operated within the development schedule and budget set forth in the Application.
B10: The Taxpayer represents that it will furnish promptly such other supporting information, documents and fees as may be requested and/or required. In carrying out the development and operation of the project, the Taxpayer agrees to comply with all applicable federal and state laws regarding unlawful discrimination and will abide by all Corporation rules and regulations. The Taxpayer understands and agrees that the Corporation is not responsible for actions taken by the Taxpayer in reliance on a prospective tax credit reservation by the Corporation and the Taxpayer further agrees that the Corporation, its employees, agents and/or consultants shall not be responsible or liable in any manner whatsoever for expenses incurred by Taxpayer or its consultants in applying for low income housing tax credits.
B11: By execution of this Application, the Taxpayer understands and agrees that the Corporation may conduct its own independent review and analysis of the information contained herein and in the attachments hereto, that any such review and analysis will be made for the protection of the Corporation. It is further understood and agreed by the Taxpayer that, for the purpose of determining and establishing the terms and conditions under which the allocation may be made, the Corporation may request or require adjustment or changes in the information contained herein (including attachments hereto) or in any documentation or materials now or hereafter submitted in connection with this Application.
B12: The Taxpayer acknowledges that a certification of information contained in this Application will be made as of the date the Corporation reserves or allocates tax credits for the Project and as of the Placed in Service Date of the Project and that the amount of tax credits reserved and/or allocated pursuant to any forward commitment or carry forward allocation may be revised or adjusted in accordance with the feasibility/viability review as of such Placed in Service Date and in accordance with the audit of the Certificate of Actual Costs. The Taxpayer further acknowledges that the Tax Credit Regulatory Agreement (including the Compliance Monitoring Agreement attached thereto) shall be entered into prior to or simultaneously with the allocation of tax credits by the Corporation or within any year of the compliance period. The Taxpayer shall hold the Corporation, its employees, agents and/or consultants harmless in connection with any claims of damage which may be filed by the Taxpayer based upon the processing of this Application by the Corporation or its agents, employees and/or consultants.
B13: ="WITNESS my signature on "&TEXT(D28,"mmmm d yyyy") -> WITNESS my signature on January 0 1900 | D13: =+'2. Project Description'!E10&" (Taxpayer)" -> (Taxpayer)
C17: By:
B20: ="Sworn to and subscribed before me"&" "&TEXT(D29,"mmmm d yyyy") -> Sworn to and subscribed before me January 0 1900
B25: ="Notary Public, State of "&D30 -> Notary Public, State of
B28: Date of Taxpayer Certification:
B29: Date of Notarization:
B30: State for Notary Public:

Sheet Reserve Adequacy (hidden)
A3: =+'2. Project Description'!A3 -> HOMELESS & HOUSING STABILITY: AFFORDABLE HOUSING DEVELOPMENT PROGRAM
A4: =TRIM('2. Project Description'!E51)&" ("&TRIM('2. Project Description'!E53)&" LA), "&'2. Project Description'!E21 -> ( LA),
A6: Analysis of Replacement Reserve Adequacy | E6: =IF('10. Checklist'!#REF!="Yes","","This exhibit is not required (no CNA is required for this transaction)") -> 
B8: Year 1 | C8: Year 2 | D8: Year 3 | E8: Year 4 | F8: Year 5 | G8: Year 6 | H8: Year 7 | I8: Year 8 | J8: Year 9 | K8: Year 10 | L8: Year 11 | M8: Year 12 | N8: Year 13 | O8: Year 14 | P8: Year 15
A10: Beginning Balance | B10: =+B20 -> 0 | C10: =+B15 -> 0
A11: ="+ Annual Deposit" -> + Annual Deposit | B11: =+B21 -> 0 | C11: =ROUND(B11*(1+B22),0) ->  | D11: =ROUND(C11*(1+B22),0) ->  | E11: =ROUND(D11*(1+B22),0) ->  | F11: =ROUND(E11*(1+B22),0) ->  | G11: =ROUND(F11*(1+B22),0) ->  | H11: =ROUND(G11*(1+B22),0) ->  | I11: =ROUND(H11*(1+B22),0) ->  | J11: =ROUND(I11*(1+B22),0) ->  | K11: =ROUND(J11*(1+B22),0) ->  | L11: =ROUND(K11*(1+B22),0) ->  | M11: =ROUND(L11*(1+B22),0) ->  | N11: =ROUND(M11*(1+B22),0) ->  | O11: =ROUND(N11*(1+B22),0) ->  | P11: =ROUND(O11*(1+B22),0) -> 
A12: ="- Anticipated Needs" -> - Anticipated Needs | B12: =-B31 -> 0 | C12: 0 | D12: 0 | E12: 0 | F12: 0 | G12: 0 | H12: 0 | I12: 0 | J12: 0 | K12: 0 | L12: 0 | M12: 0 | N12: 0 | O12: 0 | P12: 0
A13: ="+ Interest at "&TEXT(B23,"#0.00%") -> + Interest at 1.00% | B13: =ROUND((B10+MIN(0,B11+B12))*B23,0) -> 0 | C13: =ROUND((C10+MIN(0,C11+C12))*B23,0) ->  | D13: =ROUND((D10+MIN(0,D11+D12))*B23,0) ->  | E13: =ROUND((E10+MIN(0,E11+E12))*B23,0) ->  | F13: =ROUND((F10+MIN(0,F11+F12))*B23,0) ->  | G13: =ROUND((G10+MIN(0,G11+G12))*B23,0) ->  | H13: =ROUND((H10+MIN(0,H11+H12))*B23,0) ->  | I13: =ROUND((I10+MIN(0,I11+I12))*B23,0) ->  | J13: =ROUND((J10+MIN(0,J11+J12))*B23,0) ->  | K13: =ROUND((K10+MIN(0,K11+K12))*B23,0) ->  | L13: =ROUND((L10+MIN(0,L11+L12))*B23,0) ->  | M13: =ROUND((M10+MIN(0,M11+M12))*B23,0) ->  | N13: =ROUND((N10+MIN(0,N11+N12))*B23,0) ->  | O13: =ROUND((O10+MIN(0,O11+O12))*B23,0) ->  | P13: =ROUND((P10+MIN(0,P11+P12))*B23,0) -> 
A15: Ending Balance | B15: =SUM(B9:B14) -> 0
A16: Per Unit | B16: =IF(B25=0,0,B15/B25) -> 0 | C16: =IF(B25=0,0,C15/B25) -> 0 | D16: =IF(B25=0,0,D15/B25) -> 0 | E16: =IF(B25=0,0,E15/B25) -> 0 | F16: =IF(B25=0,0,F15/B25) -> 0 | G16: =IF(B25=0,0,G15/B25) -> 0 | H16: =IF(B25=0,0,H15/B25) -> 0 | I16: =IF(B25=0,0,I15/B25) -> 0 | J16: =IF(B25=0,0,J15/B25) -> 0 | K16: =IF(B25=0,0,K15/B25) -> 0 | L16: =IF(B25=0,0,L15/B25) -> 0 | M16: =IF(B25=0,0,M15/B25) -> 0 | N16: =IF(B25=0,0,N15/B25) -> 0 | O16: =IF(B25=0,0,O15/B25) -> 0 | P16: =IF(B25=0,0,P15/B25) -> 0
A17: Ending balance problem? | B17: =IF(B16<B26,"Problem","") ->  | C17: =IF(C16<B26,"Problem","") ->  | D17: =IF(D16<B26,"Problem","") ->  | E17: =IF(E16<B26,"Problem","") ->  | F17: =IF(F16<B26,"Problem","") ->  | G17: =IF(G16<B26,"Problem","") ->  | H17: =IF(H16<B26,"Problem","") ->  | I17: =IF(I16<B26,"Problem","") ->  | J17: =IF(J16<B26,"Problem","") ->  | K17: =IF(K16<B26,"Problem","") ->  | L17: =IF(L16<B26,"Problem","") ->  | M17: =IF(M16<B26,"Problem","") ->  | N17: =IF(N16<B26,"Problem","") ->  | O17: =IF(O16<B26,"Problem","") ->  | P17: =IF(P16<B26,"Problem","") -> 
A19: Inputs:
A20: Initial Deposit | B20: =+'5. Development Costs'!C98 -> 0 | C20: (from Development Costs worksheet)
A21: Annual Deposit (Year 1) | B21: ='3. Funding Characteristics'!H411 -> 0 | C21: =" (from Section "&'3. Funding Characteristics'!L381&")" -> (from Section ) | G21: =AVERAGE(B29:P29) -> 0 | H21: average annual uninflated capital needs | L21: =AVERAGE(B31:P31) -> 0 | M21: average annual inflated capital needs
A22: Annual deposit escalation | B22: =+'3. Funding Characteristics'!#REF! ->  | C22: =" (from Section "&'3. Funding Characteristics'!L381&")" -> (from Section )
A23: Interest Rate | B23: 0.01 | C23: (LHC standard)
A24: Inflation Rate | B24: 0.02 | C24: (LHC standard)
A25: Total Units | B25: =+'4. Unit Mix and Rents'!F41 -> 0 | C25: (from Unit Mix and Rents worksheet)
A26: Minimum Balance Per Unit | B26: =IF(B25=0,0,ROUND(MAX(B11:P11)/6/B25,0)) -> 0 | C26: (per QAP definition of Minimum Reserve Balance)
B28: =+B8 -> Year 1 | C28: Year 2 | D28: Year 3 | E28: Year 4 | F28: Year 5 | G28: Year 6 | H28: Year 7 | I28: Year 8 | J28: Year 9 | K28: Year 10 | L28: Year 11 | M28: Year 12 | N28: Year 13 | O28: Year 14 | P28: Year 15
A29: Capital Needs (uninflated) | B29: 0 | C29: 0 | D29: 0 | E29: 0 | F29: 0 | G29: 0 | H29: 0 | I29: 0 | J29: 0 | K29: 0 | L29: 0 | M29: 0 | N29: 0 | O29: 0 | P29: 0
A30: Inflation Factor | B30: 1 | C30: =+B30*(1+B24) -> 1.02 | D30: =+C30*(1+B24) -> 1.0404 | E30: =+D30*(1+B24) -> 1.061208 | F30: =+E30*(1+B24) -> 1.08243216 | G30: =+F30*(1+B24) -> 1.104080803 | H30: =+G30*(1+B24) -> 1.126162419 | I30: =+H30*(1+B24) -> 1.148685668 | J30: =+I30*(1+B24) -> 1.171659381 | K30: =+J30*(1+B24) -> 1.195092569 | L30: =+K30*(1+B24) -> 1.21899442 | M30: =+L30*(1+B24) -> 1.243374308 | N30: =+M30*(1+B24) -> 1.268241795 | O30: =+N30*(1+B24) -> 1.29360663 | P30: =+O30*(1+B24) -> 1.319478763
A31: Capital Needs (inflated) | B31: =ROUND(B29*B30,0) -> 0 | C31: 0 | D31: 0 | E31: 0 | F31: 0 | G31: 0 | H31: 0 | I31: 0 | J31: 0 | K31: 0 | L31: 0 | M31: 0 | N31: 0 | O31: 0 | P31: 0
A35: 0.35 | B35: =+B36*A35 -> 0 | C35: =+C36*A35 -> 15657.25 | D35: =+D36*A35 -> 36157.1 | E35: =+E36*A35 -> 45608.85 | F35: =+F36*A35 -> 73378.55 | G35: =+G36*A35 -> 61160.05 | H35: =+H36*A35 -> 67405.8 | I35: =+I36*A35 -> 40906.6 | J35: =+J36*A35 -> 20623.05 | K35: =+K36*A35 -> 26548.55 | L35: =+L36*A35 -> 32116.7 | M35: =+M36*A35 -> 43943.2 | N35: =+N36*A35 -> 37819.6 | O35: =+O36*A35 -> 42477.75 | P35: =+P36*A35 -> 49092.4
B36: 0 | C36: 44735 | D36: 103306 | E36: 130311 | F36: 209653 | G36: 174743 | H36: 192588 | I36: 116876 | J36: 58923 | K36: 75853 | L36: 91762 | M36: 125552 | N36: 108056 | O36: 121365 | P36: 140264

Sheet App 1 Owner Info (hidden)
A3: =+'2. Project Description'!A3 -> HOMELESS & HOUSING STABILITY: AFFORDABLE HOUSING DEVELOPMENT PROGRAM
A4: =TRIM('2. Project Description'!E51)&" ("&TRIM('2. Project Description'!E53)&" LA), "&'2. Project Description'!E21 -> ( LA),
A6: Appendix 1: Ownership Information
A8: Note: The Corporation reserves tax credits to the Taxpayer and the controlling party of the Taxpayer. Reservations are not transferrable. Any change in controlling party is deemed a material change.
B10: Taxpayer Entity Name: | D10: =+'2. Project Description'!E10 -> 0
B11: Taxpayer Is: | D11: =+'2. Project Description'!E17 -> Missing
B12: Taxpayer Federal Tax ID Number: | D12: =+'2. Project Description'!E16 -> 0
B14: Controlling Principal Entity Name: | D14: =+'2. Project Description'!#REF! -> 
B15: Controlling Principal Role: | D15: =+'2. Project Description'!#REF! -> 
B17: Contact Person: | D17: =+'2. Project Description'!E13 -> 0
B18: Email: | D18: =+'2. Project Description'!E15 -> 0
B19: Telephone: | D19: =+'2. Project Description'!E14 -> 0
B21: Controlling Principal % Ownership | D21: 0
B23: ="I. PREVIOUS PARTICIPATION OF "&'2. Project Description'!#REF! -> 
B25: ="List all projects in which the "&D15&J25 ->  | J25: has requested an allocation of low-income housing tax credits or sold a project which received an allocation of low income housing tax credits. Attach a separate sheet with additional information if necessary.
G27: Application
C28: Project Name and Location | G28: Date | H28: Status
H30: Missing
H32: Missing
H34: Missing
B36: II. DISCLOSURE OF IDENTITIES OF INTEREST RELATED PARTIES:
B38: =+J38 -> The undersigned duly authorized representative of the Developer/Taxpayer hereby certifies under penalty of perjury that the following persons are (i) members of the Corporation's Board of Commissioners or Corporation Staff who are related to or have any identity of interest with the Developer/Taxpayer or (ii) affiliates, employees, consultants or otherwise related to or having an identity of interest with the Developer/Taxpayer and who have applied for an Allocation of Tax Credits in the calendar year within which this Application has been submitted or who have any interests in any project receiving Tax Credits and/or projects subject to compliance monitoring by the Corporation. | J38: The undersigned duly authorized representative of the Developer/Taxpayer hereby certifies under penalty of perjury that the following persons are (i) members of the Corporation's Board of Commissioners or Corporation Staff who are related to or have any identity of interest with the Developer/Taxpayer or (ii) affiliates, employees, consultants or otherwise related to or having an identity of interest with the Developer/Taxpayer and who have applied for an Allocation of Tax Credits in the calendar year within which this Application has been submitted or who have any interests in any project receiving Tax Credits and/or projects subject to compliance monitoring by the Corporation.
B40: Related Board Members and Staff:
B42: (1)
B43: (2)
B44: (3)
B45: (4)
B46: (5)
B48: Related Affiliates, Employees, Consultants, Etc.:
B50: (1)
B51: (2)
B52: (3)
B53: (4)
B54: (5)
B56: =+J56&'2. Project Description'!#REF!&L56 ->  | J56: The undersigned duly authorized representative of the owner (the "Taxpayer") of the captioned project (the "Project") hereby certifies under penalty of perjury that the Contractor certifying the construction and/or rehabilitation requirements for the Project as well as the cost estimates for the Project bears a relationship either to the Taxpayer or the | L56: within the meaning of Section 267(b) orSection 707(b)(1) of the Internal Revenue Code of 1986, as amended, after substituting 5% for 50% in Section 267(b) and Section 707(b)(1) and does not have any identity of interest with any member of the Board, staff, consultant or other affiliate of the Corporation.
B58: ="WITNESS my signature on "&TEXT(D73,"mmmm d yyyy") -> WITNESS my signature on January 0 1900
C60: ="Builder "&IF('2. Project Description'!H28="Yes","IS","IS NOT")&" related to Taxpayer or "&D15 -> 
F62: =+'App 1 Owner Info'!D10&" (Taxpayer)" -> 0 (Taxpayer)
E65: By:
B66: =J66&TEXT(D74,"mmmm d yyyy") -> Sworn to and subscribed before me January 0 1900 | J66: Sworn to and subscribed before me
J68: Builder IS related to Taxpayer or General Partner
J69: Builder IS NOT related to Taxpayer or General Partner
B70: ="Notary Public, State of "&D75 -> Notary Public, State of
B73: Date of Taxpayer Certification:
B74: Date of Notarization:
B75: State for Notary Public:

Sheet App 2 Site Control (hidden)
A3: =+'2. Project Description'!A3 -> HOMELESS & HOUSING STABILITY: AFFORDABLE HOUSING DEVELOPMENT PROGRAM
A4: =TRIM('2. Project Description'!E51)&" ("&TRIM('2. Project Description'!E53)&" LA), "&'2. Project Description'!E21 -> ( LA),
A6: Site Control Worksheet
B8: I. | C8: Applicant must have control of the site and existing building(s) if any.
C10: A. | D10: Please indicate the method of site control:
E11: Missing
C13: B. | D13: Purchase Information | N13: =SUM(N14:N17) -> 0 | O13: Total Acquisition Cost
E14: Total Purchase Price: | H14: (regardless of when paid) | N14: =+'5. Development Costs'!C11 -> 0 | O14: =+'5. Development Costs'!B11 -> Building Acquisition
E15: Paid to Date: | H15: (amount paid at time of application) | N15: =+'5. Development Costs'!C12 -> 0 | O15: =+'5. Development Costs'!B12 -> Land Acquisition (value of donated land)
E16: Outstanding Balance: | G16: =+G14-G15 -> 0 | H16: (calculated) | N16: =+'5. Development Costs'!C13 -> 0 | O16: =+'5. Development Costs'!B13 -> Land Acquisition (other)
E18: Site Area: | H18: Square Feet
E19: Purchase Price / S.F.: | G19: =IF(G18<>0,G14/G18,0) -> 0
E20: Date of Purchase:
C21: =IF(OR(N13=0,G14=0,ROUND(G14,0)=ROUND(N13,0)),"","Purchase price does not agree with Total Acquisition Cost. Please explain.") -> 
C23: Comment for purchase price
C25: C. | D25: Option Information
D26: Explain the purchase option: when was the option purchased, how much was paid for the option, when does the option expire, are there any provisions for extension of the option?
C28: Explanation of option to purchase
E30: Total Purchase Price: | H30: (including the cost of the option)
E31: Paid to Date: | H31: (amount paid at time of application)
E32: Outstanding Balance: | G32: =+G30+G31 -> 0 | H32: (calculated)
E34: Site Area: | H34: Square Feet
E35: Purchase Price / S.F.: | G35: =IF(G34<>0,G30/G34,0) -> 0
C37: =IF(OR(G30=0,N13=0,ROUND(N13,0)=ROUND(G30,0)),"","Option price does not agree with Total Acquisition Cost. Please explain.") -> 
C39: Additional comment
C41: D. | D41: Lease Information
E42: Amount Paid for Leasehold Interest:
E43: Annual Ground Rent: | J43: *
E44: Lease Term: | J44: years
E45: Remaining Years: | J45: years
E46: Site Area: | J46: Square Feet
E47: Cost/S.F.: | I47: =IF(I46<>0,(I42+(I43*I45))/I46,0) -> 0
E48: Date of Lease: | I48: 00:00:00
B50: * | C50: Annual Ground Rent must be included as a Miscellaneous Tax & Insurance Expense (on the Revenues and Expenses worksheet), or prepaid Annual Ground Rent must be included as an Other Soft Cost (on the Development Costs worksheet).
C52: Comment for ground lease
C54: E. | D54: Attached to and made a part hereof are copies of the site control documents.
B56: II. | C56: Complete this section if applicant does not have control of the site and existing building(s) if any.
C58: A. | D58: What is the estimated Purchase Price for the site?
C60: B. | D60: Provide the following information about the current legal owner:
E62: Name
E63: Address
E64: City | H64: State | J64: Zip
E65: Telephone
B67: III. | C67: Attached to and made a part hereof is a legal description of each parcel of land.

Sheet App 3 Ownership History (hidden)
A3: =+'2. Project Description'!A3 -> HOMELESS & HOUSING STABILITY: AFFORDABLE HOUSING DEVELOPMENT PROGRAM
A4: =TRIM('2. Project Description'!E51)&" ("&TRIM('2. Project Description'!E53)&" LA), "&'2. Project Description'!E21 -> ( LA),
A6: Ownership History of Existing Buildings
B8: This worksheet must be completed if Taxpayer is requesting credits for the purchase price of an existing building.
A10: I. | B10: Specify the date on which building was acquired by purchase as defined in Section 179(d)(2) of the Internal Revenue Code of 1986, as amended (the "Code") (substitute 10% for 50% in Sections '267(b) and 179(b)(n)): | E10: 00:00:00
A12: II. | B12: Specify all previous owners of and the purchase price with respect to the building from the January which is ten years prior to the calendar year in which Taxpayer is seeking an award of tax credits to the date the building was or will be acquired by Taxpayer:
C14: Owners | E14: Purchase Price
A22: III. | B22: Do any of the previous owners bear a relationship to the Taxpayer specified in Section 267(b) or Section 707(b)(1)? | E22: Missing
C24: If Yes, specify which of the previous owners are such related persons:
C26: x
C27: x
C28: x
C29: x
A31: IV. | B31: Are any of the previous owners and the Taxpayer under common control (within the meaning of subsections (a) and (b) of Section 52 of the Code)? | E31: Missing
C33: If Yes, specify which of the previous owners are such related persons:
C35: x
C36: x
C37: x
C38: x
A40: V. | B40: Is this a Distressed Property (as defined in the QAP)? | E40: =+H40 ->  | H40: =+'2. Project Description'!#REF! ->  | I40: From Project Description worksheet: is this a 'Distressed Property'?
B42: If yes, attach written certification from HUD or RD that property is distressed.

Sheet App 4 Zoning (hidden)
A3: =+'2. Project Description'!A3 -> HOMELESS & HOUSING STABILITY: AFFORDABLE HOUSING DEVELOPMENT PROGRAM
A4: =TRIM('2. Project Description'!E51)&" ("&TRIM('2. Project Description'!E53)&" LA), "&'2. Project Description'!E21 -> ( LA),
A6: Zoning Certification
B9: Attn: Tax Credit/HOME Manager
B10: Louisiana Housing Corporation
B11: 2415 Quail Drive
B12: Baton Rouge, Louisiana 70808
B14: Subject: | C14: Project Name Here
C15: City and State Here
B18: This letter certifies the following:
D20: the property is properly zoned for the proposed project.
D22: the developer has submitted a request to zone site for multi-family use and the authority does not foresee or anticipate any negative problems with respect to zoning.
D24: the property is not properly zoned for the proposed project.
D26: the property has not been zoned by this authority and no request has been made.
B29: Sincerely,
B32: By:
B33: Name:
B34: Title:
B35: Date:

Sheet App 11 NP Participation (hidden)
A3: =+'2. Project Description'!A3 -> HOMELESS & HOUSING STABILITY: AFFORDABLE HOUSING DEVELOPMENT PROGRAM
A4: =TRIM('2. Project Description'!E51)&" ("&TRIM('2. Project Description'!E53)&" LA), "&'2. Project Description'!E21 -> ( LA),
A6: Non-Profit Participation Information
B8: Date the non-profit was created: | H8: 00:00:00
B10: Name of the non-profit:
B13: Describe the non-profit's participation in the development and operation of the project.
B16: List the names and addresses of Board Members for the non-profit organization. Identify all paid, full time staff and sources of funds for annual operating expenses and current programs.
B20: Specify the Non-profit's Ownership interest in the project or the partnership owning the project: | H20: 0
B22: Is Non-profit "Local"?* | H22: Missing
B23: Is Non-profit a CHDO? | H23: Missing
B24: * If Applicant requested points based on non-profit being "Local," not more than fifteen percent (15%) of Board Members may reside outside of the service area of the non-profit and at least 75% of Board Members must reside within Market Area of the Project.
B26: Is Non-profit a 501(c)(3) or 501(c)(4) organization? | H26: Missing
B28: Describe the charitable activities of Non-profit over the last three calendar years and how such activities are consistent with services to be provided in connection with the Project.
B31: Attach resume of the non-profit employee who has affordable housing development experience.
B33: Identify affordable housing developments owned by Non-profit.
B34: Name | D34: Location | F34: Number of Units | H34: Subsidized?
H36: Missing
H38: Missing
H40: Missing
H42: Missing

Sheet App 13 NP Counsel Opinion (hidden)
A3: =+'2. Project Description'!A3 -> HOMELESS & HOUSING STABILITY: AFFORDABLE HOUSING DEVELOPMENT PROGRAM
A4: =TRIM('2. Project Description'!E51)&" ("&TRIM('2. Project Description'!E53)&" LA), "&'2. Project Description'!E21 -> ( LA),
A6: Format for Counsel's Opinion of Non-Profit Qualification
A8: (Must be submitted with initial application)
A9: (Submitted on attorney's letterhead)
A11: Louisiana Housing Corporation
A12: 2415 Quail Drive
A13: Baton Rouge, Louisiana 70808
A14: Attn: Tax Credit Coordinator
B16: Project Name Here
B17: City and State Here
B18: Eligibility for Non-Profit Set-Aside
A20: Ladies and Gentlemen:
A22: You have asked that we render our opinion that (non-profit) is a qualified nonprofit organization within the meaning of Section 469(h) of the Internal Revenue Code. We understand that you require this opinion as a prerequisite to your consideration of making an allocation of Low-Income Housing Tax Credits with respect to the Project from the set-aside reserved for the use of qualified non-profit organizations.
A24: In rendering the following opinion, we reviewed the Articles of Incorporation, Charter and Bylaws of (non-profit); the Letter of Determination dated (date) from the Internal Revenue Service with respect to (non-profit); and all records of (non-profit) and other potential participants in the Project sufficient to make a determination as to the relationship of (non-profit) with any other potential participants in the Project. Based on our review of the foregoing, it is our opinion that:
A26: 1. | B26: (Non-profit) is a 501(c)(3) or 501(c)(4) organization and is exempt from tax under Section 501(a).
A28: 2. | B28: One of the exempt purposes of (non-profit) includes the fostering of low-income housing.
A30: 3. | B30: Individuals or entities involved with or related to any potential for-profit participant in the Project are not involved with or related to the creation or management of (non-profit).
A32: 4. | B32: (Non-profit) is not affiliated with or controlled by a for-profit organization.
A34: In rendering the following opinion, we examined certificates containing representations made to us by (non-profit) and each potential participant in the Project, copies of which are attached hereto and incorporated herein by this reference. Based on our review of the attached certificates, it is our opinion that:
A36: 1. | B36: (Non-profit) and all potential participants intend that (non-profit) will own an interest in the Project either directly or through a partnership (which partnership has yet been formed).
A38: 2. | B38: (Non-profit) and all potential participants intend that (non-profit) will materially participate (within the meaning of Section 469(h)) in the Project and operation of the Project throughout the compliance period.
A40: It is our intention that this opinion be relied upon by you in making your determination as to the eligibility of the Project to receive Low-Income Housing Tax Credits from the Non-profit Set-Aside.
A42: Sincerely,
A45: /s/

Sheet App 34 Debarment (hidden)
A3: =+'2. Project Description'!A3 -> HOMELESS & HOUSING STABILITY: AFFORDABLE HOUSING DEVELOPMENT PROGRAM
A4: =TRIM('2. Project Description'!E51)&" ("&TRIM('2. Project Description'!E53)&" LA), "&'2. Project Description'!E21 -> ( LA),
A6: Certification Regarding Debarment, Suspension, Ineligibility and Voluntary Exclusion (Lower Tier Covered Transactions)
B7: Instructions for Certification
A9: 1 | B9: By signing and submitting this proposal, the applicant is providing the certification set out below.
A11: 2 | B11: =+F11 -> The certification in this clause is a material representation of fact upon which reliance was placed when this transaction was entered into. If it is later determined that the applicant knowingly rendered an erroneous certification, in addition to other remedies available to the Federal Government, the department or Corporation with which this transaction originated may pursue available remedies, including suspension and/or debarment. | F11: The certification in this clause is a material representation of fact upon which reliance was placed when this transaction was entered into. If it is later determined that the applicant knowingly rendered an erroneous certification, in addition to other remedies available to the Federal Government, the department or Corporation with which this transaction originated may pursue available remedies, including suspension and/or debarment.
A13: 3 | B13: =+F13 -> The applicant shall provide immediate written notice to the person to which this proposal is submitted if at any time the applicant learns that its certification was erroneous when submitted or has become erroneous by reason of changed circumstances. | F13: The applicant shall provide immediate written notice to the person to which this proposal is submitted if at any time the applicant learns that its certification was erroneous when submitted or has become erroneous by reason of changed circumstances.
A15: 4 | B15: =+F15 -> The terms "covered transaction," "debarred", "suspended," "ineligible," "lower tier covered transaction," "participant," "person," "primary covered transaction," "principal," "proposal," and "voluntarily excluded," as used in this clause, have the meanings set out in the Definitions and Coverage sections of rules implementing Executive Order 12549. Contact the Corporation for assistance in obtaining a copy of those regulations. | F15: The terms "covered transaction," "debarred", "suspended," "ineligible," "lower tier covered transaction," "participant," "person," "primary covered transaction," "principal," "proposal," and "voluntarily excluded," as used in this clause, have the meanings set out in the Definitions and Coverage sections of rules implementing Executive Order 12549. Contact the Corporation for assistance in obtaining a copy of those regulations.
A17: 5 | B17: =+F17 -> The applicant agrees by submitting this proposal that, should the proposed covered transaction be entered into, it shall not knowingly enter into any lower tier covered transaction with a person who is debarred, suspended, declared ineligible, or voluntarily excluded from participation in this covered transaction, unless authorized by the Corporation. | F17: The applicant agrees by submitting this proposal that, should the proposed covered transaction be entered into, it shall not knowingly enter into any lower tier covered transaction with a person who is debarred, suspended, declared ineligible, or voluntarily excluded from participation in this covered transaction, unless authorized by the Corporation.
A19: 6 | B19: =+F19 -> The applicant further agrees by submitting this proposal that it will include this clause titled "Certification Regarding Debarment, Suspension, Ineligibility and Voluntary Exclusion - Lower Tier Covered Transaction," without modification, in all lower tier covered transactions and in all solicitations for lower tier covered transactions. | F19: The applicant further agrees by submitting this proposal that it will include this clause titled "Certification Regarding Debarment, Suspension, Ineligibility and Voluntary Exclusion - Lower Tier Covered Transaction," without modification, in all lower tier covered transactions and in all solicitations for lower tier covered transactions.
A21: 7 | B21: =+F21 -> A participant in a covered transaction may rely upon a certification of a prospective participant in a lower tier covered transaction that is not debarred, suspended, ineligible, or voluntarily excluded from the covered transaction, unless it knows that the certification is erroneous. A participant may decide the method and frequency by which it determines the eligibility of its principals. Each participant may, but is not required to, check the Nonprocurement List. | F21: A participant in a covered transaction may rely upon a certification of a prospective participant in a lower tier covered transaction that is not debarred, suspended, ineligible, or voluntarily excluded from the covered transaction, unless it knows that the certification is erroneous. A participant may decide the method and frequency by which it determines the eligibility of its principals. Each participant may, but is not required to, check the Nonprocurement List.
A23: 8 | B23: =+F23 -> Nothing contained in the foregoing shall be construed to require establishment of a system of records in order to render in good faith the certification required by this clause. The knowledge and information of a participant is not required to exceed that which is normally possessed by a prudent person in the ordinary course of business dealings. | F23: Nothing contained in the foregoing shall be construed to require establishment of a system of records in order to render in good faith the certification required by this clause. The knowledge and information of a participant is not required to exceed that which is normally possessed by a prudent person in the ordinary course of business dealings.
A25: 9 | B25: =+F25 -> Except for transactions authorized under paragraph 5 of these instruction, if a participant in a covered transaction knowingly enters into a lower tier covered transaction with a person who is suspended, debarred, ineligible, or voluntarily excluded from participation in this transaction, in addition to other remedies available to the Federal Government, the department or Corporation with which this transaction originated may pursue available remedies, including suspension and/or debarment. | F25: Except for transactions authorized under paragraph 5 of these instruction, if a participant in a covered transaction knowingly enters into a lower tier covered transaction with a person who is suspended, debarred, ineligible, or voluntarily excluded from participation in this transaction, in addition to other remedies available to the Federal Government, the department or Corporation with which this transaction originated may pursue available remedies, including suspension and/or debarment.
B27: =+F27 -> Certification regarding Debarment, Suspension, Ineligibility and Voluntary Exclusion - Lower Tier Covered Transactions. | F27: Certification regarding Debarment, Suspension, Ineligibility and Voluntary Exclusion - Lower Tier Covered Transactions.
A29: (1) | B29: =+F29 -> The applicant certifies, by submission of this proposal that neither it nor its principals is presently debarred, suspended, proposed for debarment, declared ineligible, or voluntarily excluded from participation in this transaction by any Federal department or Corporation. | F29: The applicant certifies, by submission of this proposal that neither it nor its principals is presently debarred, suspended, proposed for debarment, declared ineligible, or voluntarily excluded from participation in this transaction by any Federal department or Corporation.
A31: (2) | B31: =+F31 -> The applicant certifies herein that no taxpayer, its representative or agent, managing general partner, sponsor or management company included in the application has been deemed by the Corporation as being “not in good standing”. One is considered to be “not in good standing” with the Corporation if one has met one or more of the criteria listed in Section II (F) (3) Project Team Disqualification of the QAP. | F31: The applicant certifies herein that no taxpayer, its representative or agent, managing general partner, sponsor or management company included in the application has been deemed by the Corporation as being “not in good standing”. One is considered to be “not in good standing” with the Corporation if one has met one or more of the criteria listed in Section II (F) (3) Project Team Disqualification of the QAP.
A33: (3) | B33: =+F33 -> Where the applicant is unable to certify to any of the statements in this certification, such prospective participant shall attach an explanation to this proposal. | F33: Where the applicant is unable to certify to any of the statements in this certification, such prospective participant shall attach an explanation to this proposal.
B35: Signature : _______________________________________________________________

Sheet App 35 Matching (hidden)
A3: =+'2. Project Description'!A3 -> HOMELESS & HOUSING STABILITY: AFFORDABLE HOUSING DEVELOPMENT PROGRAM
A4: =TRIM('2. Project Description'!E51)&" ("&TRIM('2. Project Description'!E53)&" LA), "&'2. Project Description'!E21 -> ( LA),
A6: Matching Certification
A8: The Applicant hereby certifies that the following amounts have been or will be made available to complete the Project and/or to assure that the housing units assisted with HOME Funds are affordable: (Full documentation evidencing commitment must be attached.)
A10: 1 | C10: Non-federal cash from local governmental unit
A12: 2 | C12: Abatement of state or local taxes, fees or other charges which otherwise would have been imposed
A14: 3 | C14: Value of land or other real property (less any debt burden, lien or other encumbrance) not acquired with federal resources
A16: 4 | C16: Investments within prior 10 months from non-federal resources in on-site and off-site infrastructure directly required for affordable housing assistance with HOME Funds.
A18: 5 | C18: Reasonable value of any site preparation and construction materials not acquired with federal resources and any donated or voluntary laborin connection with the site preparation for or construction or rehabilitation of affordable housing.
C20: TOTAL | E20: =SUM(E9:E19) -> 0
A23: By: | C23: _______________________________________________________ Date: __________________

Sheet App 36 Environmental (hidden)
A3: =+'2. Project Description'!A3 -> HOMELESS & HOUSING STABILITY: AFFORDABLE HOUSING DEVELOPMENT PROGRAM
A4: =TRIM('2. Project Description'!E51)&" ("&TRIM('2. Project Description'!E53)&" LA), "&'2. Project Description'!E21 -> ( LA),
A6: Environmental Restrictions Checklist
B8: Project Name:
B10: Street Address:
B11: City:
B12: Parish
B13: Zip Code:
B15: Owner Name:
B17: Street Address:
B18: City:
B19: Parish
B20: Zip Code:
B22: Project Description:
B25: Environmental Review Findings
B27: FLOOD PLAIN | E27: YES | G27: NO
B29: Is the project located in a FEMA Special Flood Hazard Area? (Current flood plain maps should be found in a each HUD field office or call FEMA at 1-800-358-9619, and FEMA's website URL is www.fema.gov/mit/tsd)
B31: Identify Map Panel and Date
B33: Does the project currently carry Flood Insurance?
B35: Do any structures appear to be within or close to the floodplain? (If yes, then flood insurance is required.)
B37: HISTORIC PRESERVATION (If yes, identify relevant restrictions below.) | E37: YES | G37: NO
B39: Is the property listed in the National Register of Historic Places?
B41: Is the property located in a historic district listed in the National Register of Historic Places?
B43: Is the property located in a historic district determined to be eligible for the National Register?
B45: AIRPORT HAZARDS | E45: YES | G45: NO
B47: Is the project located in the clear zone of an airport? (24 CFR Part 51 D. If yes, Notice is required.)
B49: HAZARDOUS OPERATIONS | E49: YES | G49: NO
B51: Is there any evidence or indication of manufacturing operations utilizing or producing hazardous substances (paints, solvents, acides, bases, flammable materials, compressed gases, poisons, or other chemical materials) at or in close proximity to the site
B53: Is there any evidence or indication that past operations located in or in close proximity to the property used hazardous substances or radiological materials that may have been released into the environment?
B55: EXPLOSIVE/FLAMMABLE OPERATIONS/STORAGE (24 CFR Part 51C) | E55: YES | G55: NO
B57: Is there visual evidence or indicators of unobstructed or unshielded above ground storage tanks (fuel oil, gasoline, propane, etc.) or operations utilizing explosive/flammable material at or in close proximity to the property?
B59: FOR YES RESPONSES, SUMMARIZE RESTRICTIONS BELOW:
B60: x
B62: Environmental Review Findings
B64: TOXIC CHEMICAL AND RADIOACTIVE MATERIALS | E64: YES | G64: NO
B66: Petroleum Storage
B68: Is there any evidence or indication of the presence of commerical or residential heating activities that suggest that underground storage tanks may be located in the property?
B70: If yes, are any such tanks being used? If yes, indicate below whether the tank is registered, when it was last tested for leaks, the results of that test, and whether there are any applicable state or local laws that impose additional requirements beyond those required under federal law.
B72: Are there any out-of-service underground fuel storage tanks? If yes, indicate whether the tank was closed out in accordance with applicable state, local and federal laws.
B74: Polychlorinated Biphenyls (PCB) | E74: YES | G74: NO
B76: Is there any evidence or indication that electrical equipment, such as transformers, capacitors, or hydraulic equipment (found in machinery and elevators, installed prior to July 1, 1884) are present on the site?
B78: If yes, is any such equipment (a) owned by anyone other than a public utility company; and (b) not marked with a "PCB Free" sticker?
B80: If yes, indicate below whether such equipment has been tested for PCBs, the results of those tests, and (if no testing has been performed) the proposed testing approach. (Electrical equipment need not be tested but will be assumed to have PCBs)
B82: If PCBs are found in non-electrical equipment over 50 ppm it must be replaced or retrofitted, otherwise any equipment with PCBs or assumed to have PCBs requires an O&M Plan.
B84: Asbestos Containing Materials (ACM) | E84: YES | G84: NO
B86: Is there any evidence or indication of ACM insulation or fire retardant materials such as boiler or pipe wrap, ceiling spray, etc., within the buildings on the property? If yes, the property is required to have an Operations and Maintenance Plan for asbestos containing materials.
B88: Lead Based Paint | E88: YES | G88: NO
B90: Are there residential structures on the property that were built prior to 1978?
B92: If yes, has the property been certified as lead-free?
B94: If property has not been certified as lead-free, has a Risk Assessment been completed?
B96: If yes, has the owner developed a plan including Interim Controls to address the findings of the Risk Assessment including Tenant notifications and an Operations and Maintenance Plan?
B98: If yes, has a qualified Risk Assessor reviewed the Owner's plan and O&M plan for compliance with 24 CFR 35?
B100: EASEMENT AND USE RESTRICTIONS | E100: YES | G100: NO
B102: Are there easements, deed restrictions or other use restrictions on this property? (e.g. oil and gas well pumping, transformer boxes, units, navigation, microwave, rights of way (ROW), for high-voltage power transmission lines, interstate/intrastate gas and liquid petroleum pipelines, etc.)
B104: FOR YES RESPONSES, SUMMARIZE RESTRICTIONS BELOW
B107: Indicate the name and title of the person who completed this checklist.

Sheet LHC-2 CEO Notification (hidden)
A3: =+'2. Project Description'!A3 -> HOMELESS & HOUSING STABILITY: AFFORDABLE HOUSING DEVELOPMENT PROGRAM
A4: =TRIM('2. Project Description'!E51)&" ("&TRIM('2. Project Description'!E53)&" LA), "&'2. Project Description'!E21 -> ( LA),
A6: LHC-2: Information for State and Local Government Notification Letters
A8: Please provide the following information for each of the jurisdictions the project falls within (Local, Parish, and State Representative)
A10: CEO Notification Letter Information (Local)
A12: Project Name: | B12: =+'2. Project Description'!E51 -> 0
A14: Name of local Chief Executive Officer (CEO):
A16: Job Title:
A18: Municipality/Locality:
A20: Street Address:
A23: City, State, Zip:
A25: Salutation:
A27: CEO Notification Letter Information (Parish)
A29: Project Name: | B29: =+B12 -> 0
A31: Name of Parish Chief Executive Officer (CEO):
A33: Job Title:
A35: Municipality/Locality:
A37: Street Address:
A40: City, State, Zip:
A41: 0
A42: Salutation:
A44: CEO Notification Letter Information (State Representative)
A46: Project Name: | B46: =+B29 -> 0
A48: Name of State Representative:
A50: Job Title:
A52: Municipality/Locality:
A54: Street Address:
A57: City, State, Zip:
A59: Salutation:

Sheet LHC-3 Developer Experience (hidden)
A3: =+'2. Project Description'!A3 -> HOMELESS & HOUSING STABILITY: AFFORDABLE HOUSING DEVELOPMENT PROGRAM
A4: =TRIM('2. Project Description'!E51)&" ("&TRIM('2. Project Description'!E53)&" LA), "&'2. Project Description'!E21 -> ( LA),
A6: ="LHC-3: Developer Experience for "&'2. Project Description'!#REF!&" ("&TRIM('2. Project Description'!#REF!)&")"&" and Affiliates" -> 
A8: Complete the information below for projects your organization has developed, placed in service, and currently owns. List only those projects whose size or scope meet the requirements stated in the QAP. Do not include projects approved but not yet placed in service.
A10: Project Name | B10: Project Contact | C10: State | D10: Project Type | E10: Low Income Units | F10: Placed in Service Date | G10: Total Development Costs | H10: Funding Source(s) (Name of Agency, Contact Person and Phone Number)
D39: Total | E39: =SUM(E11:E38) -> 0 | G39: =SUM(G11:G38) -> 0
A41: Have you been awarded 8609s on an LHC Housing Credit project? | D41: Missing
A43: If yes, please complete the following for one project:
A46: Project Name | B46: Project Number | F46: Date of 8609
A49: I, the undersigned , certify I have developed and have ownership in the above-listed projects and that the information given is true and correct. I hereby further acknowledge that in reviewing and considering my application, LHC may request additional if necessary.
A53: Signature: | F53: Date:
A54: Name

Sheet LHC-4 Management Experience (hidden)
A3: =+'2. Project Description'!A3 -> HOMELESS & HOUSING STABILITY: AFFORDABLE HOUSING DEVELOPMENT PROGRAM
A4: =TRIM('2. Project Description'!E51)&" ("&TRIM('2. Project Description'!E53)&" LA), "&'2. Project Description'!E21 -> ( LA),
A6: ="LHC-4: Management Experience for "&'2. Project Description'!E29 -> LHC-4: Management Experience for
A8: Complete the information below for projects your organization has in its current portfolio of similar size and type . Do not include projects approved but not yet placed in service.
A11: Project Name | B11: Project Contact | C11: State | D11: Project Type | E11: Low Income Units
D40: Total | E40: =SUM(E12:E39) -> 0
A42: Have the person or entities serving as management agent had a project with material or uncorrected non-compliance beyond the cure period? | D42: Missing
A44: If yes, please complete the following for one project:
A47: Project Name | B47: Project Number | C47: State | D47: Project Type | E47: Units
A50: ="Certification of "&'2. Project Description'!E10&", Taxpayer/Applicant" -> Certification of , Taxpayer/Applicant
A52: I, the undersigned , understand the management agent listed on the application must be retained by the ownership entity for at least two years after project completion, unless the Taxpayer releases the agent for nonperformance of duties.
A57: Signature: | E57: Date:
A58: Name
C60: ALABAMA

Sheet Existing LHC Property (hidden)
B2: =+'2. Project Description'!A3&" "&"Existing LHC Property" -> HOMELESS & HOUSING STABILITY: AFFORDABLE HOUSING DEVELOPMENT PROGRAM Existing LHC Property
B4: Project Name & Location:
B5: ='2. Project Description'!E51&" - "&'2. Project Description'!E53&", Louisiana" -> - , Louisiana
B6: ='2. Project Description'!E54&" Parish" -> Parish
B8: Submitted by:
B9: ='2. Project Description'!E10 -> 0
B11: Exising LHC Property Naritive:
B26: Project Name:
B27: Type of LHC Funding:
B28: Total LHC Funding:
B29: Total Units:
B30: Total Buildings:
B31: Year Funded:
B32: Original Contact Name:

Sheet Financing Cert (hidden)
A3: =+'2. Project Description'!A3 -> HOMELESS & HOUSING STABILITY: AFFORDABLE HOUSING DEVELOPMENT PROGRAM
A4: =TRIM('2. Project Description'!E51)&" ("&TRIM('2. Project Description'!E53)&" LA), "&'2. Project Description'!E21 -> ( LA), | P4: NEED MORE RESEARCH ABOUT HOW THIS IS FILLED OUT / USED AT TIME OF APPLICATION
A6: Financing Certification (At Time of Application)
B8: A. Source of Funds | P8: ="Permanent Sources of Funds from "&'3. Funding Characteristics'!A184 -> Permanent Sources of Funds from 12
P9: =+'3. Funding Characteristics'!B185 -> New LHC Risk Sharing First Mortgage Loan | U9: =+'3. Funding Characteristics'!H185 -> 0
B10: List Total Source of Funds (including grants but excluding construction loans to be paid by permanent sources of | P10: =+'3. Funding Characteristics'!B186 -> Other Loan With Must-Pay Debt Service | U10: =+'3. Funding Characteristics'!H186 -> 0
B11: funds) for the Project anticipated as of the Project's Placed in Service Date. | P11: =+'3. Funding Characteristics'!B187 -> Non-LHC loan #2 (identify lender): | U11: =+'3. Funding Characteristics'!H187 -> 0
C12: Name of Lender or | G12: Annual | I12: Interest Rate | K12: Amortization | P12: =+'3. Funding Characteristics'!B188 -> Amount of HHSD Funds Requested | U12: =+'3. Funding Characteristics'!H188 -> 0
C13: Source of Funds | E13: Amount of Funds | G13: Debt Service | I13: of Loan | K13: Period (Years) | P13: =+'3. Funding Characteristics'!#REF! ->  | U13: =+'3. Funding Characteristics'!#REF! -> 
P14: =+'3. Funding Characteristics'!#REF! ->  | U14: =+'3. Funding Characteristics'!#REF! -> 
B15: 1. | C15: =+'3. Funding Characteristics'!E55 -> 0 | E15: =+'3. Funding Characteristics'!E54:F54 -> 0 | G15: =+'3. Funding Characteristics'!E70 -> 0 | I15: =+'3. Funding Characteristics'!E61 -> 0 | K15: =+'3. Funding Characteristics'!G65 -> 0 | P15: =+'3. Funding Characteristics'!B189 -> Deferred Developer Fee | U15: =+'3. Funding Characteristics'!H189 -> 0
B16: 2. | C16: =+'3. Funding Characteristics'!E80 -> Missing | E16: =+'3. Funding Characteristics'!E79:F79 -> 0 | G16: =+'3. Funding Characteristics'!E95 -> 0 | I16: =+'3. Funding Characteristics'!E86 -> 0 | K16: =+'3. Funding Characteristics'!G90 -> 0 | P16: =+'3. Funding Characteristics'!B190 -> Federal Historic Tax Credits and Equity | U16: =+'3. Funding Characteristics'!H190 -> 0
B17: 3. | C17: LHC Risk Sharing Loan | E17: =+U9 -> 0 | G17: =+'3. Funding Characteristics'!E45 -> 0 | I17: =+'3. Funding Characteristics'!E39 -> 0 | K17: =+'3. Funding Characteristics'!G41 -> 0 | P17: =+'3. Funding Characteristics'!B191 -> State Historic Tax Credits and Equity | U17: =+'3. Funding Characteristics'!H191 -> 0
B18: 4. | C18: LHC HOME / NHTF | E18: =+U12+U13 ->  | P18: =+'3. Funding Characteristics'!B192 -> Estimated LIHTC Equity Proceeds | U18: =+'3. Funding Characteristics'!H192 -> 0
B19: 5. | C19: CDBG-DR | E19: =+U14 ->  | P19: =+'3. Funding Characteristics'!B193 -> Missing | U19: =+'3. Funding Characteristics'!H193 -> 0
B20: 6. | C20: Deferred Developer Fee | E20: =+U15 -> 0 | P20: =+'3. Funding Characteristics'!#REF! ->  | U20: =+'3. Funding Characteristics'!#REF! -> 
B21: 7. | C21: Donated Items | E21: =+U19+U20+U21 ->  | P21: =+'3. Funding Characteristics'!#REF! ->  | U21: =+'3. Funding Characteristics'!#REF! -> 
B22: 8. | C22: Other | E22: =+U26-I24-I25-SUM(E14:E21) ->  | P22: =+'3. Funding Characteristics'!B196 -> Other Permanent Debt | U22: =+'3. Funding Characteristics'!H196 -> 0
P23: =+'3. Funding Characteristics'!#REF! ->  | U23: =+'3. Funding Characteristics'!#REF! -> 
B24: 9. | C24: Proceeds from Low-Income Tax Credits | I24: =+'3. Funding Characteristics'!E120 -> 0 | P24: =+'3. Funding Characteristics'!#REF! ->  | U24: =+'3. Funding Characteristics'!#REF! -> 
B25: 10. | C25: Proceeds from Historic Tax Credits | I25: =+'3. Funding Characteristics'!E107+'3. Funding Characteristics'!E113 -> 0
U26: =+'3. Funding Characteristics'!H198 -> 0
B27: Total Source of Funds: | I27: =SUM(E15:E22)+I24+I25 -> 
B29: Total Annual Debt Service Cost | G29: =SUM(G15:G22) -> 0
B31: Estimated Placed in Service Date | I31: =+'2. Project Description'!H111 -> 00:00:00
B33: Specify items which vary from terms contained in the later of the certifications in the Taxpayer's Application
B34: or in the certifications as of the Allocation/Reservation of tax credits:
E36: Application/Reservation Date | I36: Placed-in-Service Date
B38: Land Costs | E38: =+'5. Development Costs'!C12+'5. Development Costs'!C13 -> 0 | I38: 0
B39: TDC | E39: =+'5. Development Costs'!D137 -> 0 | I39: 0
B40: TDC/Unit | E40: =+E39/'4. Unit Mix and Rents'!F41 ->  | I40: 0
B41: Soft Costs/Unit | E41: =+I155/'4. Unit Mix and Rents'!F41 ->  | I41: 0
B42: 1st Mortgage Principal | E42: =+E15 -> 0 | I42: 0
C43: Interest | E43: =+I15 -> 0 | I43: 0
C44: Term | E44: =+K15 -> 0 | I44: 0
B45: 2nd Mortgage Principal | E45: =+E16 -> 0 | I45: 0
C46: Interest | E46: =+I16 -> 0 | I46: 0
C47: Term | E47: =+K16 -> 0 | I47: 0
B48: Deferred Developer Fee | E48: =+'3. Funding Characteristics'!E102 -> 0 | I48: 0
B49: Developer Fee Paid | E49: =+'5. Development Costs'!D130-E48 -> 0 | I49: 0
B50: Gross Equity | E50: =+Syndication!J26 -> 0 | I50: 0
B51: Net Equity | E51: =+Syndication!J39 -> 0 | I51: 0
B53: B. Syndication Information
B55: Provide the following information concerning syndication from sale of tax credits:
B57: I. | C57: Syndication Proceeds to be Received During Credit Period:
P58: =+I24 -> 0 | Q58: Total LIHTC Proceeds (Line A.5)
D59: 1: | E59: =+Syndication!J47 -> 0 | H59: 6: | I59: =+Syndication!J52 -> 0 | P59: =SUM(E58:E64)+SUM(I58:I64) -> 0 | Q59: Total of LIHTC installments 1-10
D60: 2: | E60: =+Syndication!J48 -> 0 | H60: 7: | I60: =+Syndication!J53 -> 0
D61: 3: | E61: =+Syndication!J49 -> 0 | H61: 8: | I61: =+Syndication!J54 -> 0
D62: 4: | E62: =+Syndication!J50 -> 0 | H62: 9: | I62: =+Syndication!J55 -> 0
D63: 5: | E63: =+Syndication!J51 -> 0 | H63: 10: | I63: =+Syndication!J56 -> 0
B65: II. | C65: Historic Rehabilitation Credit Proceeds: | I65: =+I25 -> 0 | P65: =+I65 -> 0 | Q65: Total Historic Credit Proceeds
C67: Syndication Proceeds to be Received During Credit Period:
C69: Year 1: | D69: 0
C70: Year 2: | D70: 0 | P70: =SUM(D69:E71) -> 0 | Q70: Total of years 1-3
C71: Year 3: | D71: =+I65-D70-D69 -> 0
B73: III. | C73: Information Concerning Syndicator
C75: Name: | D75: =+Syndication!E12 -> 0
C77: Address: | D77: =Syndication!E13&" "&Syndication!E14 -> 
C79: Telephone: | D79: =+Syndication!E16 -> 0
B81: IV. | C81: Specify all operating and/or credit guarantees required by Syndicator:
C83: x
C84: x
C85: x
C86: x
C87: x
B89: V. | C89: Attach evidence of syndication from Syndicator.
B91: C. Subsidies
B93: The following constitutes the full extent of all Federal, State and local subsidies which apply (or which the
B94: Taxpayer expects to apply) with respect to the Project as of the date the reservation/allocation of tax credits
B95: were made and as of the Project's Placed in Service Date.
E97: Reservation Date | G97: Allocation Date | I97: Placed In Service Date
B99: I. | C99: Non Repayable Grants
B101: (a) | C101: CDBG (State) | E101: 0 | G101: 0 | I101: 0
B102: (b) | C102: CDBG (Local) | E102: 0 | G102: 0 | I102: 0
B103: (c) | C103: HOME | E103: 0 | G103: 0 | I103: 0
B104: (d) | C104: Rental Rehab | E104: 0 | G104: 0 | I104: 0
B105: (e) | C105: State | E105: 0 | G105: 0 | I105: 0
B106: (f) | C106: Local | E106: 0 | G106: 0 | I106: 0
B107: (g) | C107: Other | E107: 0 | G107: 0 | I107: 0
C108: TOTAL | E108: =SUM(E101:E107) -> 0 | G108: =SUM(G101:G107) -> 0 | I108: =SUM(I101:I107) -> 0
B110: II. | C110: Secondary Financing
B112: (a) | C112: CDBG (State) | E112: 0 | G112: 0 | I112: 0
B113: (b) | C113: CDBG (Local) | E113: 0 | G113: 0 | I113: 0
B114: (c) | C114: HOME | E114: 0 | G114: 0 | I114: 0
B115: (d) | C115: HOPE VI | E115: 0 | G115: 0 | I115: 0
B116: (e) | C116: State | E116: 0 | G116: 0 | I116: 0
B117: (f) | C117: Local | E117: 0 | G117: 0 | I117: 0
B118: (g) | C118: Other | E118: 0 | G118: 0 | I118: 0
B119: (h) | C119: Other | E119: 0 | G119: 0 | I119: 0
B120: (I) | C120: Other | E120: 0 | G120: 0 | I120: 0
C121: TOTAL | E121: =SUM(E112:E120) -> 0 | G121: =SUM(G112:G120) -> 0 | I121: =SUM(I112:I120) -> 0
B123: III. | C123: Value Other Subsidies
B125: (a) | C125: Tax Abatement | E125: 0 | G125: 0 | I125: 0
B126: (b) | C126: Historic Rehab Credit | E126: 0 | G126: 0 | I126: 0
B127: (c) | C127: Land Donation | E127: 0 | G127: 0 | I127: 0
B128: (d) | C128: Other | E128: 0 | G128: 0 | I128: 0
C129: TOTAL | E129: =SUM(E125:E128) -> 0 | G129: =SUM(G125:G128) -> 0 | I129: =SUM(I125:I128) -> 0
B131: IV. | C131: Credit Enhancements
B133: (a) | C133: FHA Section # | E133: 0 | G133: 0 | I133: 0
B134: (b) | C134: Private Mortgage Insurance | E134: 0 | G134: 0 | I134: 0
B135: (c) | C135: Letters of Credit | E135: 0 | G135: 0 | I135: 0
B136: (d) | C136: Other | E136: 0 | G136: 0 | I136: 0
B138: V. | C138: Rental Assistance Anticipated
B140: (a) | C140: Tenant Based
C141: (i) Section 8 | E141: 0 | G141: 0 | I141: 0
C142: (ii) Other | E142: 0 | G142: 0 | I142: 0
C143: (iii) Other | E143: 0 | G143: 0 | I143: 0
B145: (b) | C145: Project Based
